{"text_format":"1","workbook":"xlsx","n_sheets":12,"sheets":["Product registration form","Prices and logistic data","Shelflabel and till text","Bottle deposit","Tax - Import only","Unpacking data","Display","Set of goods","Additional GTINS","Sub-components","Measurements","Lists"],"not_rendered":{"charts":0,"images":4,"macros":1,"external_links":1,"defined_names":35,"comments":10,"pivot_tables":0},"unopened":[],"bounds":{"document_bytes":16777216,"sheet_cells":100000,"rows_first":2000,"rows_last":500,"rows_between":2000,"halvings":0,"cell_chars":16384,"cell_head_chars":4096},"cells_cut":0,"cells_raw":0,"read":"whole","date_system":"1900"}

{"sheet":"Product registration form","index":0,"n_rows":200,"n_cols":99,"rows_kept":200,"cut":false,"hidden":false,"merged":[[1,95,1,98],[1,0,1,94],[2,0,2,9],[2,68,2,78],[2,10,2,12],[2,16,2,28],[2,29,2,43],[2,44,2,46],[2,55,2,67],[2,87,2,93]]}
[null,null,null,null,null,"To be filled by vendor",null,null,null,"To be filled by buying dep.",null,null,null,null,null,null,"To be filled by Master Data."]
[]
["General                                   General                                   General",null,null,null,null,null,null,null,null,null,"ISFP Relevant",null,null,null,null,null,"Description, GTIN & PLU                                        Description, GTIN & PLU                                        Description, GTIN & PLU",null,null,null,null,null,null,null,null,null,null,null,null,"Unit of Measure                                    Unit of Measure                                    Unit of Measure                                     Unit of Measure                                    Unit of Measure                                    Unit of Measure",null,null,null,null,null,null,null,null,null,null,null,null,null,null,"Unit of Measure                                   ",null,null,null,null,null,null,"Additional Unit of Measure",null,null,null,"Basic data                                                            Basic data                                                            Basic data",null,null,null,null,null,null,null,null,null,null,null,null,"Attributes                                                  Attributes                                                  Attributes",null,null,null,null,null,null,null,null,null,null,null," Attributes",null,null,null,null,null,null,"POS DATA                                        POS DATA                                         POS DATA",null,null,null,null,null,null,null,"Step"]
["Article Type","Merch. Cat.","Artl. Category","Purch. Org.","Copy\nArticle number","Vendor\nnumber","Sales Org","Base unit of measure","Additional vendor no","Alternative unit of measure","Catch Weight","Traceability Class","Weight band","Product Cost Group","Prod. Cost Qty","Sales unit per BA","Vendor's\nname","English Description\n(MAX 40 characters)","Characters","Danish Description\n(MAX 40 characters)","Characters","GTIN\nEA (Max 13 digits)","GTIN CARTON\n(CA)","Order unit/GTIN","Internal\nOrder unit/GTIN","Trade Exact","Fake Mix","Internal GTIN","PLU","Gross weight/EA KG","Net weight/EA KG","Depth/EA MM","Width/EA MM","Height/EA MM","Gross weight/CA KG","Depth/CA MM","Width/CA MM","Height/CA MM","Gross weight/HY1 KG","Net weight/HY1 KG","Depth/HY1 MM","Width/HY1 MM","Height/HY1 MM","Sales Unit Per Carton","Cartons per layer","Cartons per pallet","Order unit","Master Case EA","Additional Carton Sales Unit Per Carton","Gross Weight/KG","Depth/MM","Width/MM","Height/MM","Additional Cartons Per Layer","Additional Cartons Per Pallet","Hierarchy node","Country of origin","Temperature","Tax\n(VAT)","Net content\n(Drained weight)","Content unit","Unpacking","Stacking Factor","Durability","Supplier\nDurability","Whse.\nDurability","Store\nDurability","Customer\nDurability","Brand\n(Single value)","Private label","SubBrand\n(Single value)","Style\n(Multiple value)","Variant\n(Single value)","Good Better Best\n(Single value)","CSR Brand\n(Multiple value)","Envir. Label\n(Multiple value)","Organic\n(Single value)","Health Claim\n(Multiple value)","ISFP Type\n(Single value)","Seasons/themes","Size/measurement","Colour","Generic_trading","Materials_Fabrics_Fibres","_TOBACCO_TRACEABLE","Costing Variant","Above","Customer Pick up center","Release date - not to be sold before","Sales rule","OTC Sales Rule","Voucher","Source List","Reverse VAT","Article Number","Manufacturer name","Part no.","E-com Ready date","Ecommerce variant"]
[null,null,null,null,null,null,null,null,null,null,null,null,null,null,null,null,null,null,{"$f":"IF(R5<>\"\",LEN(R5),\"\")","v":""},null,{"$f":"IF(T5<>\"\",LEN(T5),\"\")","v":""}]
[null,null,null,null,null,null,null,null,null,null,null,null,null,null,null,null,null,null,"",null,""]
[null,null,null,null,null,null,null,null,null,null,null,null,null,null,null,null,null,null,"",null,""]
[null,null,null,null,null,null,null,null,null,null,null,null,null,null,null,null,null,null,"",null,""]
[null,null,null,null,null,null,null,null,null,null,null,null,null,null,null,null,null,null,"",null,""]
[null,null,null,null,null,null,null,null,null,null,null,null,null,null,null,null,null,null,"",null,""]
[null,null,null,null,null,null,null,null,null,null,null,null,null,null,null,null,null,null,"",null,""]
[null,null,null,null,null,null,null,null,null,null,null,null,null,null,null,null,null,null,"",null,""]
[null,null,null,null,null,null,null,null,null,null,null,null,null,null,null,null,null,null,"",null,""]
[null,null,null,null,null,null,null,null,null,null,null,null,null,null,null,null,null,null,"",null,""]
[null,null,null,null,null,null,null,null,null,null,null,null,null,null,null,null,null,null,"",null,""]
[null,null,null,null,null,null,null,null,null,null,null,null,null,null,null,null,null,null,"",null,""]
[null,null,null,null,null,null,null,null,null,null,null,null,null,null,null,null,null,null,"",null,""]
[null,null,null,null,null,null,null,null,null,null,null,null,null,null,null,null,null,null,"",null,""]
[null,null,null,null,null,null,null,null,null,null,null,null,null,null,null,null,null,null,"",null,""]
[null,null,null,null,null,null,null,null,null,null,null,null,null,null,null,null,null,null,"",null,""]
[null,null,null,null,null,null,null,null,null,null,null,null,null,null,null,null,null,null,"",null,""]
[null,null,null,null,null,null,null,null,null,null,null,null,null,null,null,null,null,null,"",null,""]
[null,null,null,null,null,null,null,null,null,null,null,null,null,null,null,null,null,null,"",null,""]
[null,null,null,null,null,null,null,null,null,null,null,null,null,null,null,null,null,null,"",null,""]
[null,null,null,null,null,null,null,null,null,null,null,null,null,null,null,null,null,null,"",null,""]
[null,null,null,null,null,null,null,null,null,null,null,null,null,null,null,null,null,null,"",null,""]
[null,null,null,null,null,null,null,null,null,null,null,null,null,null,null,null,null,null,"",null,""]
[null,null,null,null,null,null,null,null,null,null,null,null,null,null,null,null,null,null,"",null,""]
[null,null,null,null,null,null,null,null,null,null,null,null,null,null,null,null,null,null,"",null,""]
[null,null,null,null,null,null,null,null,null,null,null,null,null,null,null,null,null,null,"",null,""]
[null,null,null,null,null,null,null,null,null,null,null,null,null,null,null,null,null,null,"",null,""]
[null,null,null,null,null,null,null,null,null,null,null,null,null,null,null,null,null,null,"",null,""]
[null,null,null,null,null,null,null,null,null,null,null,null,null,null,null,null,null,null,"",null,""]
[null,null,null,null,null,null,null,null,null,null,null,null,null,null,null,null,null,null,"",null,""]
[null,null,null,null,null,null,null,null,null,null,null,null,null,null,null,null,null,null,"",null,""]
[null,null,null,null,null,null,null,null,null,null,null,null,null,null,null,null,null,null,"",null,""]
[null,null,null,null,null,null,null,null,null,null,null,null,null,null,null,null,null,null,"",null,""]
[null,null,null,null,null,null,null,null,null,null,null,null,null,null,null,null,null,null,"",null,""]
[null,null,null,null,null,null,null,null,null,null,null,null,null,null,null,null,null,null,"",null,""]
[null,null,null,null,null,null,null,null,null,null,null,null,null,null,null,null,null,null,"",null,""]
[null,null,null,null,null,null,null,null,null,null,null,null,null,null,null,null,null,null,"",null,""]
[null,null,null,null,null,null,null,null,null,null,null,null,null,null,null,null,null,null,"",null,""]
[null,null,null,null,null,null,null,null,null,null,null,null,null,null,null,null,null,null,"",null,""]
[null,null,null,null,null,null,null,null,null,null,null,null,null,null,null,null,null,null,"",null,""]
[null,null,null,null,null,null,null,null,null,null,null,null,null,null,null,null,null,null,"",null,""]
[null,null,null,null,null,null,null,null,null,null,null,null,null,null,null,null,null,null,"",null,""]
[null,null,null,null,null,null,null,null,null,null,null,null,null,null,null,null,null,null,"",null,""]
[null,null,null,null,null,null,null,null,null,null,null,null,null,null,null,null,null,null,"",null,""]
[null,null,null,null,null,null,null,null,null,null,null,null,null,null,null,null,null,null,"",null,""]
[null,null,null,null,null,null,null,null,null,null,null,null,null,null,null,null,null,null,"",null,""]
[null,null,null,null,null,null,null,null,null,null,null,null,null,null,null,null,null,null,"",null,""]
[null,null,null,null,null,null,null,null,null,null,null,null,null,null,null,null,null,null,"",null,""]
[null,null,null,null,null,null,null,null,null,null,null,null,null,null,null,null,null,null,"",null,""]
[null,null,null,null,null,null,null,null,null,null,null,null,null,null,null,null,null,null,"",null,""]
[null,null,null,null,null,null,null,null,null,null,null,null,null,null,null,null,null,null,"",null,""]
[null,null,null,null,null,null,null,null,null,null,null,null,null,null,null,null,null,null,"",null,""]
[null,null,null,null,null,null,null,null,null,null,null,null,null,null,null,null,null,null,"",null,""]
[null,null,null,null,null,null,null,null,null,null,null,null,null,null,null,null,null,null,{"$f":"IF(R58<>\"\",LEN(R58),\"\")","v":""},null,{"$f":"IF(T58<>\"\",LEN(T58),\"\")","v":""}]
[null,null,null,null,null,null,null,null,null,null,null,null,null,null,null,null,null,null,"",null,""]
[null,null,null,null,null,null,null,null,null,null,null,null,null,null,null,null,null,null,"",null,""]
[null,null,null,null,null,null,null,null,null,null,null,null,null,null,null,null,null,null,"",null,""]
[null,null,null,null,null,null,null,null,null,null,null,null,null,null,null,null,null,null,"",null,""]
[null,null,null,null,null,null,null,null,null,null,null,null,null,null,null,null,null,null,"",null,""]
[null,null,null,null,null,null,null,null,null,null,null,null,null,null,null,null,null,null,"",null,""]
[null,null,null,null,null,null,null,null,null,null,null,null,null,null,null,null,null,null,"",null,""]
[null,null,null,null,null,null,null,null,null,null,null,null,null,null,null,null,null,null,"",null,""]
[null,null,null,null,null,null,null,null,null,null,null,null,null,null,null,null,null,null,"",null,""]
[null,null,null,null,null,null,null,null,null,null,null,null,null,null,null,null,null,null,"",null,""]
[null,null,null,null,null,null,null,null,null,null,null,null,null,null,null,null,null,null,"",null,""]
[null,null,null,null,null,null,null,null,null,null,null,null,null,null,null,null,null,null,"",null,""]
[null,null,null,null,null,null,null,null,null,null,null,null,null,null,null,null,null,null,"",null,""]
[null,null,null,null,null,null,null,null,null,null,null,null,null,null,null,null,null,null,"",null,""]
[null,null,null,null,null,null,null,null,null,null,null,null,null,null,null,null,null,null,"",null,""]
[null,null,null,null,null,null,null,null,null,null,null,null,null,null,null,null,null,null,"",null,""]
[null,null,null,null,null,null,null,null,null,null,null,null,null,null,null,null,null,null,"",null,""]
[null,null,null,null,null,null,null,null,null,null,null,null,null,null,null,null,null,null,"",null,""]
[null,null,null,null,null,null,null,null,null,null,null,null,null,null,null,null,null,null,"",null,""]
[null,null,null,null,null,null,null,null,null,null,null,null,null,null,null,null,null,null,"",null,""]
[null,null,null,null,null,null,null,null,null,null,null,null,null,null,null,null,null,null,"",null,""]
[null,null,null,null,null,null,null,null,null,null,null,null,null,null,null,null,null,null,"",null,""]
[null,null,null,null,null,null,null,null,null,null,null,null,null,null,null,null,null,null,"",null,""]
[null,null,null,null,null,null,null,null,null,null,null,null,null,null,null,null,null,null,"",null,""]
[null,null,null,null,null,null,null,null,null,null,null,null,null,null,null,null,null,null,"",null,""]
[null,null,null,null,null,null,null,null,null,null,null,null,null,null,null,null,null,null,"",null,""]
[null,null,null,null,null,null,null,null,null,null,null,null,null,null,null,null,null,null,"",null,""]
[null,null,null,null,null,null,null,null,null,null,null,null,null,null,null,null,null,null,"",null,""]
[null,null,null,null,null,null,null,null,null,null,null,null,null,null,null,null,null,null,"",null,""]
[null,null,null,null,null,null,null,null,null,null,null,null,null,null,null,null,null,null,"",null,""]
[null,null,null,null,null,null,null,null,null,null,null,null,null,null,null,null,null,null,"",null,""]
[null,null,null,null,null,null,null,null,null,null,null,null,null,null,null,null,null,null,"",null,""]
[null,null,null,null,null,null,null,null,null,null,null,null,null,null,null,null,null,null,"",null,""]
[null,null,null,null,null,null,null,null,null,null,null,null,null,null,null,null,null,null,"",null,""]
[null,null,null,null,null,null,null,null,null,null,null,null,null,null,null,null,null,null,"",null,""]
[null,null,null,null,null,null,null,null,null,null,null,null,null,null,null,null,null,null,"",null,""]
[null,null,null,null,null,null,null,null,null,null,null,null,null,null,null,null,null,null,"",null,""]
[null,null,null,null,null,null,null,null,null,null,null,null,null,null,null,null,null,null,"",null,""]
[null,null,null,null,null,null,null,null,null,null,null,null,null,null,null,null,null,null,"",null,""]
[null,null,null,null,null,null,null,null,null,null,null,null,null,null,null,null,null,null,"",null,""]
[null,null,null,null,null,null,null,null,null,null,null,null,null,null,null,null,null,null,"",null,""]
[null,null,null,null,null,null,null,null,null,null,null,null,null,null,null,null,null,null,"",null,""]
[null,null,null,null,null,null,null,null,null,null,null,null,null,null,null,null,null,null,"",null,""]
[null,null,null,null,null,null,null,null,null,null,null,null,null,null,null,null,null,null,"",null,""]
[null,null,null,null,null,null,null,null,null,null,null,null,null,null,null,null,null,null,"",null,""]
[null,null,null,null,null,null,null,null,null,null,null,null,null,null,null,null,null,null,"",null,""]
[null,null,null,null,null,null,null,null,null,null,null,null,null,null,null,null,null,null,"",null,""]
[null,null,null,null,null,null,null,null,null,null,null,null,null,null,null,null,null,null,"",null,""]
[null,null,null,null,null,null,null,null,null,null,null,null,null,null,null,null,null,null,"",null,""]
[null,null,null,null,null,null,null,null,null,null,null,null,null,null,null,null,null,null,"",null,""]
[null,null,null,null,null,null,null,null,null,null,null,null,null,null,null,null,null,null,"",null,""]
[null,null,null,null,null,null,null,null,null,null,null,null,null,null,null,null,null,null,"",null,""]
[null,null,null,null,null,null,null,null,null,null,null,null,null,null,null,null,null,null,"",null,""]
[null,null,null,null,null,null,null,null,null,null,null,null,null,null,null,null,null,null,"",null,""]
[null,null,null,null,null,null,null,null,null,null,null,null,null,null,null,null,null,null,"",null,""]
[null,null,null,null,null,null,null,null,null,null,null,null,null,null,null,null,null,null,"",null,""]
[null,null,null,null,null,null,null,null,null,null,null,null,null,null,null,null,null,null,"",null,""]
[null,null,null,null,null,null,null,null,null,null,null,null,null,null,null,null,null,null,"",null,""]
[null,null,null,null,null,null,null,null,null,null,null,null,null,null,null,null,null,null,"",null,""]
[null,null,null,null,null,null,null,null,null,null,null,null,null,null,null,null,null,null,"",null,""]
[null,null,null,null,null,null,null,null,null,null,null,null,null,null,null,null,null,null,"",null,""]
[null,null,null,null,null,null,null,null,null,null,null,null,null,null,null,null,null,null,"",null,""]
[null,null,null,null,null,null,null,null,null,null,null,null,null,null,null,null,null,null,"",null,""]
[null,null,null,null,null,null,null,null,null,null,null,null,null,null,null,null,null,null,{"$f":"IF(R122<>\"\",LEN(R122),\"\")","v":""},null,{"$f":"IF(T122<>\"\",LEN(T122),\"\")","v":""}]
[null,null,null,null,null,null,null,null,null,null,null,null,null,null,null,null,null,null,"",null,""]
[null,null,null,null,null,null,null,null,null,null,null,null,null,null,null,null,null,null,"",null,""]
[null,null,null,null,null,null,null,null,null,null,null,null,null,null,null,null,null,null,"",null,""]
[null,null,null,null,null,null,null,null,null,null,null,null,null,null,null,null,null,null,"",null,""]
[null,null,null,null,null,null,null,null,null,null,null,null,null,null,null,null,null,null,"",null,""]
[null,null,null,null,null,null,null,null,null,null,null,null,null,null,null,null,null,null,"",null,""]
[null,null,null,null,null,null,null,null,null,null,null,null,null,null,null,null,null,null,"",null,""]
[null,null,null,null,null,null,null,null,null,null,null,null,null,null,null,null,null,null,"",null,""]
[null,null,null,null,null,null,null,null,null,null,null,null,null,null,null,null,null,null,"",null,""]
[null,null,null,null,null,null,null,null,null,null,null,null,null,null,null,null,null,null,"",null,""]
[null,null,null,null,null,null,null,null,null,null,null,null,null,null,null,null,null,null,"",null,""]
[null,null,null,null,null,null,null,null,null,null,null,null,null,null,null,null,null,null,"",null,""]
[null,null,null,null,null,null,null,null,null,null,null,null,null,null,null,null,null,null,"",null,""]
[null,null,null,null,null,null,null,null,null,null,null,null,null,null,null,null,null,null,"",null,""]
[null,null,null,null,null,null,null,null,null,null,null,null,null,null,null,null,null,null,"",null,""]
[null,null,null,null,null,null,null,null,null,null,null,null,null,null,null,null,null,null,"",null,""]
[null,null,null,null,null,null,null,null,null,null,null,null,null,null,null,null,null,null,"",null,""]
[null,null,null,null,null,null,null,null,null,null,null,null,null,null,null,null,null,null,"",null,""]
[null,null,null,null,null,null,null,null,null,null,null,null,null,null,null,null,null,null,"",null,""]
[null,null,null,null,null,null,null,null,null,null,null,null,null,null,null,null,null,null,"",null,""]
[null,null,null,null,null,null,null,null,null,null,null,null,null,null,null,null,null,null,"",null,""]
[null,null,null,null,null,null,null,null,null,null,null,null,null,null,null,null,null,null,"",null,""]
[null,null,null,null,null,null,null,null,null,null,null,null,null,null,null,null,null,null,"",null,""]
[null,null,null,null,null,null,null,null,null,null,null,null,null,null,null,null,null,null,"",null,""]
[null,null,null,null,null,null,null,null,null,null,null,null,null,null,null,null,null,null,"",null,""]
[null,null,null,null,null,null,null,null,null,null,null,null,null,null,null,null,null,null,"",null,""]
[null,null,null,null,null,null,null,null,null,null,null,null,null,null,null,null,null,null,"",null,""]
[null,null,null,null,null,null,null,null,null,null,null,null,null,null,null,null,null,null,"",null,""]
[null,null,null,null,null,null,null,null,null,null,null,null,null,null,null,null,null,null,"",null,""]
[null,null,null,null,null,null,null,null,null,null,null,null,null,null,null,null,null,null,"",null,""]
[null,null,null,null,null,null,null,null,null,null,null,null,null,null,null,null,null,null,"",null,""]
[null,null,null,null,null,null,null,null,null,null,null,null,null,null,null,null,null,null,"",null,""]
[null,null,null,null,null,null,null,null,null,null,null,null,null,null,null,null,null,null,"",null,""]
[null,null,null,null,null,null,null,null,null,null,null,null,null,null,null,null,null,null,"",null,""]
[null,null,null,null,null,null,null,null,null,null,null,null,null,null,null,null,null,null,"",null,""]
[null,null,null,null,null,null,null,null,null,null,null,null,null,null,null,null,null,null,"",null,""]
[null,null,null,null,null,null,null,null,null,null,null,null,null,null,null,null,null,null,"",null,""]
[null,null,null,null,null,null,null,null,null,null,null,null,null,null,null,null,null,null,"",null,""]
[null,null,null,null,null,null,null,null,null,null,null,null,null,null,null,null,null,null,"",null,""]
[null,null,null,null,null,null,null,null,null,null,null,null,null,null,null,null,null,null,"",null,""]
[null,null,null,null,null,null,null,null,null,null,null,null,null,null,null,null,null,null,"",null,""]
[null,null,null,null,null,null,null,null,null,null,null,null,null,null,null,null,null,null,"",null,""]
[null,null,null,null,null,null,null,null,null,null,null,null,null,null,null,null,null,null,"",null,""]
[null,null,null,null,null,null,null,null,null,null,null,null,null,null,null,null,null,null,"",null,""]
[null,null,null,null,null,null,null,null,null,null,null,null,null,null,null,null,null,null,"",null,""]
[null,null,null,null,null,null,null,null,null,null,null,null,null,null,null,null,null,null,"",null,""]
[null,null,null,null,null,null,null,null,null,null,null,null,null,null,null,null,null,null,"",null,""]
[null,null,null,null,null,null,null,null,null,null,null,null,null,null,null,null,null,null,"",null,""]
[null,null,null,null,null,null,null,null,null,null,null,null,null,null,null,null,null,null,"",null,""]
[null,null,null,null,null,null,null,null,null,null,null,null,null,null,null,null,null,null,"",null,""]
[null,null,null,null,null,null,null,null,null,null,null,null,null,null,null,null,null,null,"",null,""]
[null,null,null,null,null,null,null,null,null,null,null,null,null,null,null,null,null,null,"",null,""]
[null,null,null,null,null,null,null,null,null,null,null,null,null,null,null,null,null,null,"",null,""]
[null,null,null,null,null,null,null,null,null,null,null,null,null,null,null,null,null,null,"",null,""]
[null,null,null,null,null,null,null,null,null,null,null,null,null,null,null,null,null,null,"",null,""]
[null,null,null,null,null,null,null,null,null,null,null,null,null,null,null,null,null,null,"",null,""]
[null,null,null,null,null,null,null,null,null,null,null,null,null,null,null,null,null,null,"",null,""]
[null,null,null,null,null,null,null,null,null,null,null,null,null,null,null,null,null,null,"",null,""]
[null,null,null,null,null,null,null,null,null,null,null,null,null,null,null,null,null,null,"",null,""]
[null,null,null,null,null,null,null,null,null,null,null,null,null,null,null,null,null,null,"",null,""]
[null,null,null,null,null,null,null,null,null,null,null,null,null,null,null,null,null,null,"",null,""]
[null,null,null,null,null,null,null,null,null,null,null,null,null,null,null,null,null,null,"",null,""]
[null,null,null,null,null,null,null,null,null,null,null,null,null,null,null,null,null,null,"",null,""]
[null,null,null,null,null,null,null,null,null,null,null,null,null,null,null,null,null,null,{"$f":"IF(R186<>\"\",LEN(R186),\"\")","v":""},null,{"$f":"IF(T186<>\"\",LEN(T186),\"\")","v":""}]
[null,null,null,null,null,null,null,null,null,null,null,null,null,null,null,null,null,null,"",null,""]
[null,null,null,null,null,null,null,null,null,null,null,null,null,null,null,null,null,null,"",null,""]
[null,null,null,null,null,null,null,null,null,null,null,null,null,null,null,null,null,null,{"$f":"IF(R189<>\"\",LEN(R189),\"\")","v":""},null,{"$f":"IF(T189<>\"\",LEN(T189),\"\")","v":""}]
[null,null,null,null,null,null,null,null,null,null,null,null,null,null,null,null,null,null,"",null,""]
[null,null,null,null,null,null,null,null,null,null,null,null,null,null,null,null,null,null,"",null,""]
[null,null,null,null,null,null,null,null,null,null,null,null,null,null,null,null,null,null,"",null,""]
[null,null,null,null,null,null,null,null,null,null,null,null,null,null,null,null,null,null,"",null,""]
[null,null,null,null,null,null,null,null,null,null,null,null,null,null,null,null,null,null,"",null,""]
[null,null,null,null,null,null,null,null,null,null,null,null,null,null,null,null,null,null,"",null,""]
[null,null,null,null,null,null,null,null,null,null,null,null,null,null,null,null,null,null,"",null,""]
[null,null,null,null,null,null,null,null,null,null,null,null,null,null,null,null,null,null,"",null,""]
[null,null,null,null,null,null,null,null,null,null,null,null,null,null,null,null,null,null,"",null,""]
[null,null,null,null,null,null,null,null,null,null,null,null,null,null,null,null,null,null,"",null,""]
[null,null,null,null,null,null,null,null,null,null,null,null,null,null,null,null,null,null,"",null,""]

{"sheet":"Prices and logistic data","index":1,"n_rows":200,"n_cols":124,"rows_kept":200,"cut":false,"hidden":false,"merged":[[2,110,2,123],[2,99,2,109],[2,0,3,0],[2,1,3,1],[2,37,2,49],[2,80,2,98],[2,50,2,63],[2,21,2,36],[2,2,2,20],[2,64,2,79]]}
[]
[null,null,null,"To be filled by vendor",null,null,null,null,"To be filled by buying dep.",null,null,null,null,null,null,"To be filled by Master Data."]
["GTIN","Article description","Purchase data and price (per unit)                         Purchase data and price (per unit)                         Purchase data and price (per unit)",null,null,null,null,null,null,null,null,null,null,null,null,null,null,null,null,null,null,"Sales price                                        Sales price                                        Sales price      ",null,null,null,null,null,null,null,null,null,null,null,null,null,null,null,"Flow type                                                                                       Flow type                                                                                        Flow type                                                                                        Flow type                                                           ",null,null,null,null,null,null,null,null,null,null,null,null,"Bonus buy                                   Bonus buy                                   Bonus buy    ",null,null,null,null,null,null,null,null,null,null,null,null,null,"Supply source                                                            Supply source                                                           Supply source ",null,null,null,null,null,null,null,null,null,null,null,null,null,null,null,"Rule based/Layout module                                             Rule based/Layout module                                             Rule based/Layout module",null,null,null,null,null,null,null,null,null,null,null,null,null,null,null,null,null,null,"Consignment control (LEL)                        Consignment control (LEL)           ",null,null,null,null,null,null,null,null,null,null,"Order cut off                                        Order cut off                                        Order cut off                                         "]
[null,null,"Purchase group","Incoterm + place","Vendor\nArticle number","Delivery \ndays","Shipping  Instruction","Same\nfor all","Salling","føtex","føtex food","føtex home delivery","Bilka","føtex.dk/Bilka.dk","Wupti","Netto DK","Netto SE","Starbucks","Carls Jr","BR","Currency","Rec. sales \nprice","Same\nfor all","Salling","føtex","føtex.dk","føtex food","føtex \nconvenience","føtex home delivery","Bilka","Bilka.dk","Wupti","Netto DK","Netto SE","Starbucks","Carls Jr","BR","Same\nfor all","Salling","føtex","føtex food","føtex home delivery","Bilka","føtex.dk/Bilka.dk","Wupti","Netto DK","Netto SE","Starbucks","Carls Jr","BR","Salling","føtex","føtex.dk","føtex food","føtex convenience","føtex home delivery","Bilka","Bilka.dk","Wupti","Netto DK","Netto SE","Starbucks","Carls Jr","BR","Same\nfor all","Salling","føtex","føtex food","føtex convenience","føtex.dk/Bilka.dk","føtex home delivery","Wupti","Bilka","Netto DK","Netto SE","Starbucks","Carls Jr","BR","Flow Through","Cross docking","Same\nfor all","Salling","LM number Salling","føtex","LM number føtex","føtex food","LM number føtex food","føtex convenience","LM number føtex convenience","føtex home delivery","LM number føtex home delivery","Bilka","LM number Bilka","Netto DK","LM number Netto DK","Starbucks","Carls Jr","BR","LM number BR","Same\nfor all","Salling","føtex","føtex food","føtex home delivery","Bilka","Netto DK","Starbucks","Carls Jr","BR","DC","Same\nfor all","Salling","føtex","føtex food","føtex convenience","føtex.dk/Bilka.dk","føtex home delivery","Wupti","Bilka","Netto DK","Netto SE","Starbucks","Carls Jr","BR"]
[{"$f":"IF('Product registration form'!V5<>\"\",'Product registration form'!V5,\"\")","v":""},{"$f":"IF('Product registration form'!R5<>\"\",'Product registration form'!R5,\"\")","v":""}]
[{"$f":"IF('Product registration form'!V6<>\"\",'Product registration form'!V6,\"\")","v":""},{"$f":"IF('Product registration form'!R6<>\"\",'Product registration form'!R6,\"\")","v":""}]
[{"$f":"IF('Product registration form'!V7<>\"\",'Product registration form'!V7,\"\")","v":""},{"$f":"IF('Product registration form'!R7<>\"\",'Product registration form'!R7,\"\")","v":""}]
[{"$f":"IF('Product registration form'!V8<>\"\",'Product registration form'!V8,\"\")","v":""},{"$f":"IF('Product registration form'!R8<>\"\",'Product registration form'!R8,\"\")","v":""}]
[{"$f":"IF('Product registration form'!V9<>\"\",'Product registration form'!V9,\"\")","v":""},{"$f":"IF('Product registration form'!R9<>\"\",'Product registration form'!R9,\"\")","v":""}]
[{"$f":"IF('Product registration form'!V10<>\"\",'Product registration form'!V10,\"\")","v":""},{"$f":"IF('Product registration form'!R10<>\"\",'Product registration form'!R10,\"\")","v":""}]
[{"$f":"IF('Product registration form'!V11<>\"\",'Product registration form'!V11,\"\")","v":""},{"$f":"IF('Product registration form'!R11<>\"\",'Product registration form'!R11,\"\")","v":""}]
[{"$f":"IF('Product registration form'!V12<>\"\",'Product registration form'!V12,\"\")","v":""},{"$f":"IF('Product registration form'!R12<>\"\",'Product registration form'!R12,\"\")","v":""}]
[{"$f":"IF('Product registration form'!V13<>\"\",'Product registration form'!V13,\"\")","v":""},{"$f":"IF('Product registration form'!R13<>\"\",'Product registration form'!R13,\"\")","v":""}]
[{"$f":"IF('Product registration form'!V14<>\"\",'Product registration form'!V14,\"\")","v":""},{"$f":"IF('Product registration form'!R14<>\"\",'Product registration form'!R14,\"\")","v":""}]
[{"$f":"IF('Product registration form'!V15<>\"\",'Product registration form'!V15,\"\")","v":""},{"$f":"IF('Product registration form'!R15<>\"\",'Product registration form'!R15,\"\")","v":""}]
[{"$f":"IF('Product registration form'!V16<>\"\",'Product registration form'!V16,\"\")","v":""},{"$f":"IF('Product registration form'!R16<>\"\",'Product registration form'!R16,\"\")","v":""}]
[{"$f":"IF('Product registration form'!V17<>\"\",'Product registration form'!V17,\"\")","v":""},{"$f":"IF('Product registration form'!R17<>\"\",'Product registration form'!R17,\"\")","v":""}]
[{"$f":"IF('Product registration form'!V18<>\"\",'Product registration form'!V18,\"\")","v":""},{"$f":"IF('Product registration form'!R18<>\"\",'Product registration form'!R18,\"\")","v":""}]
[{"$f":"IF('Product registration form'!V19<>\"\",'Product registration form'!V19,\"\")","v":""},{"$f":"IF('Product registration form'!R19<>\"\",'Product registration form'!R19,\"\")","v":""}]
[{"$f":"IF('Product registration form'!V20<>\"\",'Product registration form'!V20,\"\")","v":""},{"$f":"IF('Product registration form'!R20<>\"\",'Product registration form'!R20,\"\")","v":""}]
[{"$f":"IF('Product registration form'!V21<>\"\",'Product registration form'!V21,\"\")","v":""},{"$f":"IF('Product registration form'!R21<>\"\",'Product registration form'!R21,\"\")","v":""}]
[{"$f":"IF('Product registration form'!V22<>\"\",'Product registration form'!V22,\"\")","v":""},{"$f":"IF('Product registration form'!R22<>\"\",'Product registration form'!R22,\"\")","v":""}]
[{"$f":"IF('Product registration form'!V23<>\"\",'Product registration form'!V23,\"\")","v":""},{"$f":"IF('Product registration form'!R23<>\"\",'Product registration form'!R23,\"\")","v":""}]
[{"$f":"IF('Product registration form'!V24<>\"\",'Product registration form'!V24,\"\")","v":""},{"$f":"IF('Product registration form'!R24<>\"\",'Product registration form'!R24,\"\")","v":""}]
[{"$f":"IF('Product registration form'!V25<>\"\",'Product registration form'!V25,\"\")","v":""},{"$f":"IF('Product registration form'!R25<>\"\",'Product registration form'!R25,\"\")","v":""}]
[{"$f":"IF('Product registration form'!V26<>\"\",'Product registration form'!V26,\"\")","v":""},{"$f":"IF('Product registration form'!R26<>\"\",'Product registration form'!R26,\"\")","v":""}]
[{"$f":"IF('Product registration form'!V27<>\"\",'Product registration form'!V27,\"\")","v":""},{"$f":"IF('Product registration form'!R27<>\"\",'Product registration form'!R27,\"\")","v":""}]
[{"$f":"IF('Product registration form'!V28<>\"\",'Product registration form'!V28,\"\")","v":""},{"$f":"IF('Product registration form'!R28<>\"\",'Product registration form'!R28,\"\")","v":""}]
[{"$f":"IF('Product registration form'!V29<>\"\",'Product registration form'!V29,\"\")","v":""},{"$f":"IF('Product registration form'!R29<>\"\",'Product registration form'!R29,\"\")","v":""}]
[{"$f":"IF('Product registration form'!V30<>\"\",'Product registration form'!V30,\"\")","v":""},{"$f":"IF('Product registration form'!R30<>\"\",'Product registration form'!R30,\"\")","v":""}]
[{"$f":"IF('Product registration form'!V31<>\"\",'Product registration form'!V31,\"\")","v":""},{"$f":"IF('Product registration form'!R31<>\"\",'Product registration form'!R31,\"\")","v":""}]
[{"$f":"IF('Product registration form'!V32<>\"\",'Product registration form'!V32,\"\")","v":""},{"$f":"IF('Product registration form'!R32<>\"\",'Product registration form'!R32,\"\")","v":""}]
[{"$f":"IF('Product registration form'!V33<>\"\",'Product registration form'!V33,\"\")","v":""},{"$f":"IF('Product registration form'!R33<>\"\",'Product registration form'!R33,\"\")","v":""}]
[{"$f":"IF('Product registration form'!V34<>\"\",'Product registration form'!V34,\"\")","v":""},{"$f":"IF('Product registration form'!R34<>\"\",'Product registration form'!R34,\"\")","v":""}]
[{"$f":"IF('Product registration form'!V35<>\"\",'Product registration form'!V35,\"\")","v":""},{"$f":"IF('Product registration form'!R35<>\"\",'Product registration form'!R35,\"\")","v":""}]
[{"$f":"IF('Product registration form'!V36<>\"\",'Product registration form'!V36,\"\")","v":""},{"$f":"IF('Product registration form'!R36<>\"\",'Product registration form'!R36,\"\")","v":""}]
[{"$f":"IF('Product registration form'!V37<>\"\",'Product registration form'!V37,\"\")","v":""},{"$f":"IF('Product registration form'!R37<>\"\",'Product registration form'!R37,\"\")","v":""}]
[{"$f":"IF('Product registration form'!V38<>\"\",'Product registration form'!V38,\"\")","v":""},{"$f":"IF('Product registration form'!R38<>\"\",'Product registration form'!R38,\"\")","v":""}]
[{"$f":"IF('Product registration form'!V39<>\"\",'Product registration form'!V39,\"\")","v":""},{"$f":"IF('Product registration form'!R39<>\"\",'Product registration form'!R39,\"\")","v":""}]
[{"$f":"IF('Product registration form'!V40<>\"\",'Product registration form'!V40,\"\")","v":""},{"$f":"IF('Product registration form'!R40<>\"\",'Product registration form'!R40,\"\")","v":""}]
[{"$f":"IF('Product registration form'!V41<>\"\",'Product registration form'!V41,\"\")","v":""},{"$f":"IF('Product registration form'!R41<>\"\",'Product registration form'!R41,\"\")","v":""}]
[{"$f":"IF('Product registration form'!V42<>\"\",'Product registration form'!V42,\"\")","v":""},{"$f":"IF('Product registration form'!R42<>\"\",'Product registration form'!R42,\"\")","v":""}]
[{"$f":"IF('Product registration form'!V43<>\"\",'Product registration form'!V43,\"\")","v":""},{"$f":"IF('Product registration form'!R43<>\"\",'Product registration form'!R43,\"\")","v":""}]
[{"$f":"IF('Product registration form'!V44<>\"\",'Product registration form'!V44,\"\")","v":""},{"$f":"IF('Product registration form'!R44<>\"\",'Product registration form'!R44,\"\")","v":""}]
[{"$f":"IF('Product registration form'!V45<>\"\",'Product registration form'!V45,\"\")","v":""},{"$f":"IF('Product registration form'!R45<>\"\",'Product registration form'!R45,\"\")","v":""}]
[{"$f":"IF('Product registration form'!V46<>\"\",'Product registration form'!V46,\"\")","v":""},{"$f":"IF('Product registration form'!R46<>\"\",'Product registration form'!R46,\"\")","v":""}]
[{"$f":"IF('Product registration form'!V47<>\"\",'Product registration form'!V47,\"\")","v":""},{"$f":"IF('Product registration form'!R47<>\"\",'Product registration form'!R47,\"\")","v":""}]
[{"$f":"IF('Product registration form'!V48<>\"\",'Product registration form'!V48,\"\")","v":""},{"$f":"IF('Product registration form'!R48<>\"\",'Product registration form'!R48,\"\")","v":""}]
[{"$f":"IF('Product registration form'!V49<>\"\",'Product registration form'!V49,\"\")","v":""},{"$f":"IF('Product registration form'!R49<>\"\",'Product registration form'!R49,\"\")","v":""}]
[{"$f":"IF('Product registration form'!V50<>\"\",'Product registration form'!V50,\"\")","v":""},{"$f":"IF('Product registration form'!R50<>\"\",'Product registration form'!R50,\"\")","v":""}]
[{"$f":"IF('Product registration form'!V51<>\"\",'Product registration form'!V51,\"\")","v":""},{"$f":"IF('Product registration form'!R51<>\"\",'Product registration form'!R51,\"\")","v":""}]
[{"$f":"IF('Product registration form'!V52<>\"\",'Product registration form'!V52,\"\")","v":""},{"$f":"IF('Product registration form'!R52<>\"\",'Product registration form'!R52,\"\")","v":""}]
[{"$f":"IF('Product registration form'!V53<>\"\",'Product registration form'!V53,\"\")","v":""},{"$f":"IF('Product registration form'!R53<>\"\",'Product registration form'!R53,\"\")","v":""}]
[{"$f":"IF('Product registration form'!V54<>\"\",'Product registration form'!V54,\"\")","v":""},{"$f":"IF('Product registration form'!R54<>\"\",'Product registration form'!R54,\"\")","v":""}]
[{"$f":"IF('Product registration form'!V55<>\"\",'Product registration form'!V55,\"\")","v":""},{"$f":"IF('Product registration form'!R55<>\"\",'Product registration form'!R55,\"\")","v":""}]
[{"$f":"IF('Product registration form'!V56<>\"\",'Product registration form'!V56,\"\")","v":""},{"$f":"IF('Product registration form'!R56<>\"\",'Product registration form'!R56,\"\")","v":""}]
[{"$f":"IF('Product registration form'!V57<>\"\",'Product registration form'!V57,\"\")","v":""},{"$f":"IF('Product registration form'!R57<>\"\",'Product registration form'!R57,\"\")","v":""}]
[{"$f":"IF('Product registration form'!V58<>\"\",'Product registration form'!V58,\"\")","v":""},{"$f":"IF('Product registration form'!R58<>\"\",'Product registration form'!R58,\"\")","v":""}]
[{"$f":"IF('Product registration form'!V59<>\"\",'Product registration form'!V59,\"\")","v":""},{"$f":"IF('Product registration form'!R59<>\"\",'Product registration form'!R59,\"\")","v":""}]
[{"$f":"IF('Product registration form'!V60<>\"\",'Product registration form'!V60,\"\")","v":""},{"$f":"IF('Product registration form'!R60<>\"\",'Product registration form'!R60,\"\")","v":""}]
[{"$f":"IF('Product registration form'!V61<>\"\",'Product registration form'!V61,\"\")","v":""},{"$f":"IF('Product registration form'!R61<>\"\",'Product registration form'!R61,\"\")","v":""}]
[{"$f":"IF('Product registration form'!V62<>\"\",'Product registration form'!V62,\"\")","v":""},{"$f":"IF('Product registration form'!R62<>\"\",'Product registration form'!R62,\"\")","v":""}]
[{"$f":"IF('Product registration form'!V63<>\"\",'Product registration form'!V63,\"\")","v":""},{"$f":"IF('Product registration form'!R63<>\"\",'Product registration form'!R63,\"\")","v":""}]
[{"$f":"IF('Product registration form'!V64<>\"\",'Product registration form'!V64,\"\")","v":""},{"$f":"IF('Product registration form'!R64<>\"\",'Product registration form'!R64,\"\")","v":""}]
[{"$f":"IF('Product registration form'!V65<>\"\",'Product registration form'!V65,\"\")","v":""},{"$f":"IF('Product registration form'!R65<>\"\",'Product registration form'!R65,\"\")","v":""}]
[{"$f":"IF('Product registration form'!V66<>\"\",'Product registration form'!V66,\"\")","v":""},{"$f":"IF('Product registration form'!R66<>\"\",'Product registration form'!R66,\"\")","v":""}]
[{"$f":"IF('Product registration form'!V67<>\"\",'Product registration form'!V67,\"\")","v":""},{"$f":"IF('Product registration form'!R67<>\"\",'Product registration form'!R67,\"\")","v":""}]
[{"$f":"IF('Product registration form'!V68<>\"\",'Product registration form'!V68,\"\")","v":""},{"$f":"IF('Product registration form'!R68<>\"\",'Product registration form'!R68,\"\")","v":""}]
[{"$f":"IF('Product registration form'!V69<>\"\",'Product registration form'!V69,\"\")","v":""},{"$f":"IF('Product registration form'!R69<>\"\",'Product registration form'!R69,\"\")","v":""}]
[{"$f":"IF('Product registration form'!V70<>\"\",'Product registration form'!V70,\"\")","v":""},{"$f":"IF('Product registration form'!R70<>\"\",'Product registration form'!R70,\"\")","v":""}]
[{"$f":"IF('Product registration form'!V71<>\"\",'Product registration form'!V71,\"\")","v":""},{"$f":"IF('Product registration form'!R71<>\"\",'Product registration form'!R71,\"\")","v":""}]
[{"$f":"IF('Product registration form'!V72<>\"\",'Product registration form'!V72,\"\")","v":""},{"$f":"IF('Product registration form'!R72<>\"\",'Product registration form'!R72,\"\")","v":""}]
[{"$f":"IF('Product registration form'!V73<>\"\",'Product registration form'!V73,\"\")","v":""},{"$f":"IF('Product registration form'!R73<>\"\",'Product registration form'!R73,\"\")","v":""}]
[{"$f":"IF('Product registration form'!V74<>\"\",'Product registration form'!V74,\"\")","v":""},{"$f":"IF('Product registration form'!R74<>\"\",'Product registration form'!R74,\"\")","v":""}]
[{"$f":"IF('Product registration form'!V75<>\"\",'Product registration form'!V75,\"\")","v":""},{"$f":"IF('Product registration form'!R75<>\"\",'Product registration form'!R75,\"\")","v":""}]
[{"$f":"IF('Product registration form'!V76<>\"\",'Product registration form'!V76,\"\")","v":""},{"$f":"IF('Product registration form'!R76<>\"\",'Product registration form'!R76,\"\")","v":""}]
[{"$f":"IF('Product registration form'!V77<>\"\",'Product registration form'!V77,\"\")","v":""},{"$f":"IF('Product registration form'!R77<>\"\",'Product registration form'!R77,\"\")","v":""}]
[{"$f":"IF('Product registration form'!V78<>\"\",'Product registration form'!V78,\"\")","v":""},{"$f":"IF('Product registration form'!R78<>\"\",'Product registration form'!R78,\"\")","v":""}]
[{"$f":"IF('Product registration form'!V79<>\"\",'Product registration form'!V79,\"\")","v":""},{"$f":"IF('Product registration form'!R79<>\"\",'Product registration form'!R79,\"\")","v":""}]
[{"$f":"IF('Product registration form'!V80<>\"\",'Product registration form'!V80,\"\")","v":""},{"$f":"IF('Product registration form'!R80<>\"\",'Product registration form'!R80,\"\")","v":""}]
[{"$f":"IF('Product registration form'!V81<>\"\",'Product registration form'!V81,\"\")","v":""},{"$f":"IF('Product registration form'!R81<>\"\",'Product registration form'!R81,\"\")","v":""}]
[{"$f":"IF('Product registration form'!V82<>\"\",'Product registration form'!V82,\"\")","v":""},{"$f":"IF('Product registration form'!R82<>\"\",'Product registration form'!R82,\"\")","v":""}]
[{"$f":"IF('Product registration form'!V83<>\"\",'Product registration form'!V83,\"\")","v":""},{"$f":"IF('Product registration form'!R83<>\"\",'Product registration form'!R83,\"\")","v":""}]
[{"$f":"IF('Product registration form'!V84<>\"\",'Product registration form'!V84,\"\")","v":""},{"$f":"IF('Product registration form'!R84<>\"\",'Product registration form'!R84,\"\")","v":""}]
[{"$f":"IF('Product registration form'!V85<>\"\",'Product registration form'!V85,\"\")","v":""},{"$f":"IF('Product registration form'!R85<>\"\",'Product registration form'!R85,\"\")","v":""}]
[{"$f":"IF('Product registration form'!V86<>\"\",'Product registration form'!V86,\"\")","v":""},{"$f":"IF('Product registration form'!R86<>\"\",'Product registration form'!R86,\"\")","v":""}]
[{"$f":"IF('Product registration form'!V87<>\"\",'Product registration form'!V87,\"\")","v":""},{"$f":"IF('Product registration form'!R87<>\"\",'Product registration form'!R87,\"\")","v":""}]
[{"$f":"IF('Product registration form'!V88<>\"\",'Product registration form'!V88,\"\")","v":""},{"$f":"IF('Product registration form'!R88<>\"\",'Product registration form'!R88,\"\")","v":""}]
[{"$f":"IF('Product registration form'!V89<>\"\",'Product registration form'!V89,\"\")","v":""},{"$f":"IF('Product registration form'!R89<>\"\",'Product registration form'!R89,\"\")","v":""}]
[{"$f":"IF('Product registration form'!V90<>\"\",'Product registration form'!V90,\"\")","v":""},{"$f":"IF('Product registration form'!R90<>\"\",'Product registration form'!R90,\"\")","v":""}]
[{"$f":"IF('Product registration form'!V91<>\"\",'Product registration form'!V91,\"\")","v":""},{"$f":"IF('Product registration form'!R91<>\"\",'Product registration form'!R91,\"\")","v":""}]
[{"$f":"IF('Product registration form'!V92<>\"\",'Product registration form'!V92,\"\")","v":""},{"$f":"IF('Product registration form'!R92<>\"\",'Product registration form'!R92,\"\")","v":""}]
[{"$f":"IF('Product registration form'!V93<>\"\",'Product registration form'!V93,\"\")","v":""},{"$f":"IF('Product registration form'!R93<>\"\",'Product registration form'!R93,\"\")","v":""}]
[{"$f":"IF('Product registration form'!V94<>\"\",'Product registration form'!V94,\"\")","v":""},{"$f":"IF('Product registration form'!R94<>\"\",'Product registration form'!R94,\"\")","v":""}]
[{"$f":"IF('Product registration form'!V95<>\"\",'Product registration form'!V95,\"\")","v":""},{"$f":"IF('Product registration form'!R95<>\"\",'Product registration form'!R95,\"\")","v":""}]
[{"$f":"IF('Product registration form'!V96<>\"\",'Product registration form'!V96,\"\")","v":""},{"$f":"IF('Product registration form'!R96<>\"\",'Product registration form'!R96,\"\")","v":""}]
[{"$f":"IF('Product registration form'!V97<>\"\",'Product registration form'!V97,\"\")","v":""},{"$f":"IF('Product registration form'!R97<>\"\",'Product registration form'!R97,\"\")","v":""}]
[{"$f":"IF('Product registration form'!V98<>\"\",'Product registration form'!V98,\"\")","v":""},{"$f":"IF('Product registration form'!R98<>\"\",'Product registration form'!R98,\"\")","v":""}]
[{"$f":"IF('Product registration form'!V99<>\"\",'Product registration form'!V99,\"\")","v":""},{"$f":"IF('Product registration form'!R99<>\"\",'Product registration form'!R99,\"\")","v":""}]
[{"$f":"IF('Product registration form'!V100<>\"\",'Product registration form'!V100,\"\")","v":""},{"$f":"IF('Product registration form'!R100<>\"\",'Product registration form'!R100,\"\")","v":""}]
[{"$f":"IF('Product registration form'!V101<>\"\",'Product registration form'!V101,\"\")","v":""},{"$f":"IF('Product registration form'!R101<>\"\",'Product registration form'!R101,\"\")","v":""}]
[{"$f":"IF('Product registration form'!V102<>\"\",'Product registration form'!V102,\"\")","v":""},{"$f":"IF('Product registration form'!R102<>\"\",'Product registration form'!R102,\"\")","v":""}]
[{"$f":"IF('Product registration form'!V103<>\"\",'Product registration form'!V103,\"\")","v":""},{"$f":"IF('Product registration form'!R103<>\"\",'Product registration form'!R103,\"\")","v":""}]
[{"$f":"IF('Product registration form'!V104<>\"\",'Product registration form'!V104,\"\")","v":""},{"$f":"IF('Product registration form'!R104<>\"\",'Product registration form'!R104,\"\")","v":""}]
[{"$f":"IF('Product registration form'!V105<>\"\",'Product registration form'!V105,\"\")","v":""},{"$f":"IF('Product registration form'!R105<>\"\",'Product registration form'!R105,\"\")","v":""}]
[{"$f":"IF('Product registration form'!V106<>\"\",'Product registration form'!V106,\"\")","v":""},{"$f":"IF('Product registration form'!R106<>\"\",'Product registration form'!R106,\"\")","v":""}]
[{"$f":"IF('Product registration form'!V107<>\"\",'Product registration form'!V107,\"\")","v":""},{"$f":"IF('Product registration form'!R107<>\"\",'Product registration form'!R107,\"\")","v":""}]
[{"$f":"IF('Product registration form'!V108<>\"\",'Product registration form'!V108,\"\")","v":""},{"$f":"IF('Product registration form'!R108<>\"\",'Product registration form'!R108,\"\")","v":""}]
[{"$f":"IF('Product registration form'!V109<>\"\",'Product registration form'!V109,\"\")","v":""},{"$f":"IF('Product registration form'!R109<>\"\",'Product registration form'!R109,\"\")","v":""}]
[{"$f":"IF('Product registration form'!V110<>\"\",'Product registration form'!V110,\"\")","v":""},{"$f":"IF('Product registration form'!R110<>\"\",'Product registration form'!R110,\"\")","v":""}]
[{"$f":"IF('Product registration form'!V111<>\"\",'Product registration form'!V111,\"\")","v":""},{"$f":"IF('Product registration form'!R111<>\"\",'Product registration form'!R111,\"\")","v":""}]
[{"$f":"IF('Product registration form'!V112<>\"\",'Product registration form'!V112,\"\")","v":""},{"$f":"IF('Product registration form'!R112<>\"\",'Product registration form'!R112,\"\")","v":""}]
[{"$f":"IF('Product registration form'!V113<>\"\",'Product registration form'!V113,\"\")","v":""},{"$f":"IF('Product registration form'!R113<>\"\",'Product registration form'!R113,\"\")","v":""}]
[{"$f":"IF('Product registration form'!V114<>\"\",'Product registration form'!V114,\"\")","v":""},{"$f":"IF('Product registration form'!R114<>\"\",'Product registration form'!R114,\"\")","v":""}]
[{"$f":"IF('Product registration form'!V115<>\"\",'Product registration form'!V115,\"\")","v":""},{"$f":"IF('Product registration form'!R115<>\"\",'Product registration form'!R115,\"\")","v":""}]
[{"$f":"IF('Product registration form'!V116<>\"\",'Product registration form'!V116,\"\")","v":""},{"$f":"IF('Product registration form'!R116<>\"\",'Product registration form'!R116,\"\")","v":""}]
[{"$f":"IF('Product registration form'!V117<>\"\",'Product registration form'!V117,\"\")","v":""},{"$f":"IF('Product registration form'!R117<>\"\",'Product registration form'!R117,\"\")","v":""}]
[{"$f":"IF('Product registration form'!V118<>\"\",'Product registration form'!V118,\"\")","v":""},{"$f":"IF('Product registration form'!R118<>\"\",'Product registration form'!R118,\"\")","v":""}]
[{"$f":"IF('Product registration form'!V119<>\"\",'Product registration form'!V119,\"\")","v":""},{"$f":"IF('Product registration form'!R119<>\"\",'Product registration form'!R119,\"\")","v":""}]
[{"$f":"IF('Product registration form'!V120<>\"\",'Product registration form'!V120,\"\")","v":""},{"$f":"IF('Product registration form'!R120<>\"\",'Product registration form'!R120,\"\")","v":""}]
[{"$f":"IF('Product registration form'!V121<>\"\",'Product registration form'!V121,\"\")","v":""},{"$f":"IF('Product registration form'!R121<>\"\",'Product registration form'!R121,\"\")","v":""}]
[{"$f":"IF('Product registration form'!V122<>\"\",'Product registration form'!V122,\"\")","v":""},{"$f":"IF('Product registration form'!R122<>\"\",'Product registration form'!R122,\"\")","v":""}]
[{"$f":"IF('Product registration form'!V123<>\"\",'Product registration form'!V123,\"\")","v":""},{"$f":"IF('Product registration form'!R123<>\"\",'Product registration form'!R123,\"\")","v":""}]
[{"$f":"IF('Product registration form'!V124<>\"\",'Product registration form'!V124,\"\")","v":""},{"$f":"IF('Product registration form'!R124<>\"\",'Product registration form'!R124,\"\")","v":""}]
[{"$f":"IF('Product registration form'!V125<>\"\",'Product registration form'!V125,\"\")","v":""},{"$f":"IF('Product registration form'!R125<>\"\",'Product registration form'!R125,\"\")","v":""}]
[{"$f":"IF('Product registration form'!V126<>\"\",'Product registration form'!V126,\"\")","v":""},{"$f":"IF('Product registration form'!R126<>\"\",'Product registration form'!R126,\"\")","v":""}]
[{"$f":"IF('Product registration form'!V127<>\"\",'Product registration form'!V127,\"\")","v":""},{"$f":"IF('Product registration form'!R127<>\"\",'Product registration form'!R127,\"\")","v":""}]
[{"$f":"IF('Product registration form'!V128<>\"\",'Product registration form'!V128,\"\")","v":""},{"$f":"IF('Product registration form'!R128<>\"\",'Product registration form'!R128,\"\")","v":""}]
[{"$f":"IF('Product registration form'!V129<>\"\",'Product registration form'!V129,\"\")","v":""},{"$f":"IF('Product registration form'!R129<>\"\",'Product registration form'!R129,\"\")","v":""}]
[{"$f":"IF('Product registration form'!V130<>\"\",'Product registration form'!V130,\"\")","v":""},{"$f":"IF('Product registration form'!R130<>\"\",'Product registration form'!R130,\"\")","v":""}]
[{"$f":"IF('Product registration form'!V131<>\"\",'Product registration form'!V131,\"\")","v":""},{"$f":"IF('Product registration form'!R131<>\"\",'Product registration form'!R131,\"\")","v":""}]
[{"$f":"IF('Product registration form'!V132<>\"\",'Product registration form'!V132,\"\")","v":""},{"$f":"IF('Product registration form'!R132<>\"\",'Product registration form'!R132,\"\")","v":""}]
[{"$f":"IF('Product registration form'!V133<>\"\",'Product registration form'!V133,\"\")","v":""},{"$f":"IF('Product registration form'!R133<>\"\",'Product registration form'!R133,\"\")","v":""}]
[{"$f":"IF('Product registration form'!V134<>\"\",'Product registration form'!V134,\"\")","v":""},{"$f":"IF('Product registration form'!R134<>\"\",'Product registration form'!R134,\"\")","v":""}]
[{"$f":"IF('Product registration form'!V135<>\"\",'Product registration form'!V135,\"\")","v":""},{"$f":"IF('Product registration form'!R135<>\"\",'Product registration form'!R135,\"\")","v":""}]
[{"$f":"IF('Product registration form'!V136<>\"\",'Product registration form'!V136,\"\")","v":""},{"$f":"IF('Product registration form'!R136<>\"\",'Product registration form'!R136,\"\")","v":""}]
[{"$f":"IF('Product registration form'!V137<>\"\",'Product registration form'!V137,\"\")","v":""},{"$f":"IF('Product registration form'!R137<>\"\",'Product registration form'!R137,\"\")","v":""}]
[{"$f":"IF('Product registration form'!V138<>\"\",'Product registration form'!V138,\"\")","v":""},{"$f":"IF('Product registration form'!R138<>\"\",'Product registration form'!R138,\"\")","v":""}]
[{"$f":"IF('Product registration form'!V139<>\"\",'Product registration form'!V139,\"\")","v":""},{"$f":"IF('Product registration form'!R139<>\"\",'Product registration form'!R139,\"\")","v":""}]
[{"$f":"IF('Product registration form'!V140<>\"\",'Product registration form'!V140,\"\")","v":""},{"$f":"IF('Product registration form'!R140<>\"\",'Product registration form'!R140,\"\")","v":""}]
[{"$f":"IF('Product registration form'!V141<>\"\",'Product registration form'!V141,\"\")","v":""},{"$f":"IF('Product registration form'!R141<>\"\",'Product registration form'!R141,\"\")","v":""}]
[{"$f":"IF('Product registration form'!V142<>\"\",'Product registration form'!V142,\"\")","v":""},{"$f":"IF('Product registration form'!R142<>\"\",'Product registration form'!R142,\"\")","v":""}]
[{"$f":"IF('Product registration form'!V143<>\"\",'Product registration form'!V143,\"\")","v":""},{"$f":"IF('Product registration form'!R143<>\"\",'Product registration form'!R143,\"\")","v":""}]
[{"$f":"IF('Product registration form'!V144<>\"\",'Product registration form'!V144,\"\")","v":""},{"$f":"IF('Product registration form'!R144<>\"\",'Product registration form'!R144,\"\")","v":""}]
[{"$f":"IF('Product registration form'!V145<>\"\",'Product registration form'!V145,\"\")","v":""},{"$f":"IF('Product registration form'!R145<>\"\",'Product registration form'!R145,\"\")","v":""}]
[{"$f":"IF('Product registration form'!V146<>\"\",'Product registration form'!V146,\"\")","v":""},{"$f":"IF('Product registration form'!R146<>\"\",'Product registration form'!R146,\"\")","v":""}]
[{"$f":"IF('Product registration form'!V147<>\"\",'Product registration form'!V147,\"\")","v":""},{"$f":"IF('Product registration form'!R147<>\"\",'Product registration form'!R147,\"\")","v":""}]
[{"$f":"IF('Product registration form'!V148<>\"\",'Product registration form'!V148,\"\")","v":""},{"$f":"IF('Product registration form'!R148<>\"\",'Product registration form'!R148,\"\")","v":""}]
[{"$f":"IF('Product registration form'!V149<>\"\",'Product registration form'!V149,\"\")","v":""},{"$f":"IF('Product registration form'!R149<>\"\",'Product registration form'!R149,\"\")","v":""}]
[{"$f":"IF('Product registration form'!V150<>\"\",'Product registration form'!V150,\"\")","v":""},{"$f":"IF('Product registration form'!R150<>\"\",'Product registration form'!R150,\"\")","v":""}]
[{"$f":"IF('Product registration form'!V151<>\"\",'Product registration form'!V151,\"\")","v":""},{"$f":"IF('Product registration form'!R151<>\"\",'Product registration form'!R151,\"\")","v":""}]
[{"$f":"IF('Product registration form'!V152<>\"\",'Product registration form'!V152,\"\")","v":""},{"$f":"IF('Product registration form'!R152<>\"\",'Product registration form'!R152,\"\")","v":""}]
[{"$f":"IF('Product registration form'!V153<>\"\",'Product registration form'!V153,\"\")","v":""},{"$f":"IF('Product registration form'!R153<>\"\",'Product registration form'!R153,\"\")","v":""}]
[{"$f":"IF('Product registration form'!V154<>\"\",'Product registration form'!V154,\"\")","v":""},{"$f":"IF('Product registration form'!R154<>\"\",'Product registration form'!R154,\"\")","v":""}]
[{"$f":"IF('Product registration form'!V155<>\"\",'Product registration form'!V155,\"\")","v":""},{"$f":"IF('Product registration form'!R155<>\"\",'Product registration form'!R155,\"\")","v":""}]
[{"$f":"IF('Product registration form'!V156<>\"\",'Product registration form'!V156,\"\")","v":""},{"$f":"IF('Product registration form'!R156<>\"\",'Product registration form'!R156,\"\")","v":""}]
[{"$f":"IF('Product registration form'!V157<>\"\",'Product registration form'!V157,\"\")","v":""},{"$f":"IF('Product registration form'!R157<>\"\",'Product registration form'!R157,\"\")","v":""}]
[{"$f":"IF('Product registration form'!V158<>\"\",'Product registration form'!V158,\"\")","v":""},{"$f":"IF('Product registration form'!R158<>\"\",'Product registration form'!R158,\"\")","v":""}]
[{"$f":"IF('Product registration form'!V159<>\"\",'Product registration form'!V159,\"\")","v":""},{"$f":"IF('Product registration form'!R159<>\"\",'Product registration form'!R159,\"\")","v":""}]
[{"$f":"IF('Product registration form'!V160<>\"\",'Product registration form'!V160,\"\")","v":""},{"$f":"IF('Product registration form'!R160<>\"\",'Product registration form'!R160,\"\")","v":""}]
[{"$f":"IF('Product registration form'!V161<>\"\",'Product registration form'!V161,\"\")","v":""},{"$f":"IF('Product registration form'!R161<>\"\",'Product registration form'!R161,\"\")","v":""}]
[{"$f":"IF('Product registration form'!V162<>\"\",'Product registration form'!V162,\"\")","v":""},{"$f":"IF('Product registration form'!R162<>\"\",'Product registration form'!R162,\"\")","v":""}]
[{"$f":"IF('Product registration form'!V163<>\"\",'Product registration form'!V163,\"\")","v":""},{"$f":"IF('Product registration form'!R163<>\"\",'Product registration form'!R163,\"\")","v":""}]
[{"$f":"IF('Product registration form'!V164<>\"\",'Product registration form'!V164,\"\")","v":""},{"$f":"IF('Product registration form'!R164<>\"\",'Product registration form'!R164,\"\")","v":""}]
[{"$f":"IF('Product registration form'!V165<>\"\",'Product registration form'!V165,\"\")","v":""},{"$f":"IF('Product registration form'!R165<>\"\",'Product registration form'!R165,\"\")","v":""}]
[{"$f":"IF('Product registration form'!V166<>\"\",'Product registration form'!V166,\"\")","v":""},{"$f":"IF('Product registration form'!R166<>\"\",'Product registration form'!R166,\"\")","v":""}]
[{"$f":"IF('Product registration form'!V167<>\"\",'Product registration form'!V167,\"\")","v":""},{"$f":"IF('Product registration form'!R167<>\"\",'Product registration form'!R167,\"\")","v":""}]
[{"$f":"IF('Product registration form'!V168<>\"\",'Product registration form'!V168,\"\")","v":""},{"$f":"IF('Product registration form'!R168<>\"\",'Product registration form'!R168,\"\")","v":""}]
[{"$f":"IF('Product registration form'!V169<>\"\",'Product registration form'!V169,\"\")","v":""},{"$f":"IF('Product registration form'!R169<>\"\",'Product registration form'!R169,\"\")","v":""}]
[{"$f":"IF('Product registration form'!V170<>\"\",'Product registration form'!V170,\"\")","v":""},{"$f":"IF('Product registration form'!R170<>\"\",'Product registration form'!R170,\"\")","v":""}]
[{"$f":"IF('Product registration form'!V171<>\"\",'Product registration form'!V171,\"\")","v":""},{"$f":"IF('Product registration form'!R171<>\"\",'Product registration form'!R171,\"\")","v":""}]
[{"$f":"IF('Product registration form'!V172<>\"\",'Product registration form'!V172,\"\")","v":""},{"$f":"IF('Product registration form'!R172<>\"\",'Product registration form'!R172,\"\")","v":""}]
[{"$f":"IF('Product registration form'!V173<>\"\",'Product registration form'!V173,\"\")","v":""},{"$f":"IF('Product registration form'!R173<>\"\",'Product registration form'!R173,\"\")","v":""}]
[{"$f":"IF('Product registration form'!V174<>\"\",'Product registration form'!V174,\"\")","v":""},{"$f":"IF('Product registration form'!R174<>\"\",'Product registration form'!R174,\"\")","v":""}]
[{"$f":"IF('Product registration form'!V175<>\"\",'Product registration form'!V175,\"\")","v":""},{"$f":"IF('Product registration form'!R175<>\"\",'Product registration form'!R175,\"\")","v":""}]
[{"$f":"IF('Product registration form'!V176<>\"\",'Product registration form'!V176,\"\")","v":""},{"$f":"IF('Product registration form'!R176<>\"\",'Product registration form'!R176,\"\")","v":""}]
[{"$f":"IF('Product registration form'!V177<>\"\",'Product registration form'!V177,\"\")","v":""},{"$f":"IF('Product registration form'!R177<>\"\",'Product registration form'!R177,\"\")","v":""}]
[{"$f":"IF('Product registration form'!V178<>\"\",'Product registration form'!V178,\"\")","v":""},{"$f":"IF('Product registration form'!R178<>\"\",'Product registration form'!R178,\"\")","v":""}]
[{"$f":"IF('Product registration form'!V179<>\"\",'Product registration form'!V179,\"\")","v":""},{"$f":"IF('Product registration form'!R179<>\"\",'Product registration form'!R179,\"\")","v":""}]
[{"$f":"IF('Product registration form'!V180<>\"\",'Product registration form'!V180,\"\")","v":""},{"$f":"IF('Product registration form'!R180<>\"\",'Product registration form'!R180,\"\")","v":""}]
[{"$f":"IF('Product registration form'!V181<>\"\",'Product registration form'!V181,\"\")","v":""},{"$f":"IF('Product registration form'!R181<>\"\",'Product registration form'!R181,\"\")","v":""}]
[{"$f":"IF('Product registration form'!V182<>\"\",'Product registration form'!V182,\"\")","v":""},{"$f":"IF('Product registration form'!R182<>\"\",'Product registration form'!R182,\"\")","v":""}]
[{"$f":"IF('Product registration form'!V183<>\"\",'Product registration form'!V183,\"\")","v":""},{"$f":"IF('Product registration form'!R183<>\"\",'Product registration form'!R183,\"\")","v":""}]
[{"$f":"IF('Product registration form'!V184<>\"\",'Product registration form'!V184,\"\")","v":""},{"$f":"IF('Product registration form'!R184<>\"\",'Product registration form'!R184,\"\")","v":""}]
[{"$f":"IF('Product registration form'!V185<>\"\",'Product registration form'!V185,\"\")","v":""},{"$f":"IF('Product registration form'!R185<>\"\",'Product registration form'!R185,\"\")","v":""}]
[{"$f":"IF('Product registration form'!V186<>\"\",'Product registration form'!V186,\"\")","v":""},{"$f":"IF('Product registration form'!R186<>\"\",'Product registration form'!R186,\"\")","v":""}]
[{"$f":"IF('Product registration form'!V187<>\"\",'Product registration form'!V187,\"\")","v":""},{"$f":"IF('Product registration form'!R187<>\"\",'Product registration form'!R187,\"\")","v":""}]
[{"$f":"IF('Product registration form'!V188<>\"\",'Product registration form'!V188,\"\")","v":""},{"$f":"IF('Product registration form'!R188<>\"\",'Product registration form'!R188,\"\")","v":""}]
[{"$f":"IF('Product registration form'!V189<>\"\",'Product registration form'!V189,\"\")","v":""},{"$f":"IF('Product registration form'!R189<>\"\",'Product registration form'!R189,\"\")","v":""}]
[{"$f":"IF('Product registration form'!V190<>\"\",'Product registration form'!V190,\"\")","v":""},{"$f":"IF('Product registration form'!R190<>\"\",'Product registration form'!R190,\"\")","v":""}]
[{"$f":"IF('Product registration form'!V191<>\"\",'Product registration form'!V191,\"\")","v":""},{"$f":"IF('Product registration form'!R191<>\"\",'Product registration form'!R191,\"\")","v":""}]
[{"$f":"IF('Product registration form'!V192<>\"\",'Product registration form'!V192,\"\")","v":""},{"$f":"IF('Product registration form'!R192<>\"\",'Product registration form'!R192,\"\")","v":""}]
[{"$f":"IF('Product registration form'!V193<>\"\",'Product registration form'!V193,\"\")","v":""},{"$f":"IF('Product registration form'!R193<>\"\",'Product registration form'!R193,\"\")","v":""}]
[{"$f":"IF('Product registration form'!V194<>\"\",'Product registration form'!V194,\"\")","v":""},{"$f":"IF('Product registration form'!R194<>\"\",'Product registration form'!R194,\"\")","v":""}]
[{"$f":"IF('Product registration form'!V195<>\"\",'Product registration form'!V195,\"\")","v":""},{"$f":"IF('Product registration form'!R195<>\"\",'Product registration form'!R195,\"\")","v":""}]
[{"$f":"IF('Product registration form'!V196<>\"\",'Product registration form'!V196,\"\")","v":""},{"$f":"IF('Product registration form'!R196<>\"\",'Product registration form'!R196,\"\")","v":""}]
[{"$f":"IF('Product registration form'!V197<>\"\",'Product registration form'!V197,\"\")","v":""},{"$f":"IF('Product registration form'!R197<>\"\",'Product registration form'!R197,\"\")","v":""}]
[{"$f":"IF('Product registration form'!V198<>\"\",'Product registration form'!V198,\"\")","v":""},{"$f":"IF('Product registration form'!R198<>\"\",'Product registration form'!R198,\"\")","v":""}]
[{"$f":"IF('Product registration form'!V199<>\"\",'Product registration form'!V199,\"\")","v":""},{"$f":"IF('Product registration form'!R199<>\"\",'Product registration form'!R199,\"\")","v":""}]
[{"$f":"IF('Product registration form'!V200<>\"\",'Product registration form'!V200,\"\")","v":""},{"$f":"IF('Product registration form'!R200<>\"\",'Product registration form'!R200,\"\")","v":""}]

{"sheet":"Shelflabel and till text","index":2,"n_rows":200,"n_cols":21,"rows_kept":200,"cut":false,"hidden":false,"merged":[[2,1,3,1],[2,2,2,5],[2,0,3,0],[2,6,2,12],[2,13,2,18]]}
[]
[null,null,null,"To be filled by vendor",null,"To be filled by buying dep.",null,"To be filled by Master Data."]
["GTIN","Article description","Bilka/føtex/Salling        ",null,null,null,"Netto",null,null,null,null,null,null,"BR",null,null,null,null,null,"Till text"]
[null,null,"Article name (MAX 15 characters)","#","Additional text (MAX 12 characters)","#","Article name (MAX 24 characters)","#","Additional text (MAX 20 characters)","#","Price per 0,5 kg (meat only)","Highlight (MAX 24 characters)","#","Article name (MAX 24 characters)","#","Additional text (MAX 20 characters)","#","Highlight (MAX 24 characters)","#","Till text (MAX 20 characters)","#"]
[{"$f":"IF('Product registration form'!V5<>\"\",'Product registration form'!V5,\"\")","v":""},{"$f":"IF('Product registration form'!R5<>\"\",'Product registration form'!R5,\"\")","v":""},null,{"$f":"IF(C5<>\"\",LEN(C5),\"\")","v":""},null,{"$f":"IF(E5<>\"\",LEN(E5),\"\")","v":""},null,{"$f":"IF(G5<>\"\",LEN(G5),\"\")","v":""},null,{"$f":"IF(I5<>\"\",LEN(I5),\"\")","v":""},null,null,{"$f":"IF(L5<>\"\",LEN(L5),\"\")","v":""},null,{"$f":"IF(N5<>\"\",LEN(N5),\"\")","v":""},null,{"$f":"IF(P5<>\"\",LEN(P5),\"\")","v":""},null,{"$f":"IF(R5<>\"\",LEN(R5),\"\")","v":""},null,{"$f":"IF(T5<>\"\",LEN(T5),\"\")","v":""}]
[{"$f":"IF('Product registration form'!V6<>\"\",'Product registration form'!V6,\"\")","v":""},{"$f":"IF('Product registration form'!R6<>\"\",'Product registration form'!R6,\"\")","v":""},null,{"$f":"IF(C6<>\"\",LEN(C6),\"\")","v":""},null,{"$f":"IF(E6<>\"\",LEN(E6),\"\")","v":""},null,{"$f":"IF(G6<>\"\",LEN(G6),\"\")","v":""},null,{"$f":"IF(I6<>\"\",LEN(I6),\"\")","v":""},null,null,{"$f":"IF(L6<>\"\",LEN(L6),\"\")","v":""},null,{"$f":"IF(N6<>\"\",LEN(N6),\"\")","v":""},null,{"$f":"IF(P6<>\"\",LEN(P6),\"\")","v":""},null,{"$f":"IF(R6<>\"\",LEN(R6),\"\")","v":""},null,{"$f":"IF(T6<>\"\",LEN(T6),\"\")","v":""}]
[{"$f":"IF('Product registration form'!V7<>\"\",'Product registration form'!V7,\"\")","v":""},{"$f":"IF('Product registration form'!R7<>\"\",'Product registration form'!R7,\"\")","v":""},null,"",null,"",null,"",null,"",null,null,"",null,"",null,"",null,"",null,""]
[{"$f":"IF('Product registration form'!V8<>\"\",'Product registration form'!V8,\"\")","v":""},{"$f":"IF('Product registration form'!R8<>\"\",'Product registration form'!R8,\"\")","v":""},null,"",null,"",null,"",null,"",null,null,"",null,"",null,"",null,"",null,""]
[{"$f":"IF('Product registration form'!V9<>\"\",'Product registration form'!V9,\"\")","v":""},{"$f":"IF('Product registration form'!R9<>\"\",'Product registration form'!R9,\"\")","v":""},null,"",null,"",null,"",null,"",null,null,"",null,"",null,"",null,"",null,""]
[{"$f":"IF('Product registration form'!V10<>\"\",'Product registration form'!V10,\"\")","v":""},{"$f":"IF('Product registration form'!R10<>\"\",'Product registration form'!R10,\"\")","v":""},null,"",null,"",null,"",null,"",null,null,{"$f":"IF(L10<>\"\",LEN(L10),\"\")","v":""},null,"",null,"",null,"",null,""]
[{"$f":"IF('Product registration form'!V11<>\"\",'Product registration form'!V11,\"\")","v":""},{"$f":"IF('Product registration form'!R11<>\"\",'Product registration form'!R11,\"\")","v":""},null,"",null,"",null,"",null,{"$f":"IF(I11<>\"\",LEN(I11),\"\")","v":""},null,null,"",null,"",null,"",null,{"$f":"IF(R11<>\"\",LEN(R11),\"\")","v":""},null,""]
[{"$f":"IF('Product registration form'!V12<>\"\",'Product registration form'!V12,\"\")","v":""},{"$f":"IF('Product registration form'!R12<>\"\",'Product registration form'!R12,\"\")","v":""},null,"",null,"",null,"",null,"",null,null,"",null,"",null,"",null,"",null,""]
[{"$f":"IF('Product registration form'!V13<>\"\",'Product registration form'!V13,\"\")","v":""},{"$f":"IF('Product registration form'!R13<>\"\",'Product registration form'!R13,\"\")","v":""},null,"",null,"",null,"",null,"",null,null,"",null,{"$f":"IF(N13<>\"\",LEN(N13),\"\")","v":""},null,"",null,"",null,{"$f":"IF(T13<>\"\",LEN(T13),\"\")","v":""}]
[{"$f":"IF('Product registration form'!V14<>\"\",'Product registration form'!V14,\"\")","v":""},{"$f":"IF('Product registration form'!R14<>\"\",'Product registration form'!R14,\"\")","v":""},null,"",null,"",null,"",null,"",null,null,"",null,"",null,{"$f":"IF(P14<>\"\",LEN(P14),\"\")","v":""},null,"",null,""]
[{"$f":"IF('Product registration form'!V15<>\"\",'Product registration form'!V15,\"\")","v":""},{"$f":"IF('Product registration form'!R15<>\"\",'Product registration form'!R15,\"\")","v":""},null,"",null,"",null,"",null,"",null,null,"",null,"",null,"",null,"",null,""]
[{"$f":"IF('Product registration form'!V16<>\"\",'Product registration form'!V16,\"\")","v":""},{"$f":"IF('Product registration form'!R16<>\"\",'Product registration form'!R16,\"\")","v":""},null,"",null,"",null,"",null,"",null,null,"",null,"",null,"",null,"",null,""]
[{"$f":"IF('Product registration form'!V17<>\"\",'Product registration form'!V17,\"\")","v":""},{"$f":"IF('Product registration form'!R17<>\"\",'Product registration form'!R17,\"\")","v":""},null,"",null,"",null,"",null,"",null,null,"",null,"",null,"",null,"",null,""]
[{"$f":"IF('Product registration form'!V18<>\"\",'Product registration form'!V18,\"\")","v":""},{"$f":"IF('Product registration form'!R18<>\"\",'Product registration form'!R18,\"\")","v":""},null,"",null,"",null,"",null,"",null,null,"",null,"",null,"",null,"",null,""]
[{"$f":"IF('Product registration form'!V19<>\"\",'Product registration form'!V19,\"\")","v":""},{"$f":"IF('Product registration form'!R19<>\"\",'Product registration form'!R19,\"\")","v":""},null,"",null,"",null,"",null,"",null,null,"",null,"",null,"",null,"",null,""]
[{"$f":"IF('Product registration form'!V20<>\"\",'Product registration form'!V20,\"\")","v":""},{"$f":"IF('Product registration form'!R20<>\"\",'Product registration form'!R20,\"\")","v":""},null,"",null,"",null,"",null,"",null,null,"",null,"",null,"",null,"",null,""]
[{"$f":"IF('Product registration form'!V21<>\"\",'Product registration form'!V21,\"\")","v":""},{"$f":"IF('Product registration form'!R21<>\"\",'Product registration form'!R21,\"\")","v":""},null,"",null,"",null,"",null,"",null,null,"",null,"",null,"",null,"",null,""]
[{"$f":"IF('Product registration form'!V22<>\"\",'Product registration form'!V22,\"\")","v":""},{"$f":"IF('Product registration form'!R22<>\"\",'Product registration form'!R22,\"\")","v":""},null,"",null,"",null,"",null,"",null,null,"",null,"",null,"",null,"",null,""]
[{"$f":"IF('Product registration form'!V23<>\"\",'Product registration form'!V23,\"\")","v":""},{"$f":"IF('Product registration form'!R23<>\"\",'Product registration form'!R23,\"\")","v":""},null,"",null,"",null,"",null,"",null,null,"",null,"",null,"",null,"",null,""]
[{"$f":"IF('Product registration form'!V24<>\"\",'Product registration form'!V24,\"\")","v":""},{"$f":"IF('Product registration form'!R24<>\"\",'Product registration form'!R24,\"\")","v":""},null,"",null,"",null,"",null,"",null,null,"",null,"",null,"",null,"",null,""]
[{"$f":"IF('Product registration form'!V25<>\"\",'Product registration form'!V25,\"\")","v":""},{"$f":"IF('Product registration form'!R25<>\"\",'Product registration form'!R25,\"\")","v":""},null,"",null,"",null,"",null,"",null,null,"",null,"",null,"",null,"",null,""]
[{"$f":"IF('Product registration form'!V26<>\"\",'Product registration form'!V26,\"\")","v":""},{"$f":"IF('Product registration form'!R26<>\"\",'Product registration form'!R26,\"\")","v":""},null,"",null,"",null,"",null,"",null,null,"",null,"",null,"",null,"",null,""]
[{"$f":"IF('Product registration form'!V27<>\"\",'Product registration form'!V27,\"\")","v":""},{"$f":"IF('Product registration form'!R27<>\"\",'Product registration form'!R27,\"\")","v":""},null,"",null,"",null,"",null,"",null,null,"",null,"",null,"",null,"",null,""]
[{"$f":"IF('Product registration form'!V28<>\"\",'Product registration form'!V28,\"\")","v":""},{"$f":"IF('Product registration form'!R28<>\"\",'Product registration form'!R28,\"\")","v":""},null,"",null,"",null,"",null,"",null,null,"",null,"",null,"",null,"",null,""]
[{"$f":"IF('Product registration form'!V29<>\"\",'Product registration form'!V29,\"\")","v":""},{"$f":"IF('Product registration form'!R29<>\"\",'Product registration form'!R29,\"\")","v":""},null,"",null,"",null,"",null,"",null,null,"",null,"",null,"",null,"",null,""]
[{"$f":"IF('Product registration form'!V30<>\"\",'Product registration form'!V30,\"\")","v":""},{"$f":"IF('Product registration form'!R30<>\"\",'Product registration form'!R30,\"\")","v":""},null,"",null,"",null,"",null,"",null,null,"",null,"",null,"",null,"",null,""]
[{"$f":"IF('Product registration form'!V31<>\"\",'Product registration form'!V31,\"\")","v":""},{"$f":"IF('Product registration form'!R31<>\"\",'Product registration form'!R31,\"\")","v":""},null,"",null,"",null,"",null,"",null,null,"",null,"",null,"",null,"",null,""]
[{"$f":"IF('Product registration form'!V32<>\"\",'Product registration form'!V32,\"\")","v":""},{"$f":"IF('Product registration form'!R32<>\"\",'Product registration form'!R32,\"\")","v":""},null,"",null,"",null,"",null,"",null,null,"",null,"",null,"",null,"",null,""]
[{"$f":"IF('Product registration form'!V33<>\"\",'Product registration form'!V33,\"\")","v":""},{"$f":"IF('Product registration form'!R33<>\"\",'Product registration form'!R33,\"\")","v":""},null,"",null,"",null,"",null,"",null,null,"",null,"",null,"",null,"",null,""]
[{"$f":"IF('Product registration form'!V34<>\"\",'Product registration form'!V34,\"\")","v":""},{"$f":"IF('Product registration form'!R34<>\"\",'Product registration form'!R34,\"\")","v":""},null,"",null,"",null,"",null,"",null,null,"",null,"",null,"",null,"",null,""]
[{"$f":"IF('Product registration form'!V35<>\"\",'Product registration form'!V35,\"\")","v":""},{"$f":"IF('Product registration form'!R35<>\"\",'Product registration form'!R35,\"\")","v":""},null,"",null,"",null,"",null,"",null,null,"",null,"",null,"",null,"",null,""]
[{"$f":"IF('Product registration form'!V36<>\"\",'Product registration form'!V36,\"\")","v":""},{"$f":"IF('Product registration form'!R36<>\"\",'Product registration form'!R36,\"\")","v":""},null,"",null,"",null,"",null,"",null,null,"",null,"",null,"",null,"",null,""]
[{"$f":"IF('Product registration form'!V37<>\"\",'Product registration form'!V37,\"\")","v":""},{"$f":"IF('Product registration form'!R37<>\"\",'Product registration form'!R37,\"\")","v":""},null,"",null,"",null,"",null,"",null,null,"",null,"",null,"",null,"",null,""]
[{"$f":"IF('Product registration form'!V38<>\"\",'Product registration form'!V38,\"\")","v":""},{"$f":"IF('Product registration form'!R38<>\"\",'Product registration form'!R38,\"\")","v":""},null,"",null,"",null,"",null,"",null,null,"",null,"",null,"",null,"",null,""]
[{"$f":"IF('Product registration form'!V39<>\"\",'Product registration form'!V39,\"\")","v":""},{"$f":"IF('Product registration form'!R39<>\"\",'Product registration form'!R39,\"\")","v":""},null,"",null,"",null,"",null,"",null,null,"",null,"",null,"",null,"",null,""]
[{"$f":"IF('Product registration form'!V40<>\"\",'Product registration form'!V40,\"\")","v":""},{"$f":"IF('Product registration form'!R40<>\"\",'Product registration form'!R40,\"\")","v":""},null,"",null,"",null,"",null,"",null,null,"",null,"",null,"",null,"",null,""]
[{"$f":"IF('Product registration form'!V41<>\"\",'Product registration form'!V41,\"\")","v":""},{"$f":"IF('Product registration form'!R41<>\"\",'Product registration form'!R41,\"\")","v":""},null,"",null,"",null,"",null,"",null,null,"",null,"",null,"",null,"",null,""]
[{"$f":"IF('Product registration form'!V42<>\"\",'Product registration form'!V42,\"\")","v":""},{"$f":"IF('Product registration form'!R42<>\"\",'Product registration form'!R42,\"\")","v":""},null,"",null,"",null,"",null,"",null,null,"",null,"",null,"",null,"",null,""]
[{"$f":"IF('Product registration form'!V43<>\"\",'Product registration form'!V43,\"\")","v":""},{"$f":"IF('Product registration form'!R43<>\"\",'Product registration form'!R43,\"\")","v":""},null,"",null,"",null,"",null,"",null,null,"",null,"",null,"",null,"",null,""]
[{"$f":"IF('Product registration form'!V44<>\"\",'Product registration form'!V44,\"\")","v":""},{"$f":"IF('Product registration form'!R44<>\"\",'Product registration form'!R44,\"\")","v":""},null,"",null,"",null,"",null,"",null,null,"",null,"",null,"",null,"",null,""]
[{"$f":"IF('Product registration form'!V45<>\"\",'Product registration form'!V45,\"\")","v":""},{"$f":"IF('Product registration form'!R45<>\"\",'Product registration form'!R45,\"\")","v":""},null,"",null,"",null,"",null,"",null,null,"",null,"",null,"",null,"",null,""]
[{"$f":"IF('Product registration form'!V46<>\"\",'Product registration form'!V46,\"\")","v":""},{"$f":"IF('Product registration form'!R46<>\"\",'Product registration form'!R46,\"\")","v":""},null,"",null,"",null,"",null,"",null,null,"",null,"",null,"",null,"",null,""]
[{"$f":"IF('Product registration form'!V47<>\"\",'Product registration form'!V47,\"\")","v":""},{"$f":"IF('Product registration form'!R47<>\"\",'Product registration form'!R47,\"\")","v":""},null,"",null,"",null,"",null,"",null,null,"",null,"",null,"",null,"",null,""]
[{"$f":"IF('Product registration form'!V48<>\"\",'Product registration form'!V48,\"\")","v":""},{"$f":"IF('Product registration form'!R48<>\"\",'Product registration form'!R48,\"\")","v":""},null,"",null,"",null,"",null,"",null,null,"",null,"",null,"",null,"",null,""]
[{"$f":"IF('Product registration form'!V49<>\"\",'Product registration form'!V49,\"\")","v":""},{"$f":"IF('Product registration form'!R49<>\"\",'Product registration form'!R49,\"\")","v":""},null,"",null,"",null,"",null,"",null,null,"",null,"",null,"",null,"",null,""]
[{"$f":"IF('Product registration form'!V50<>\"\",'Product registration form'!V50,\"\")","v":""},{"$f":"IF('Product registration form'!R50<>\"\",'Product registration form'!R50,\"\")","v":""},null,"",null,"",null,"",null,"",null,null,"",null,"",null,"",null,"",null,""]
[{"$f":"IF('Product registration form'!V51<>\"\",'Product registration form'!V51,\"\")","v":""},{"$f":"IF('Product registration form'!R51<>\"\",'Product registration form'!R51,\"\")","v":""},null,"",null,"",null,"",null,"",null,null,"",null,"",null,"",null,"",null,""]
[{"$f":"IF('Product registration form'!V52<>\"\",'Product registration form'!V52,\"\")","v":""},{"$f":"IF('Product registration form'!R52<>\"\",'Product registration form'!R52,\"\")","v":""},null,"",null,"",null,"",null,"",null,null,"",null,"",null,"",null,"",null,""]
[{"$f":"IF('Product registration form'!V53<>\"\",'Product registration form'!V53,\"\")","v":""},{"$f":"IF('Product registration form'!R53<>\"\",'Product registration form'!R53,\"\")","v":""},null,"",null,"",null,"",null,"",null,null,"",null,"",null,"",null,"",null,""]
[{"$f":"IF('Product registration form'!V54<>\"\",'Product registration form'!V54,\"\")","v":""},{"$f":"IF('Product registration form'!R54<>\"\",'Product registration form'!R54,\"\")","v":""},null,"",null,"",null,"",null,"",null,null,"",null,"",null,"",null,"",null,""]
[{"$f":"IF('Product registration form'!V55<>\"\",'Product registration form'!V55,\"\")","v":""},{"$f":"IF('Product registration form'!R55<>\"\",'Product registration form'!R55,\"\")","v":""},null,"",null,"",null,"",null,"",null,null,"",null,"",null,"",null,"",null,""]
[{"$f":"IF('Product registration form'!V56<>\"\",'Product registration form'!V56,\"\")","v":""},{"$f":"IF('Product registration form'!R56<>\"\",'Product registration form'!R56,\"\")","v":""},null,"",null,"",null,"",null,"",null,null,"",null,"",null,"",null,"",null,""]
[{"$f":"IF('Product registration form'!V57<>\"\",'Product registration form'!V57,\"\")","v":""},{"$f":"IF('Product registration form'!R57<>\"\",'Product registration form'!R57,\"\")","v":""},null,"",null,"",null,"",null,"",null,null,"",null,"",null,"",null,"",null,""]
[{"$f":"IF('Product registration form'!V58<>\"\",'Product registration form'!V58,\"\")","v":""},{"$f":"IF('Product registration form'!R58<>\"\",'Product registration form'!R58,\"\")","v":""},null,"",null,"",null,"",null,"",null,null,"",null,"",null,"",null,"",null,""]
[{"$f":"IF('Product registration form'!V59<>\"\",'Product registration form'!V59,\"\")","v":""},{"$f":"IF('Product registration form'!R59<>\"\",'Product registration form'!R59,\"\")","v":""},null,"",null,"",null,"",null,"",null,null,"",null,"",null,"",null,"",null,""]
[{"$f":"IF('Product registration form'!V60<>\"\",'Product registration form'!V60,\"\")","v":""},{"$f":"IF('Product registration form'!R60<>\"\",'Product registration form'!R60,\"\")","v":""},null,"",null,"",null,"",null,"",null,null,"",null,"",null,"",null,"",null,""]
[{"$f":"IF('Product registration form'!V61<>\"\",'Product registration form'!V61,\"\")","v":""},{"$f":"IF('Product registration form'!R61<>\"\",'Product registration form'!R61,\"\")","v":""},null,"",null,"",null,"",null,"",null,null,"",null,"",null,"",null,"",null,""]
[{"$f":"IF('Product registration form'!V62<>\"\",'Product registration form'!V62,\"\")","v":""},{"$f":"IF('Product registration form'!R62<>\"\",'Product registration form'!R62,\"\")","v":""},null,"",null,"",null,"",null,"",null,null,"",null,"",null,"",null,"",null,""]
[{"$f":"IF('Product registration form'!V63<>\"\",'Product registration form'!V63,\"\")","v":""},{"$f":"IF('Product registration form'!R63<>\"\",'Product registration form'!R63,\"\")","v":""},null,"",null,"",null,"",null,"",null,null,"",null,"",null,"",null,"",null,""]
[{"$f":"IF('Product registration form'!V64<>\"\",'Product registration form'!V64,\"\")","v":""},{"$f":"IF('Product registration form'!R64<>\"\",'Product registration form'!R64,\"\")","v":""},null,"",null,"",null,"",null,"",null,null,"",null,"",null,"",null,"",null,""]
[{"$f":"IF('Product registration form'!V65<>\"\",'Product registration form'!V65,\"\")","v":""},{"$f":"IF('Product registration form'!R65<>\"\",'Product registration form'!R65,\"\")","v":""},null,"",null,"",null,"",null,"",null,null,"",null,"",null,"",null,"",null,""]
[{"$f":"IF('Product registration form'!V66<>\"\",'Product registration form'!V66,\"\")","v":""},{"$f":"IF('Product registration form'!R66<>\"\",'Product registration form'!R66,\"\")","v":""},null,"",null,"",null,"",null,"",null,null,"",null,"",null,"",null,"",null,""]
[{"$f":"IF('Product registration form'!V67<>\"\",'Product registration form'!V67,\"\")","v":""},{"$f":"IF('Product registration form'!R67<>\"\",'Product registration form'!R67,\"\")","v":""},null,"",null,"",null,"",null,"",null,null,"",null,"",null,"",null,"",null,""]
[{"$f":"IF('Product registration form'!V68<>\"\",'Product registration form'!V68,\"\")","v":""},{"$f":"IF('Product registration form'!R68<>\"\",'Product registration form'!R68,\"\")","v":""},null,"",null,"",null,"",null,{"$f":"IF(I68<>\"\",LEN(I68),\"\")","v":""},null,null,"",null,"",null,"",null,"",null,""]
[{"$f":"IF('Product registration form'!V69<>\"\",'Product registration form'!V69,\"\")","v":""},{"$f":"IF('Product registration form'!R69<>\"\",'Product registration form'!R69,\"\")","v":""},null,"",null,"",null,"",null,{"$f":"IF(I69<>\"\",LEN(I69),\"\")","v":""},null,null,{"$f":"IF(L69<>\"\",LEN(L69),\"\")","v":""},null,"",null,"",null,"",null,{"$f":"IF(T69<>\"\",LEN(T69),\"\")","v":""}]
[{"$f":"IF('Product registration form'!V70<>\"\",'Product registration form'!V70,\"\")","v":""},{"$f":"IF('Product registration form'!R70<>\"\",'Product registration form'!R70,\"\")","v":""},null,{"$f":"IF(C70<>\"\",LEN(C70),\"\")","v":""},null,{"$f":"IF(E70<>\"\",LEN(E70),\"\")","v":""},null,{"$f":"IF(G70<>\"\",LEN(G70),\"\")","v":""},null,"",null,null,"",null,{"$f":"IF(N70<>\"\",LEN(N70),\"\")","v":""},null,{"$f":"IF(P70<>\"\",LEN(P70),\"\")","v":""},null,{"$f":"IF(R70<>\"\",LEN(R70),\"\")","v":""},null,""]
[{"$f":"IF('Product registration form'!V71<>\"\",'Product registration form'!V71,\"\")","v":""},{"$f":"IF('Product registration form'!R71<>\"\",'Product registration form'!R71,\"\")","v":""},null,"",null,"",null,"",null,"",null,null,"",null,"",null,"",null,"",null,""]
[{"$f":"IF('Product registration form'!V72<>\"\",'Product registration form'!V72,\"\")","v":""},{"$f":"IF('Product registration form'!R72<>\"\",'Product registration form'!R72,\"\")","v":""},null,"",null,"",null,"",null,"",null,null,"",null,"",null,"",null,"",null,""]
[{"$f":"IF('Product registration form'!V73<>\"\",'Product registration form'!V73,\"\")","v":""},{"$f":"IF('Product registration form'!R73<>\"\",'Product registration form'!R73,\"\")","v":""},null,"",null,"",null,"",null,"",null,null,"",null,"",null,"",null,"",null,""]
[{"$f":"IF('Product registration form'!V74<>\"\",'Product registration form'!V74,\"\")","v":""},{"$f":"IF('Product registration form'!R74<>\"\",'Product registration form'!R74,\"\")","v":""},null,"",null,"",null,"",null,"",null,null,"",null,"",null,"",null,"",null,""]
[{"$f":"IF('Product registration form'!V75<>\"\",'Product registration form'!V75,\"\")","v":""},{"$f":"IF('Product registration form'!R75<>\"\",'Product registration form'!R75,\"\")","v":""},null,"",null,"",null,"",null,"",null,null,"",null,"",null,"",null,"",null,""]
[{"$f":"IF('Product registration form'!V76<>\"\",'Product registration form'!V76,\"\")","v":""},{"$f":"IF('Product registration form'!R76<>\"\",'Product registration form'!R76,\"\")","v":""},null,"",null,"",null,"",null,"",null,null,"",null,"",null,"",null,"",null,""]
[{"$f":"IF('Product registration form'!V77<>\"\",'Product registration form'!V77,\"\")","v":""},{"$f":"IF('Product registration form'!R77<>\"\",'Product registration form'!R77,\"\")","v":""},null,"",null,"",null,"",null,"",null,null,"",null,"",null,"",null,"",null,""]
[{"$f":"IF('Product registration form'!V78<>\"\",'Product registration form'!V78,\"\")","v":""},{"$f":"IF('Product registration form'!R78<>\"\",'Product registration form'!R78,\"\")","v":""},null,"",null,"",null,"",null,"",null,null,"",null,"",null,"",null,"",null,""]
[{"$f":"IF('Product registration form'!V79<>\"\",'Product registration form'!V79,\"\")","v":""},{"$f":"IF('Product registration form'!R79<>\"\",'Product registration form'!R79,\"\")","v":""},null,"",null,"",null,"",null,"",null,null,"",null,"",null,"",null,"",null,""]
[{"$f":"IF('Product registration form'!V80<>\"\",'Product registration form'!V80,\"\")","v":""},{"$f":"IF('Product registration form'!R80<>\"\",'Product registration form'!R80,\"\")","v":""},null,"",null,"",null,"",null,"",null,null,"",null,"",null,"",null,"",null,""]
[{"$f":"IF('Product registration form'!V81<>\"\",'Product registration form'!V81,\"\")","v":""},{"$f":"IF('Product registration form'!R81<>\"\",'Product registration form'!R81,\"\")","v":""},null,"",null,"",null,"",null,"",null,null,"",null,"",null,"",null,"",null,""]
[{"$f":"IF('Product registration form'!V82<>\"\",'Product registration form'!V82,\"\")","v":""},{"$f":"IF('Product registration form'!R82<>\"\",'Product registration form'!R82,\"\")","v":""},null,"",null,"",null,"",null,"",null,null,"",null,"",null,"",null,"",null,""]
[{"$f":"IF('Product registration form'!V83<>\"\",'Product registration form'!V83,\"\")","v":""},{"$f":"IF('Product registration form'!R83<>\"\",'Product registration form'!R83,\"\")","v":""},null,"",null,"",null,"",null,"",null,null,"",null,"",null,"",null,"",null,""]
[{"$f":"IF('Product registration form'!V84<>\"\",'Product registration form'!V84,\"\")","v":""},{"$f":"IF('Product registration form'!R84<>\"\",'Product registration form'!R84,\"\")","v":""},null,"",null,"",null,"",null,"",null,null,"",null,"",null,"",null,"",null,""]
[{"$f":"IF('Product registration form'!V85<>\"\",'Product registration form'!V85,\"\")","v":""},{"$f":"IF('Product registration form'!R85<>\"\",'Product registration form'!R85,\"\")","v":""},null,"",null,"",null,"",null,"",null,null,"",null,"",null,"",null,"",null,""]
[{"$f":"IF('Product registration form'!V86<>\"\",'Product registration form'!V86,\"\")","v":""},{"$f":"IF('Product registration form'!R86<>\"\",'Product registration form'!R86,\"\")","v":""},null,"",null,"",null,"",null,"",null,null,"",null,"",null,"",null,"",null,""]
[{"$f":"IF('Product registration form'!V87<>\"\",'Product registration form'!V87,\"\")","v":""},{"$f":"IF('Product registration form'!R87<>\"\",'Product registration form'!R87,\"\")","v":""},null,"",null,"",null,"",null,"",null,null,"",null,"",null,"",null,"",null,""]
[{"$f":"IF('Product registration form'!V88<>\"\",'Product registration form'!V88,\"\")","v":""},{"$f":"IF('Product registration form'!R88<>\"\",'Product registration form'!R88,\"\")","v":""},null,"",null,"",null,"",null,"",null,null,"",null,"",null,"",null,"",null,""]
[{"$f":"IF('Product registration form'!V89<>\"\",'Product registration form'!V89,\"\")","v":""},{"$f":"IF('Product registration form'!R89<>\"\",'Product registration form'!R89,\"\")","v":""},null,"",null,"",null,"",null,"",null,null,"",null,"",null,"",null,"",null,""]
[{"$f":"IF('Product registration form'!V90<>\"\",'Product registration form'!V90,\"\")","v":""},{"$f":"IF('Product registration form'!R90<>\"\",'Product registration form'!R90,\"\")","v":""},null,"",null,"",null,"",null,"",null,null,"",null,"",null,"",null,"",null,""]
[{"$f":"IF('Product registration form'!V91<>\"\",'Product registration form'!V91,\"\")","v":""},{"$f":"IF('Product registration form'!R91<>\"\",'Product registration form'!R91,\"\")","v":""},null,"",null,"",null,"",null,"",null,null,"",null,"",null,"",null,"",null,""]
[{"$f":"IF('Product registration form'!V92<>\"\",'Product registration form'!V92,\"\")","v":""},{"$f":"IF('Product registration form'!R92<>\"\",'Product registration form'!R92,\"\")","v":""},null,"",null,"",null,"",null,"",null,null,"",null,"",null,"",null,"",null,""]
[{"$f":"IF('Product registration form'!V93<>\"\",'Product registration form'!V93,\"\")","v":""},{"$f":"IF('Product registration form'!R93<>\"\",'Product registration form'!R93,\"\")","v":""},null,"",null,"",null,"",null,"",null,null,"",null,"",null,"",null,"",null,""]
[{"$f":"IF('Product registration form'!V94<>\"\",'Product registration form'!V94,\"\")","v":""},{"$f":"IF('Product registration form'!R94<>\"\",'Product registration form'!R94,\"\")","v":""},null,"",null,"",null,"",null,"",null,null,"",null,"",null,"",null,"",null,""]
[{"$f":"IF('Product registration form'!V95<>\"\",'Product registration form'!V95,\"\")","v":""},{"$f":"IF('Product registration form'!R95<>\"\",'Product registration form'!R95,\"\")","v":""},null,"",null,"",null,"",null,"",null,null,"",null,"",null,"",null,"",null,""]
[{"$f":"IF('Product registration form'!V96<>\"\",'Product registration form'!V96,\"\")","v":""},{"$f":"IF('Product registration form'!R96<>\"\",'Product registration form'!R96,\"\")","v":""},null,"",null,"",null,"",null,"",null,null,"",null,"",null,"",null,"",null,""]
[{"$f":"IF('Product registration form'!V97<>\"\",'Product registration form'!V97,\"\")","v":""},{"$f":"IF('Product registration form'!R97<>\"\",'Product registration form'!R97,\"\")","v":""},null,"",null,"",null,"",null,"",null,null,"",null,"",null,"",null,"",null,""]
[{"$f":"IF('Product registration form'!V98<>\"\",'Product registration form'!V98,\"\")","v":""},{"$f":"IF('Product registration form'!R98<>\"\",'Product registration form'!R98,\"\")","v":""},null,"",null,"",null,"",null,"",null,null,"",null,"",null,"",null,"",null,""]
[{"$f":"IF('Product registration form'!V99<>\"\",'Product registration form'!V99,\"\")","v":""},{"$f":"IF('Product registration form'!R99<>\"\",'Product registration form'!R99,\"\")","v":""},null,"",null,"",null,"",null,"",null,null,"",null,"",null,"",null,"",null,""]
[{"$f":"IF('Product registration form'!V100<>\"\",'Product registration form'!V100,\"\")","v":""},{"$f":"IF('Product registration form'!R100<>\"\",'Product registration form'!R100,\"\")","v":""},null,"",null,"",null,"",null,"",null,null,"",null,"",null,"",null,"",null,""]
[{"$f":"IF('Product registration form'!V101<>\"\",'Product registration form'!V101,\"\")","v":""},{"$f":"IF('Product registration form'!R101<>\"\",'Product registration form'!R101,\"\")","v":""},null,"",null,"",null,"",null,"",null,null,"",null,"",null,"",null,"",null,""]
[{"$f":"IF('Product registration form'!V102<>\"\",'Product registration form'!V102,\"\")","v":""},{"$f":"IF('Product registration form'!R102<>\"\",'Product registration form'!R102,\"\")","v":""},null,"",null,"",null,"",null,"",null,null,"",null,"",null,"",null,"",null,""]
[{"$f":"IF('Product registration form'!V103<>\"\",'Product registration form'!V103,\"\")","v":""},{"$f":"IF('Product registration form'!R103<>\"\",'Product registration form'!R103,\"\")","v":""},null,"",null,"",null,"",null,"",null,null,"",null,"",null,"",null,"",null,""]
[{"$f":"IF('Product registration form'!V104<>\"\",'Product registration form'!V104,\"\")","v":""},{"$f":"IF('Product registration form'!R104<>\"\",'Product registration form'!R104,\"\")","v":""},null,"",null,"",null,"",null,"",null,null,"",null,"",null,"",null,"",null,""]
[{"$f":"IF('Product registration form'!V105<>\"\",'Product registration form'!V105,\"\")","v":""},{"$f":"IF('Product registration form'!R105<>\"\",'Product registration form'!R105,\"\")","v":""},null,"",null,"",null,"",null,"",null,null,"",null,"",null,"",null,"",null,""]
[{"$f":"IF('Product registration form'!V106<>\"\",'Product registration form'!V106,\"\")","v":""},{"$f":"IF('Product registration form'!R106<>\"\",'Product registration form'!R106,\"\")","v":""},null,"",null,"",null,"",null,"",null,null,"",null,"",null,"",null,"",null,""]
[{"$f":"IF('Product registration form'!V107<>\"\",'Product registration form'!V107,\"\")","v":""},{"$f":"IF('Product registration form'!R107<>\"\",'Product registration form'!R107,\"\")","v":""},null,"",null,"",null,"",null,"",null,null,"",null,"",null,"",null,"",null,""]
[{"$f":"IF('Product registration form'!V108<>\"\",'Product registration form'!V108,\"\")","v":""},{"$f":"IF('Product registration form'!R108<>\"\",'Product registration form'!R108,\"\")","v":""},null,"",null,"",null,"",null,"",null,null,"",null,"",null,"",null,"",null,""]
[{"$f":"IF('Product registration form'!V109<>\"\",'Product registration form'!V109,\"\")","v":""},{"$f":"IF('Product registration form'!R109<>\"\",'Product registration form'!R109,\"\")","v":""},null,"",null,"",null,"",null,"",null,null,"",null,"",null,"",null,"",null,""]
[{"$f":"IF('Product registration form'!V110<>\"\",'Product registration form'!V110,\"\")","v":""},{"$f":"IF('Product registration form'!R110<>\"\",'Product registration form'!R110,\"\")","v":""},null,"",null,"",null,"",null,"",null,null,"",null,"",null,"",null,"",null,""]
[{"$f":"IF('Product registration form'!V111<>\"\",'Product registration form'!V111,\"\")","v":""},{"$f":"IF('Product registration form'!R111<>\"\",'Product registration form'!R111,\"\")","v":""},null,"",null,"",null,"",null,"",null,null,"",null,"",null,"",null,"",null,""]
[{"$f":"IF('Product registration form'!V112<>\"\",'Product registration form'!V112,\"\")","v":""},{"$f":"IF('Product registration form'!R112<>\"\",'Product registration form'!R112,\"\")","v":""},null,"",null,"",null,"",null,"",null,null,"",null,"",null,"",null,"",null,""]
[{"$f":"IF('Product registration form'!V113<>\"\",'Product registration form'!V113,\"\")","v":""},{"$f":"IF('Product registration form'!R113<>\"\",'Product registration form'!R113,\"\")","v":""},null,"",null,"",null,"",null,"",null,null,"",null,"",null,"",null,"",null,""]
[{"$f":"IF('Product registration form'!V114<>\"\",'Product registration form'!V114,\"\")","v":""},{"$f":"IF('Product registration form'!R114<>\"\",'Product registration form'!R114,\"\")","v":""},null,"",null,"",null,"",null,"",null,null,"",null,"",null,"",null,"",null,""]
[{"$f":"IF('Product registration form'!V115<>\"\",'Product registration form'!V115,\"\")","v":""},{"$f":"IF('Product registration form'!R115<>\"\",'Product registration form'!R115,\"\")","v":""},null,"",null,"",null,"",null,"",null,null,"",null,"",null,"",null,"",null,""]
[{"$f":"IF('Product registration form'!V116<>\"\",'Product registration form'!V116,\"\")","v":""},{"$f":"IF('Product registration form'!R116<>\"\",'Product registration form'!R116,\"\")","v":""},null,"",null,"",null,"",null,"",null,null,"",null,"",null,"",null,"",null,""]
[{"$f":"IF('Product registration form'!V117<>\"\",'Product registration form'!V117,\"\")","v":""},{"$f":"IF('Product registration form'!R117<>\"\",'Product registration form'!R117,\"\")","v":""},null,"",null,"",null,"",null,"",null,null,"",null,"",null,"",null,"",null,""]
[{"$f":"IF('Product registration form'!V118<>\"\",'Product registration form'!V118,\"\")","v":""},{"$f":"IF('Product registration form'!R118<>\"\",'Product registration form'!R118,\"\")","v":""},null,"",null,"",null,"",null,"",null,null,"",null,"",null,"",null,"",null,""]
[{"$f":"IF('Product registration form'!V119<>\"\",'Product registration form'!V119,\"\")","v":""},{"$f":"IF('Product registration form'!R119<>\"\",'Product registration form'!R119,\"\")","v":""},null,"",null,"",null,"",null,"",null,null,"",null,"",null,"",null,"",null,""]
[{"$f":"IF('Product registration form'!V120<>\"\",'Product registration form'!V120,\"\")","v":""},{"$f":"IF('Product registration form'!R120<>\"\",'Product registration form'!R120,\"\")","v":""},null,"",null,"",null,"",null,"",null,null,"",null,"",null,"",null,"",null,""]
[{"$f":"IF('Product registration form'!V121<>\"\",'Product registration form'!V121,\"\")","v":""},{"$f":"IF('Product registration form'!R121<>\"\",'Product registration form'!R121,\"\")","v":""},null,"",null,"",null,"",null,"",null,null,"",null,"",null,"",null,"",null,""]
[{"$f":"IF('Product registration form'!V122<>\"\",'Product registration form'!V122,\"\")","v":""},{"$f":"IF('Product registration form'!R122<>\"\",'Product registration form'!R122,\"\")","v":""},null,"",null,"",null,"",null,"",null,null,"",null,"",null,"",null,"",null,""]
[{"$f":"IF('Product registration form'!V123<>\"\",'Product registration form'!V123,\"\")","v":""},{"$f":"IF('Product registration form'!R123<>\"\",'Product registration form'!R123,\"\")","v":""},null,"",null,"",null,"",null,"",null,null,"",null,"",null,"",null,"",null,""]
[{"$f":"IF('Product registration form'!V124<>\"\",'Product registration form'!V124,\"\")","v":""},{"$f":"IF('Product registration form'!R124<>\"\",'Product registration form'!R124,\"\")","v":""},null,"",null,"",null,"",null,"",null,null,"",null,"",null,"",null,"",null,""]
[{"$f":"IF('Product registration form'!V125<>\"\",'Product registration form'!V125,\"\")","v":""},{"$f":"IF('Product registration form'!R125<>\"\",'Product registration form'!R125,\"\")","v":""},null,"",null,"",null,"",null,"",null,null,"",null,"",null,"",null,"",null,""]
[{"$f":"IF('Product registration form'!V126<>\"\",'Product registration form'!V126,\"\")","v":""},{"$f":"IF('Product registration form'!R126<>\"\",'Product registration form'!R126,\"\")","v":""},null,"",null,"",null,"",null,"",null,null,"",null,"",null,"",null,"",null,""]
[{"$f":"IF('Product registration form'!V127<>\"\",'Product registration form'!V127,\"\")","v":""},{"$f":"IF('Product registration form'!R127<>\"\",'Product registration form'!R127,\"\")","v":""},null,"",null,"",null,"",null,"",null,null,"",null,"",null,"",null,"",null,""]
[{"$f":"IF('Product registration form'!V128<>\"\",'Product registration form'!V128,\"\")","v":""},{"$f":"IF('Product registration form'!R128<>\"\",'Product registration form'!R128,\"\")","v":""},null,"",null,"",null,"",null,"",null,null,"",null,"",null,"",null,"",null,""]
[{"$f":"IF('Product registration form'!V129<>\"\",'Product registration form'!V129,\"\")","v":""},{"$f":"IF('Product registration form'!R129<>\"\",'Product registration form'!R129,\"\")","v":""},null,"",null,"",null,"",null,"",null,null,"",null,"",null,"",null,"",null,""]
[{"$f":"IF('Product registration form'!V130<>\"\",'Product registration form'!V130,\"\")","v":""},{"$f":"IF('Product registration form'!R130<>\"\",'Product registration form'!R130,\"\")","v":""},null,"",null,"",null,"",null,"",null,null,"",null,"",null,"",null,"",null,""]
[{"$f":"IF('Product registration form'!V131<>\"\",'Product registration form'!V131,\"\")","v":""},{"$f":"IF('Product registration form'!R131<>\"\",'Product registration form'!R131,\"\")","v":""},null,"",null,"",null,"",null,"",null,null,"",null,"",null,"",null,"",null,""]
[{"$f":"IF('Product registration form'!V132<>\"\",'Product registration form'!V132,\"\")","v":""},{"$f":"IF('Product registration form'!R132<>\"\",'Product registration form'!R132,\"\")","v":""},null,"",null,"",null,"",null,{"$f":"IF(I132<>\"\",LEN(I132),\"\")","v":""},null,null,"",null,"",null,"",null,"",null,""]
[{"$f":"IF('Product registration form'!V133<>\"\",'Product registration form'!V133,\"\")","v":""},{"$f":"IF('Product registration form'!R133<>\"\",'Product registration form'!R133,\"\")","v":""},null,"",null,"",null,"",null,{"$f":"IF(I133<>\"\",LEN(I133),\"\")","v":""},null,null,{"$f":"IF(L133<>\"\",LEN(L133),\"\")","v":""},null,"",null,"",null,"",null,{"$f":"IF(T133<>\"\",LEN(T133),\"\")","v":""}]
[{"$f":"IF('Product registration form'!V134<>\"\",'Product registration form'!V134,\"\")","v":""},{"$f":"IF('Product registration form'!R134<>\"\",'Product registration form'!R134,\"\")","v":""},null,{"$f":"IF(C134<>\"\",LEN(C134),\"\")","v":""},null,{"$f":"IF(E134<>\"\",LEN(E134),\"\")","v":""},null,{"$f":"IF(G134<>\"\",LEN(G134),\"\")","v":""},null,"",null,null,"",null,{"$f":"IF(N134<>\"\",LEN(N134),\"\")","v":""},null,{"$f":"IF(P134<>\"\",LEN(P134),\"\")","v":""},null,{"$f":"IF(R134<>\"\",LEN(R134),\"\")","v":""},null,""]
[{"$f":"IF('Product registration form'!V135<>\"\",'Product registration form'!V135,\"\")","v":""},{"$f":"IF('Product registration form'!R135<>\"\",'Product registration form'!R135,\"\")","v":""},null,"",null,"",null,"",null,"",null,null,"",null,"",null,"",null,"",null,""]
[{"$f":"IF('Product registration form'!V136<>\"\",'Product registration form'!V136,\"\")","v":""},{"$f":"IF('Product registration form'!R136<>\"\",'Product registration form'!R136,\"\")","v":""},null,"",null,"",null,"",null,"",null,null,"",null,"",null,"",null,"",null,""]
[{"$f":"IF('Product registration form'!V137<>\"\",'Product registration form'!V137,\"\")","v":""},{"$f":"IF('Product registration form'!R137<>\"\",'Product registration form'!R137,\"\")","v":""},null,"",null,"",null,"",null,"",null,null,"",null,"",null,"",null,"",null,""]
[{"$f":"IF('Product registration form'!V138<>\"\",'Product registration form'!V138,\"\")","v":""},{"$f":"IF('Product registration form'!R138<>\"\",'Product registration form'!R138,\"\")","v":""},null,"",null,"",null,"",null,"",null,null,"",null,"",null,"",null,"",null,""]
[{"$f":"IF('Product registration form'!V139<>\"\",'Product registration form'!V139,\"\")","v":""},{"$f":"IF('Product registration form'!R139<>\"\",'Product registration form'!R139,\"\")","v":""},null,"",null,"",null,"",null,"",null,null,"",null,"",null,"",null,"",null,""]
[{"$f":"IF('Product registration form'!V140<>\"\",'Product registration form'!V140,\"\")","v":""},{"$f":"IF('Product registration form'!R140<>\"\",'Product registration form'!R140,\"\")","v":""},null,"",null,"",null,"",null,"",null,null,"",null,"",null,"",null,"",null,""]
[{"$f":"IF('Product registration form'!V141<>\"\",'Product registration form'!V141,\"\")","v":""},{"$f":"IF('Product registration form'!R141<>\"\",'Product registration form'!R141,\"\")","v":""},null,"",null,"",null,"",null,"",null,null,"",null,"",null,"",null,"",null,""]
[{"$f":"IF('Product registration form'!V142<>\"\",'Product registration form'!V142,\"\")","v":""},{"$f":"IF('Product registration form'!R142<>\"\",'Product registration form'!R142,\"\")","v":""},null,"",null,"",null,"",null,"",null,null,"",null,"",null,"",null,"",null,""]
[{"$f":"IF('Product registration form'!V143<>\"\",'Product registration form'!V143,\"\")","v":""},{"$f":"IF('Product registration form'!R143<>\"\",'Product registration form'!R143,\"\")","v":""},null,"",null,"",null,"",null,"",null,null,"",null,"",null,"",null,"",null,""]
[{"$f":"IF('Product registration form'!V144<>\"\",'Product registration form'!V144,\"\")","v":""},{"$f":"IF('Product registration form'!R144<>\"\",'Product registration form'!R144,\"\")","v":""},null,"",null,"",null,"",null,"",null,null,"",null,"",null,"",null,"",null,""]
[{"$f":"IF('Product registration form'!V145<>\"\",'Product registration form'!V145,\"\")","v":""},{"$f":"IF('Product registration form'!R145<>\"\",'Product registration form'!R145,\"\")","v":""},null,"",null,"",null,"",null,"",null,null,"",null,"",null,"",null,"",null,""]
[{"$f":"IF('Product registration form'!V146<>\"\",'Product registration form'!V146,\"\")","v":""},{"$f":"IF('Product registration form'!R146<>\"\",'Product registration form'!R146,\"\")","v":""},null,"",null,"",null,"",null,"",null,null,"",null,"",null,"",null,"",null,""]
[{"$f":"IF('Product registration form'!V147<>\"\",'Product registration form'!V147,\"\")","v":""},{"$f":"IF('Product registration form'!R147<>\"\",'Product registration form'!R147,\"\")","v":""},null,"",null,"",null,"",null,"",null,null,"",null,"",null,"",null,"",null,""]
[{"$f":"IF('Product registration form'!V148<>\"\",'Product registration form'!V148,\"\")","v":""},{"$f":"IF('Product registration form'!R148<>\"\",'Product registration form'!R148,\"\")","v":""},null,"",null,"",null,"",null,"",null,null,"",null,"",null,"",null,"",null,""]
[{"$f":"IF('Product registration form'!V149<>\"\",'Product registration form'!V149,\"\")","v":""},{"$f":"IF('Product registration form'!R149<>\"\",'Product registration form'!R149,\"\")","v":""},null,"",null,"",null,"",null,"",null,null,"",null,"",null,"",null,"",null,""]
[{"$f":"IF('Product registration form'!V150<>\"\",'Product registration form'!V150,\"\")","v":""},{"$f":"IF('Product registration form'!R150<>\"\",'Product registration form'!R150,\"\")","v":""},null,"",null,"",null,"",null,"",null,null,"",null,"",null,"",null,"",null,""]
[{"$f":"IF('Product registration form'!V151<>\"\",'Product registration form'!V151,\"\")","v":""},{"$f":"IF('Product registration form'!R151<>\"\",'Product registration form'!R151,\"\")","v":""},null,"",null,"",null,"",null,"",null,null,"",null,"",null,"",null,"",null,""]
[{"$f":"IF('Product registration form'!V152<>\"\",'Product registration form'!V152,\"\")","v":""},{"$f":"IF('Product registration form'!R152<>\"\",'Product registration form'!R152,\"\")","v":""},null,"",null,"",null,"",null,"",null,null,"",null,"",null,"",null,"",null,""]
[{"$f":"IF('Product registration form'!V153<>\"\",'Product registration form'!V153,\"\")","v":""},{"$f":"IF('Product registration form'!R153<>\"\",'Product registration form'!R153,\"\")","v":""},null,"",null,"",null,"",null,"",null,null,"",null,"",null,"",null,"",null,""]
[{"$f":"IF('Product registration form'!V154<>\"\",'Product registration form'!V154,\"\")","v":""},{"$f":"IF('Product registration form'!R154<>\"\",'Product registration form'!R154,\"\")","v":""},null,"",null,"",null,"",null,"",null,null,"",null,"",null,"",null,"",null,""]
[{"$f":"IF('Product registration form'!V155<>\"\",'Product registration form'!V155,\"\")","v":""},{"$f":"IF('Product registration form'!R155<>\"\",'Product registration form'!R155,\"\")","v":""},null,"",null,"",null,"",null,"",null,null,"",null,"",null,"",null,"",null,""]
[{"$f":"IF('Product registration form'!V156<>\"\",'Product registration form'!V156,\"\")","v":""},{"$f":"IF('Product registration form'!R156<>\"\",'Product registration form'!R156,\"\")","v":""},null,"",null,"",null,"",null,"",null,null,"",null,"",null,"",null,"",null,""]
[{"$f":"IF('Product registration form'!V157<>\"\",'Product registration form'!V157,\"\")","v":""},{"$f":"IF('Product registration form'!R157<>\"\",'Product registration form'!R157,\"\")","v":""},null,"",null,"",null,"",null,"",null,null,"",null,"",null,"",null,"",null,""]
[{"$f":"IF('Product registration form'!V158<>\"\",'Product registration form'!V158,\"\")","v":""},{"$f":"IF('Product registration form'!R158<>\"\",'Product registration form'!R158,\"\")","v":""},null,"",null,"",null,"",null,"",null,null,"",null,"",null,"",null,"",null,""]
[{"$f":"IF('Product registration form'!V159<>\"\",'Product registration form'!V159,\"\")","v":""},{"$f":"IF('Product registration form'!R159<>\"\",'Product registration form'!R159,\"\")","v":""},null,"",null,"",null,"",null,"",null,null,"",null,"",null,"",null,"",null,""]
[{"$f":"IF('Product registration form'!V160<>\"\",'Product registration form'!V160,\"\")","v":""},{"$f":"IF('Product registration form'!R160<>\"\",'Product registration form'!R160,\"\")","v":""},null,"",null,"",null,"",null,"",null,null,"",null,"",null,"",null,"",null,""]
[{"$f":"IF('Product registration form'!V161<>\"\",'Product registration form'!V161,\"\")","v":""},{"$f":"IF('Product registration form'!R161<>\"\",'Product registration form'!R161,\"\")","v":""},null,"",null,"",null,"",null,"",null,null,"",null,"",null,"",null,"",null,""]
[{"$f":"IF('Product registration form'!V162<>\"\",'Product registration form'!V162,\"\")","v":""},{"$f":"IF('Product registration form'!R162<>\"\",'Product registration form'!R162,\"\")","v":""},null,"",null,"",null,"",null,"",null,null,"",null,"",null,"",null,"",null,""]
[{"$f":"IF('Product registration form'!V163<>\"\",'Product registration form'!V163,\"\")","v":""},{"$f":"IF('Product registration form'!R163<>\"\",'Product registration form'!R163,\"\")","v":""},null,"",null,"",null,"",null,"",null,null,"",null,"",null,"",null,"",null,""]
[{"$f":"IF('Product registration form'!V164<>\"\",'Product registration form'!V164,\"\")","v":""},{"$f":"IF('Product registration form'!R164<>\"\",'Product registration form'!R164,\"\")","v":""},null,"",null,"",null,"",null,"",null,null,"",null,"",null,"",null,"",null,""]
[{"$f":"IF('Product registration form'!V165<>\"\",'Product registration form'!V165,\"\")","v":""},{"$f":"IF('Product registration form'!R165<>\"\",'Product registration form'!R165,\"\")","v":""},null,"",null,"",null,"",null,"",null,null,"",null,"",null,"",null,"",null,""]
[{"$f":"IF('Product registration form'!V166<>\"\",'Product registration form'!V166,\"\")","v":""},{"$f":"IF('Product registration form'!R166<>\"\",'Product registration form'!R166,\"\")","v":""},null,"",null,"",null,"",null,"",null,null,"",null,"",null,"",null,"",null,""]
[{"$f":"IF('Product registration form'!V167<>\"\",'Product registration form'!V167,\"\")","v":""},{"$f":"IF('Product registration form'!R167<>\"\",'Product registration form'!R167,\"\")","v":""},null,"",null,"",null,"",null,"",null,null,"",null,"",null,"",null,"",null,""]
[{"$f":"IF('Product registration form'!V168<>\"\",'Product registration form'!V168,\"\")","v":""},{"$f":"IF('Product registration form'!R168<>\"\",'Product registration form'!R168,\"\")","v":""},null,"",null,"",null,"",null,"",null,null,"",null,"",null,"",null,"",null,""]
[{"$f":"IF('Product registration form'!V169<>\"\",'Product registration form'!V169,\"\")","v":""},{"$f":"IF('Product registration form'!R169<>\"\",'Product registration form'!R169,\"\")","v":""},null,"",null,"",null,"",null,"",null,null,"",null,"",null,"",null,"",null,""]
[{"$f":"IF('Product registration form'!V170<>\"\",'Product registration form'!V170,\"\")","v":""},{"$f":"IF('Product registration form'!R170<>\"\",'Product registration form'!R170,\"\")","v":""},null,"",null,"",null,"",null,"",null,null,"",null,"",null,"",null,"",null,""]
[{"$f":"IF('Product registration form'!V171<>\"\",'Product registration form'!V171,\"\")","v":""},{"$f":"IF('Product registration form'!R171<>\"\",'Product registration form'!R171,\"\")","v":""},null,"",null,"",null,"",null,"",null,null,"",null,"",null,"",null,"",null,""]
[{"$f":"IF('Product registration form'!V172<>\"\",'Product registration form'!V172,\"\")","v":""},{"$f":"IF('Product registration form'!R172<>\"\",'Product registration form'!R172,\"\")","v":""},null,"",null,"",null,"",null,"",null,null,"",null,"",null,"",null,"",null,""]
[{"$f":"IF('Product registration form'!V173<>\"\",'Product registration form'!V173,\"\")","v":""},{"$f":"IF('Product registration form'!R173<>\"\",'Product registration form'!R173,\"\")","v":""},null,"",null,"",null,"",null,"",null,null,"",null,"",null,"",null,"",null,""]
[{"$f":"IF('Product registration form'!V174<>\"\",'Product registration form'!V174,\"\")","v":""},{"$f":"IF('Product registration form'!R174<>\"\",'Product registration form'!R174,\"\")","v":""},null,"",null,"",null,"",null,"",null,null,"",null,"",null,"",null,"",null,""]
[{"$f":"IF('Product registration form'!V175<>\"\",'Product registration form'!V175,\"\")","v":""},{"$f":"IF('Product registration form'!R175<>\"\",'Product registration form'!R175,\"\")","v":""},null,"",null,"",null,"",null,"",null,null,"",null,"",null,"",null,"",null,""]
[{"$f":"IF('Product registration form'!V176<>\"\",'Product registration form'!V176,\"\")","v":""},{"$f":"IF('Product registration form'!R176<>\"\",'Product registration form'!R176,\"\")","v":""},null,"",null,"",null,"",null,"",null,null,"",null,"",null,"",null,"",null,""]
[{"$f":"IF('Product registration form'!V177<>\"\",'Product registration form'!V177,\"\")","v":""},{"$f":"IF('Product registration form'!R177<>\"\",'Product registration form'!R177,\"\")","v":""},null,"",null,"",null,"",null,"",null,null,"",null,"",null,"",null,"",null,""]
[{"$f":"IF('Product registration form'!V178<>\"\",'Product registration form'!V178,\"\")","v":""},{"$f":"IF('Product registration form'!R178<>\"\",'Product registration form'!R178,\"\")","v":""},null,"",null,"",null,"",null,"",null,null,"",null,"",null,"",null,"",null,""]
[{"$f":"IF('Product registration form'!V179<>\"\",'Product registration form'!V179,\"\")","v":""},{"$f":"IF('Product registration form'!R179<>\"\",'Product registration form'!R179,\"\")","v":""},null,"",null,"",null,"",null,"",null,null,"",null,"",null,"",null,"",null,""]
[{"$f":"IF('Product registration form'!V180<>\"\",'Product registration form'!V180,\"\")","v":""},{"$f":"IF('Product registration form'!R180<>\"\",'Product registration form'!R180,\"\")","v":""},null,"",null,"",null,"",null,"",null,null,"",null,"",null,"",null,"",null,""]
[{"$f":"IF('Product registration form'!V181<>\"\",'Product registration form'!V181,\"\")","v":""},{"$f":"IF('Product registration form'!R181<>\"\",'Product registration form'!R181,\"\")","v":""},null,"",null,"",null,"",null,"",null,null,"",null,"",null,"",null,"",null,""]
[{"$f":"IF('Product registration form'!V182<>\"\",'Product registration form'!V182,\"\")","v":""},{"$f":"IF('Product registration form'!R182<>\"\",'Product registration form'!R182,\"\")","v":""},null,"",null,"",null,"",null,"",null,null,"",null,"",null,"",null,"",null,""]
[{"$f":"IF('Product registration form'!V183<>\"\",'Product registration form'!V183,\"\")","v":""},{"$f":"IF('Product registration form'!R183<>\"\",'Product registration form'!R183,\"\")","v":""},null,"",null,"",null,"",null,"",null,null,"",null,"",null,"",null,"",null,""]
[{"$f":"IF('Product registration form'!V184<>\"\",'Product registration form'!V184,\"\")","v":""},{"$f":"IF('Product registration form'!R184<>\"\",'Product registration form'!R184,\"\")","v":""},null,"",null,"",null,"",null,"",null,null,"",null,"",null,"",null,"",null,""]
[{"$f":"IF('Product registration form'!V185<>\"\",'Product registration form'!V185,\"\")","v":""},{"$f":"IF('Product registration form'!R185<>\"\",'Product registration form'!R185,\"\")","v":""},null,"",null,"",null,"",null,"",null,null,"",null,"",null,"",null,"",null,""]
[{"$f":"IF('Product registration form'!V186<>\"\",'Product registration form'!V186,\"\")","v":""},{"$f":"IF('Product registration form'!R186<>\"\",'Product registration form'!R186,\"\")","v":""},null,"",null,"",null,"",null,"",null,null,"",null,"",null,"",null,"",null,""]
[{"$f":"IF('Product registration form'!V187<>\"\",'Product registration form'!V187,\"\")","v":""},{"$f":"IF('Product registration form'!R187<>\"\",'Product registration form'!R187,\"\")","v":""},null,"",null,"",null,"",null,{"$f":"IF(I187<>\"\",LEN(I187),\"\")","v":""},null,null,{"$f":"IF(L187<>\"\",LEN(L187),\"\")","v":""},null,"",null,"",null,"",null,{"$f":"IF(T187<>\"\",LEN(T187),\"\")","v":""}]
[{"$f":"IF('Product registration form'!V188<>\"\",'Product registration form'!V188,\"\")","v":""},{"$f":"IF('Product registration form'!R188<>\"\",'Product registration form'!R188,\"\")","v":""},null,"",null,"",null,"",null,"",null,null,"",null,"",null,"",null,"",null,""]
[{"$f":"IF('Product registration form'!V189<>\"\",'Product registration form'!V189,\"\")","v":""},{"$f":"IF('Product registration form'!R189<>\"\",'Product registration form'!R189,\"\")","v":""},null,"",null,"",null,"",null,"",null,null,"",null,"",null,"",null,"",null,""]
[{"$f":"IF('Product registration form'!V190<>\"\",'Product registration form'!V190,\"\")","v":""},{"$f":"IF('Product registration form'!R190<>\"\",'Product registration form'!R190,\"\")","v":""},null,"",null,"",null,"",null,"",null,null,"",null,"",null,"",null,"",null,""]
[{"$f":"IF('Product registration form'!V191<>\"\",'Product registration form'!V191,\"\")","v":""},{"$f":"IF('Product registration form'!R191<>\"\",'Product registration form'!R191,\"\")","v":""},null,"",null,"",null,"",null,"",null,null,"",null,"",null,"",null,"",null,""]
[{"$f":"IF('Product registration form'!V192<>\"\",'Product registration form'!V192,\"\")","v":""},{"$f":"IF('Product registration form'!R192<>\"\",'Product registration form'!R192,\"\")","v":""},null,"",null,"",null,"",null,"",null,null,"",null,"",null,"",null,"",null,""]
[{"$f":"IF('Product registration form'!V193<>\"\",'Product registration form'!V193,\"\")","v":""},{"$f":"IF('Product registration form'!R193<>\"\",'Product registration form'!R193,\"\")","v":""},null,"",null,"",null,"",null,"",null,null,"",null,"",null,"",null,"",null,""]
[{"$f":"IF('Product registration form'!V194<>\"\",'Product registration form'!V194,\"\")","v":""},{"$f":"IF('Product registration form'!R194<>\"\",'Product registration form'!R194,\"\")","v":""},null,"",null,"",null,"",null,"",null,null,"",null,"",null,"",null,"",null,""]
[{"$f":"IF('Product registration form'!V195<>\"\",'Product registration form'!V195,\"\")","v":""},{"$f":"IF('Product registration form'!R195<>\"\",'Product registration form'!R195,\"\")","v":""},null,"",null,"",null,"",null,"",null,null,"",null,"",null,"",null,"",null,""]
[{"$f":"IF('Product registration form'!V196<>\"\",'Product registration form'!V196,\"\")","v":""},{"$f":"IF('Product registration form'!R196<>\"\",'Product registration form'!R196,\"\")","v":""},null,"",null,"",null,"",null,"",null,null,"",null,"",null,"",null,"",null,""]
[{"$f":"IF('Product registration form'!V197<>\"\",'Product registration form'!V197,\"\")","v":""},{"$f":"IF('Product registration form'!R197<>\"\",'Product registration form'!R197,\"\")","v":""},null,"",null,"",null,"",null,"",null,null,"",null,"",null,"",null,"",null,""]
[{"$f":"IF('Product registration form'!V198<>\"\",'Product registration form'!V198,\"\")","v":""},{"$f":"IF('Product registration form'!R198<>\"\",'Product registration form'!R198,\"\")","v":""},null,{"$f":"IF(C198<>\"\",LEN(C198),\"\")","v":""},null,{"$f":"IF(E198<>\"\",LEN(E198),\"\")","v":""},null,{"$f":"IF(G198<>\"\",LEN(G198),\"\")","v":""},null,"",null,null,"",null,{"$f":"IF(N198<>\"\",LEN(N198),\"\")","v":""},null,{"$f":"IF(P198<>\"\",LEN(P198),\"\")","v":""},null,{"$f":"IF(R198<>\"\",LEN(R198),\"\")","v":""},null,""]
[{"$f":"IF('Product registration form'!V199<>\"\",'Product registration form'!V199,\"\")","v":""},{"$f":"IF('Product registration form'!R199<>\"\",'Product registration form'!R199,\"\")","v":""},null,"",null,"",null,"",null,"",null,null,"",null,"",null,"",null,"",null,""]
[{"$f":"IF('Product registration form'!V200<>\"\",'Product registration form'!V200,\"\")","v":""},{"$f":"IF('Product registration form'!R200<>\"\",'Product registration form'!R200,\"\")","v":""},null,"",null,"",null,"",null,"",null,null,"",null,"",null,"",null,"",null,""]

{"sheet":"Bottle deposit","index":3,"n_rows":200,"n_cols":10,"rows_kept":200,"cut":false,"hidden":false,"merged":[[2,1,3,1],[2,6,2,9],[2,0,3,0],[2,2,2,5]]}
[]
[null,null,null,"To be filled by vendor",null,"To be filled by buying dep."]
["GTIN","Article description","Deposit sales unit",null,null,null,"Deposit (Crate/Tray) order unit"]
[null,null,"DS Article No.","Deposit type","Deposit GTIN EA","Number of deposits in EA","DS Article No.","Description","Crate/Tray GTIN","Number of Crates/Trays  pr. order unit"]
[{"$f":"IF('Product registration form'!V5<>\"\",'Product registration form'!V5,\"\")","v":""},{"$f":"IF('Product registration form'!R5<>\"\",'Product registration form'!R5,\"\")","v":""}]
[{"$f":"IF('Product registration form'!V6<>\"\",'Product registration form'!V6,\"\")","v":""},{"$f":"IF('Product registration form'!R6<>\"\",'Product registration form'!R6,\"\")","v":""}]
[{"$f":"IF('Product registration form'!V7<>\"\",'Product registration form'!V7,\"\")","v":""},{"$f":"IF('Product registration form'!R7<>\"\",'Product registration form'!R7,\"\")","v":""}]
[{"$f":"IF('Product registration form'!V8<>\"\",'Product registration form'!V8,\"\")","v":""},{"$f":"IF('Product registration form'!R8<>\"\",'Product registration form'!R8,\"\")","v":""}]
[{"$f":"IF('Product registration form'!V9<>\"\",'Product registration form'!V9,\"\")","v":""},{"$f":"IF('Product registration form'!R9<>\"\",'Product registration form'!R9,\"\")","v":""}]
[{"$f":"IF('Product registration form'!V10<>\"\",'Product registration form'!V10,\"\")","v":""},{"$f":"IF('Product registration form'!R10<>\"\",'Product registration form'!R10,\"\")","v":""}]
[{"$f":"IF('Product registration form'!V11<>\"\",'Product registration form'!V11,\"\")","v":""},{"$f":"IF('Product registration form'!R11<>\"\",'Product registration form'!R11,\"\")","v":""}]
[{"$f":"IF('Product registration form'!V12<>\"\",'Product registration form'!V12,\"\")","v":""},{"$f":"IF('Product registration form'!R12<>\"\",'Product registration form'!R12,\"\")","v":""}]
[{"$f":"IF('Product registration form'!V13<>\"\",'Product registration form'!V13,\"\")","v":""},{"$f":"IF('Product registration form'!R13<>\"\",'Product registration form'!R13,\"\")","v":""}]
[{"$f":"IF('Product registration form'!V14<>\"\",'Product registration form'!V14,\"\")","v":""},{"$f":"IF('Product registration form'!R14<>\"\",'Product registration form'!R14,\"\")","v":""}]
[{"$f":"IF('Product registration form'!V15<>\"\",'Product registration form'!V15,\"\")","v":""},{"$f":"IF('Product registration form'!R15<>\"\",'Product registration form'!R15,\"\")","v":""}]
[{"$f":"IF('Product registration form'!V16<>\"\",'Product registration form'!V16,\"\")","v":""},{"$f":"IF('Product registration form'!R16<>\"\",'Product registration form'!R16,\"\")","v":""}]
[{"$f":"IF('Product registration form'!V17<>\"\",'Product registration form'!V17,\"\")","v":""},{"$f":"IF('Product registration form'!R17<>\"\",'Product registration form'!R17,\"\")","v":""}]
[{"$f":"IF('Product registration form'!V18<>\"\",'Product registration form'!V18,\"\")","v":""},{"$f":"IF('Product registration form'!R18<>\"\",'Product registration form'!R18,\"\")","v":""}]
[{"$f":"IF('Product registration form'!V19<>\"\",'Product registration form'!V19,\"\")","v":""},{"$f":"IF('Product registration form'!R19<>\"\",'Product registration form'!R19,\"\")","v":""}]
[{"$f":"IF('Product registration form'!V20<>\"\",'Product registration form'!V20,\"\")","v":""},{"$f":"IF('Product registration form'!R20<>\"\",'Product registration form'!R20,\"\")","v":""}]
[{"$f":"IF('Product registration form'!V21<>\"\",'Product registration form'!V21,\"\")","v":""},{"$f":"IF('Product registration form'!R21<>\"\",'Product registration form'!R21,\"\")","v":""}]
[{"$f":"IF('Product registration form'!V22<>\"\",'Product registration form'!V22,\"\")","v":""},{"$f":"IF('Product registration form'!R22<>\"\",'Product registration form'!R22,\"\")","v":""}]
[{"$f":"IF('Product registration form'!V23<>\"\",'Product registration form'!V23,\"\")","v":""},{"$f":"IF('Product registration form'!R23<>\"\",'Product registration form'!R23,\"\")","v":""}]
[{"$f":"IF('Product registration form'!V24<>\"\",'Product registration form'!V24,\"\")","v":""},{"$f":"IF('Product registration form'!R24<>\"\",'Product registration form'!R24,\"\")","v":""}]
[{"$f":"IF('Product registration form'!V25<>\"\",'Product registration form'!V25,\"\")","v":""},{"$f":"IF('Product registration form'!R25<>\"\",'Product registration form'!R25,\"\")","v":""}]
[{"$f":"IF('Product registration form'!V26<>\"\",'Product registration form'!V26,\"\")","v":""},{"$f":"IF('Product registration form'!R26<>\"\",'Product registration form'!R26,\"\")","v":""}]
[{"$f":"IF('Product registration form'!V27<>\"\",'Product registration form'!V27,\"\")","v":""},{"$f":"IF('Product registration form'!R27<>\"\",'Product registration form'!R27,\"\")","v":""}]
[{"$f":"IF('Product registration form'!V28<>\"\",'Product registration form'!V28,\"\")","v":""},{"$f":"IF('Product registration form'!R28<>\"\",'Product registration form'!R28,\"\")","v":""}]
[{"$f":"IF('Product registration form'!V29<>\"\",'Product registration form'!V29,\"\")","v":""},{"$f":"IF('Product registration form'!R29<>\"\",'Product registration form'!R29,\"\")","v":""}]
[{"$f":"IF('Product registration form'!V30<>\"\",'Product registration form'!V30,\"\")","v":""},{"$f":"IF('Product registration form'!R30<>\"\",'Product registration form'!R30,\"\")","v":""}]
[{"$f":"IF('Product registration form'!V31<>\"\",'Product registration form'!V31,\"\")","v":""},{"$f":"IF('Product registration form'!R31<>\"\",'Product registration form'!R31,\"\")","v":""}]
[{"$f":"IF('Product registration form'!V32<>\"\",'Product registration form'!V32,\"\")","v":""},{"$f":"IF('Product registration form'!R32<>\"\",'Product registration form'!R32,\"\")","v":""}]
[{"$f":"IF('Product registration form'!V33<>\"\",'Product registration form'!V33,\"\")","v":""},{"$f":"IF('Product registration form'!R33<>\"\",'Product registration form'!R33,\"\")","v":""}]
[{"$f":"IF('Product registration form'!V34<>\"\",'Product registration form'!V34,\"\")","v":""},{"$f":"IF('Product registration form'!R34<>\"\",'Product registration form'!R34,\"\")","v":""}]
[{"$f":"IF('Product registration form'!V35<>\"\",'Product registration form'!V35,\"\")","v":""},{"$f":"IF('Product registration form'!R35<>\"\",'Product registration form'!R35,\"\")","v":""}]
[{"$f":"IF('Product registration form'!V36<>\"\",'Product registration form'!V36,\"\")","v":""},{"$f":"IF('Product registration form'!R36<>\"\",'Product registration form'!R36,\"\")","v":""}]
[{"$f":"IF('Product registration form'!V37<>\"\",'Product registration form'!V37,\"\")","v":""},{"$f":"IF('Product registration form'!R37<>\"\",'Product registration form'!R37,\"\")","v":""}]
[{"$f":"IF('Product registration form'!V38<>\"\",'Product registration form'!V38,\"\")","v":""},{"$f":"IF('Product registration form'!R38<>\"\",'Product registration form'!R38,\"\")","v":""}]
[{"$f":"IF('Product registration form'!V39<>\"\",'Product registration form'!V39,\"\")","v":""},{"$f":"IF('Product registration form'!R39<>\"\",'Product registration form'!R39,\"\")","v":""}]
[{"$f":"IF('Product registration form'!V40<>\"\",'Product registration form'!V40,\"\")","v":""},{"$f":"IF('Product registration form'!R40<>\"\",'Product registration form'!R40,\"\")","v":""}]
[{"$f":"IF('Product registration form'!V41<>\"\",'Product registration form'!V41,\"\")","v":""},{"$f":"IF('Product registration form'!R41<>\"\",'Product registration form'!R41,\"\")","v":""}]
[{"$f":"IF('Product registration form'!V42<>\"\",'Product registration form'!V42,\"\")","v":""},{"$f":"IF('Product registration form'!R42<>\"\",'Product registration form'!R42,\"\")","v":""}]
[{"$f":"IF('Product registration form'!V43<>\"\",'Product registration form'!V43,\"\")","v":""},{"$f":"IF('Product registration form'!R43<>\"\",'Product registration form'!R43,\"\")","v":""}]
[{"$f":"IF('Product registration form'!V44<>\"\",'Product registration form'!V44,\"\")","v":""},{"$f":"IF('Product registration form'!R44<>\"\",'Product registration form'!R44,\"\")","v":""}]
[{"$f":"IF('Product registration form'!V45<>\"\",'Product registration form'!V45,\"\")","v":""},{"$f":"IF('Product registration form'!R45<>\"\",'Product registration form'!R45,\"\")","v":""}]
[{"$f":"IF('Product registration form'!V46<>\"\",'Product registration form'!V46,\"\")","v":""},{"$f":"IF('Product registration form'!R46<>\"\",'Product registration form'!R46,\"\")","v":""}]
[{"$f":"IF('Product registration form'!V47<>\"\",'Product registration form'!V47,\"\")","v":""},{"$f":"IF('Product registration form'!R47<>\"\",'Product registration form'!R47,\"\")","v":""}]
[{"$f":"IF('Product registration form'!V48<>\"\",'Product registration form'!V48,\"\")","v":""},{"$f":"IF('Product registration form'!R48<>\"\",'Product registration form'!R48,\"\")","v":""}]
[{"$f":"IF('Product registration form'!V49<>\"\",'Product registration form'!V49,\"\")","v":""},{"$f":"IF('Product registration form'!R49<>\"\",'Product registration form'!R49,\"\")","v":""}]
[{"$f":"IF('Product registration form'!V50<>\"\",'Product registration form'!V50,\"\")","v":""},{"$f":"IF('Product registration form'!R50<>\"\",'Product registration form'!R50,\"\")","v":""}]
[{"$f":"IF('Product registration form'!V51<>\"\",'Product registration form'!V51,\"\")","v":""},{"$f":"IF('Product registration form'!R51<>\"\",'Product registration form'!R51,\"\")","v":""}]
[{"$f":"IF('Product registration form'!V52<>\"\",'Product registration form'!V52,\"\")","v":""},{"$f":"IF('Product registration form'!R52<>\"\",'Product registration form'!R52,\"\")","v":""}]
[{"$f":"IF('Product registration form'!V53<>\"\",'Product registration form'!V53,\"\")","v":""},{"$f":"IF('Product registration form'!R53<>\"\",'Product registration form'!R53,\"\")","v":""}]
[{"$f":"IF('Product registration form'!V54<>\"\",'Product registration form'!V54,\"\")","v":""},{"$f":"IF('Product registration form'!R54<>\"\",'Product registration form'!R54,\"\")","v":""}]
[{"$f":"IF('Product registration form'!V55<>\"\",'Product registration form'!V55,\"\")","v":""},{"$f":"IF('Product registration form'!R55<>\"\",'Product registration form'!R55,\"\")","v":""}]
[{"$f":"IF('Product registration form'!V56<>\"\",'Product registration form'!V56,\"\")","v":""},{"$f":"IF('Product registration form'!R56<>\"\",'Product registration form'!R56,\"\")","v":""}]
[{"$f":"IF('Product registration form'!V57<>\"\",'Product registration form'!V57,\"\")","v":""},{"$f":"IF('Product registration form'!R57<>\"\",'Product registration form'!R57,\"\")","v":""}]
[{"$f":"IF('Product registration form'!V58<>\"\",'Product registration form'!V58,\"\")","v":""},{"$f":"IF('Product registration form'!R58<>\"\",'Product registration form'!R58,\"\")","v":""}]
[{"$f":"IF('Product registration form'!V59<>\"\",'Product registration form'!V59,\"\")","v":""},{"$f":"IF('Product registration form'!R59<>\"\",'Product registration form'!R59,\"\")","v":""}]
[{"$f":"IF('Product registration form'!V60<>\"\",'Product registration form'!V60,\"\")","v":""},{"$f":"IF('Product registration form'!R60<>\"\",'Product registration form'!R60,\"\")","v":""}]
[{"$f":"IF('Product registration form'!V61<>\"\",'Product registration form'!V61,\"\")","v":""},{"$f":"IF('Product registration form'!R61<>\"\",'Product registration form'!R61,\"\")","v":""}]
[{"$f":"IF('Product registration form'!V62<>\"\",'Product registration form'!V62,\"\")","v":""},{"$f":"IF('Product registration form'!R62<>\"\",'Product registration form'!R62,\"\")","v":""}]
[{"$f":"IF('Product registration form'!V63<>\"\",'Product registration form'!V63,\"\")","v":""},{"$f":"IF('Product registration form'!R63<>\"\",'Product registration form'!R63,\"\")","v":""}]
[{"$f":"IF('Product registration form'!V64<>\"\",'Product registration form'!V64,\"\")","v":""},{"$f":"IF('Product registration form'!R64<>\"\",'Product registration form'!R64,\"\")","v":""}]
[{"$f":"IF('Product registration form'!V65<>\"\",'Product registration form'!V65,\"\")","v":""},{"$f":"IF('Product registration form'!R65<>\"\",'Product registration form'!R65,\"\")","v":""}]
[{"$f":"IF('Product registration form'!V66<>\"\",'Product registration form'!V66,\"\")","v":""},{"$f":"IF('Product registration form'!R66<>\"\",'Product registration form'!R66,\"\")","v":""}]
[{"$f":"IF('Product registration form'!V67<>\"\",'Product registration form'!V67,\"\")","v":""},{"$f":"IF('Product registration form'!R67<>\"\",'Product registration form'!R67,\"\")","v":""}]
[{"$f":"IF('Product registration form'!V68<>\"\",'Product registration form'!V68,\"\")","v":""},{"$f":"IF('Product registration form'!R68<>\"\",'Product registration form'!R68,\"\")","v":""}]
[{"$f":"IF('Product registration form'!V69<>\"\",'Product registration form'!V69,\"\")","v":""},{"$f":"IF('Product registration form'!R69<>\"\",'Product registration form'!R69,\"\")","v":""}]
[{"$f":"IF('Product registration form'!V70<>\"\",'Product registration form'!V70,\"\")","v":""},{"$f":"IF('Product registration form'!R70<>\"\",'Product registration form'!R70,\"\")","v":""}]
[{"$f":"IF('Product registration form'!V71<>\"\",'Product registration form'!V71,\"\")","v":""},{"$f":"IF('Product registration form'!R71<>\"\",'Product registration form'!R71,\"\")","v":""}]
[{"$f":"IF('Product registration form'!V72<>\"\",'Product registration form'!V72,\"\")","v":""},{"$f":"IF('Product registration form'!R72<>\"\",'Product registration form'!R72,\"\")","v":""}]
[{"$f":"IF('Product registration form'!V73<>\"\",'Product registration form'!V73,\"\")","v":""},{"$f":"IF('Product registration form'!R73<>\"\",'Product registration form'!R73,\"\")","v":""}]
[{"$f":"IF('Product registration form'!V74<>\"\",'Product registration form'!V74,\"\")","v":""},{"$f":"IF('Product registration form'!R74<>\"\",'Product registration form'!R74,\"\")","v":""}]
[{"$f":"IF('Product registration form'!V75<>\"\",'Product registration form'!V75,\"\")","v":""},{"$f":"IF('Product registration form'!R75<>\"\",'Product registration form'!R75,\"\")","v":""}]
[{"$f":"IF('Product registration form'!V76<>\"\",'Product registration form'!V76,\"\")","v":""},{"$f":"IF('Product registration form'!R76<>\"\",'Product registration form'!R76,\"\")","v":""}]
[{"$f":"IF('Product registration form'!V77<>\"\",'Product registration form'!V77,\"\")","v":""},{"$f":"IF('Product registration form'!R77<>\"\",'Product registration form'!R77,\"\")","v":""}]
[{"$f":"IF('Product registration form'!V78<>\"\",'Product registration form'!V78,\"\")","v":""},{"$f":"IF('Product registration form'!R78<>\"\",'Product registration form'!R78,\"\")","v":""}]
[{"$f":"IF('Product registration form'!V79<>\"\",'Product registration form'!V79,\"\")","v":""},{"$f":"IF('Product registration form'!R79<>\"\",'Product registration form'!R79,\"\")","v":""}]
[{"$f":"IF('Product registration form'!V80<>\"\",'Product registration form'!V80,\"\")","v":""},{"$f":"IF('Product registration form'!R80<>\"\",'Product registration form'!R80,\"\")","v":""}]
[{"$f":"IF('Product registration form'!V81<>\"\",'Product registration form'!V81,\"\")","v":""},{"$f":"IF('Product registration form'!R81<>\"\",'Product registration form'!R81,\"\")","v":""}]
[{"$f":"IF('Product registration form'!V82<>\"\",'Product registration form'!V82,\"\")","v":""},{"$f":"IF('Product registration form'!R82<>\"\",'Product registration form'!R82,\"\")","v":""}]
[{"$f":"IF('Product registration form'!V83<>\"\",'Product registration form'!V83,\"\")","v":""},{"$f":"IF('Product registration form'!R83<>\"\",'Product registration form'!R83,\"\")","v":""}]
[{"$f":"IF('Product registration form'!V84<>\"\",'Product registration form'!V84,\"\")","v":""},{"$f":"IF('Product registration form'!R84<>\"\",'Product registration form'!R84,\"\")","v":""}]
[{"$f":"IF('Product registration form'!V85<>\"\",'Product registration form'!V85,\"\")","v":""},{"$f":"IF('Product registration form'!R85<>\"\",'Product registration form'!R85,\"\")","v":""}]
[{"$f":"IF('Product registration form'!V86<>\"\",'Product registration form'!V86,\"\")","v":""},{"$f":"IF('Product registration form'!R86<>\"\",'Product registration form'!R86,\"\")","v":""}]
[{"$f":"IF('Product registration form'!V87<>\"\",'Product registration form'!V87,\"\")","v":""},{"$f":"IF('Product registration form'!R87<>\"\",'Product registration form'!R87,\"\")","v":""}]
[{"$f":"IF('Product registration form'!V88<>\"\",'Product registration form'!V88,\"\")","v":""},{"$f":"IF('Product registration form'!R88<>\"\",'Product registration form'!R88,\"\")","v":""}]
[{"$f":"IF('Product registration form'!V89<>\"\",'Product registration form'!V89,\"\")","v":""},{"$f":"IF('Product registration form'!R89<>\"\",'Product registration form'!R89,\"\")","v":""}]
[{"$f":"IF('Product registration form'!V90<>\"\",'Product registration form'!V90,\"\")","v":""},{"$f":"IF('Product registration form'!R90<>\"\",'Product registration form'!R90,\"\")","v":""}]
[{"$f":"IF('Product registration form'!V91<>\"\",'Product registration form'!V91,\"\")","v":""},{"$f":"IF('Product registration form'!R91<>\"\",'Product registration form'!R91,\"\")","v":""}]
[{"$f":"IF('Product registration form'!V92<>\"\",'Product registration form'!V92,\"\")","v":""},{"$f":"IF('Product registration form'!R92<>\"\",'Product registration form'!R92,\"\")","v":""}]
[{"$f":"IF('Product registration form'!V93<>\"\",'Product registration form'!V93,\"\")","v":""},{"$f":"IF('Product registration form'!R93<>\"\",'Product registration form'!R93,\"\")","v":""}]
[{"$f":"IF('Product registration form'!V94<>\"\",'Product registration form'!V94,\"\")","v":""},{"$f":"IF('Product registration form'!R94<>\"\",'Product registration form'!R94,\"\")","v":""}]
[{"$f":"IF('Product registration form'!V95<>\"\",'Product registration form'!V95,\"\")","v":""},{"$f":"IF('Product registration form'!R95<>\"\",'Product registration form'!R95,\"\")","v":""}]
[{"$f":"IF('Product registration form'!V96<>\"\",'Product registration form'!V96,\"\")","v":""},{"$f":"IF('Product registration form'!R96<>\"\",'Product registration form'!R96,\"\")","v":""}]
[{"$f":"IF('Product registration form'!V97<>\"\",'Product registration form'!V97,\"\")","v":""},{"$f":"IF('Product registration form'!R97<>\"\",'Product registration form'!R97,\"\")","v":""}]
[{"$f":"IF('Product registration form'!V98<>\"\",'Product registration form'!V98,\"\")","v":""},{"$f":"IF('Product registration form'!R98<>\"\",'Product registration form'!R98,\"\")","v":""}]
[{"$f":"IF('Product registration form'!V99<>\"\",'Product registration form'!V99,\"\")","v":""},{"$f":"IF('Product registration form'!R99<>\"\",'Product registration form'!R99,\"\")","v":""}]
[{"$f":"IF('Product registration form'!V100<>\"\",'Product registration form'!V100,\"\")","v":""},{"$f":"IF('Product registration form'!R100<>\"\",'Product registration form'!R100,\"\")","v":""}]
[{"$f":"IF('Product registration form'!V101<>\"\",'Product registration form'!V101,\"\")","v":""},{"$f":"IF('Product registration form'!R101<>\"\",'Product registration form'!R101,\"\")","v":""}]
[{"$f":"IF('Product registration form'!V102<>\"\",'Product registration form'!V102,\"\")","v":""},{"$f":"IF('Product registration form'!R102<>\"\",'Product registration form'!R102,\"\")","v":""}]
[{"$f":"IF('Product registration form'!V103<>\"\",'Product registration form'!V103,\"\")","v":""},{"$f":"IF('Product registration form'!R103<>\"\",'Product registration form'!R103,\"\")","v":""}]
[{"$f":"IF('Product registration form'!V104<>\"\",'Product registration form'!V104,\"\")","v":""},{"$f":"IF('Product registration form'!R104<>\"\",'Product registration form'!R104,\"\")","v":""}]
[{"$f":"IF('Product registration form'!V105<>\"\",'Product registration form'!V105,\"\")","v":""},{"$f":"IF('Product registration form'!R105<>\"\",'Product registration form'!R105,\"\")","v":""}]
[{"$f":"IF('Product registration form'!V106<>\"\",'Product registration form'!V106,\"\")","v":""},{"$f":"IF('Product registration form'!R106<>\"\",'Product registration form'!R106,\"\")","v":""}]
[{"$f":"IF('Product registration form'!V107<>\"\",'Product registration form'!V107,\"\")","v":""},{"$f":"IF('Product registration form'!R107<>\"\",'Product registration form'!R107,\"\")","v":""}]
[{"$f":"IF('Product registration form'!V108<>\"\",'Product registration form'!V108,\"\")","v":""},{"$f":"IF('Product registration form'!R108<>\"\",'Product registration form'!R108,\"\")","v":""}]
[{"$f":"IF('Product registration form'!V109<>\"\",'Product registration form'!V109,\"\")","v":""},{"$f":"IF('Product registration form'!R109<>\"\",'Product registration form'!R109,\"\")","v":""}]
[{"$f":"IF('Product registration form'!V110<>\"\",'Product registration form'!V110,\"\")","v":""},{"$f":"IF('Product registration form'!R110<>\"\",'Product registration form'!R110,\"\")","v":""}]
[{"$f":"IF('Product registration form'!V111<>\"\",'Product registration form'!V111,\"\")","v":""},{"$f":"IF('Product registration form'!R111<>\"\",'Product registration form'!R111,\"\")","v":""}]
[{"$f":"IF('Product registration form'!V112<>\"\",'Product registration form'!V112,\"\")","v":""},{"$f":"IF('Product registration form'!R112<>\"\",'Product registration form'!R112,\"\")","v":""}]
[{"$f":"IF('Product registration form'!V113<>\"\",'Product registration form'!V113,\"\")","v":""},{"$f":"IF('Product registration form'!R113<>\"\",'Product registration form'!R113,\"\")","v":""}]
[{"$f":"IF('Product registration form'!V114<>\"\",'Product registration form'!V114,\"\")","v":""},{"$f":"IF('Product registration form'!R114<>\"\",'Product registration form'!R114,\"\")","v":""}]
[{"$f":"IF('Product registration form'!V115<>\"\",'Product registration form'!V115,\"\")","v":""},{"$f":"IF('Product registration form'!R115<>\"\",'Product registration form'!R115,\"\")","v":""}]
[{"$f":"IF('Product registration form'!V116<>\"\",'Product registration form'!V116,\"\")","v":""},{"$f":"IF('Product registration form'!R116<>\"\",'Product registration form'!R116,\"\")","v":""}]
[{"$f":"IF('Product registration form'!V117<>\"\",'Product registration form'!V117,\"\")","v":""},{"$f":"IF('Product registration form'!R117<>\"\",'Product registration form'!R117,\"\")","v":""}]
[{"$f":"IF('Product registration form'!V118<>\"\",'Product registration form'!V118,\"\")","v":""},{"$f":"IF('Product registration form'!R118<>\"\",'Product registration form'!R118,\"\")","v":""}]
[{"$f":"IF('Product registration form'!V119<>\"\",'Product registration form'!V119,\"\")","v":""},{"$f":"IF('Product registration form'!R119<>\"\",'Product registration form'!R119,\"\")","v":""}]
[{"$f":"IF('Product registration form'!V120<>\"\",'Product registration form'!V120,\"\")","v":""},{"$f":"IF('Product registration form'!R120<>\"\",'Product registration form'!R120,\"\")","v":""}]
[{"$f":"IF('Product registration form'!V121<>\"\",'Product registration form'!V121,\"\")","v":""},{"$f":"IF('Product registration form'!R121<>\"\",'Product registration form'!R121,\"\")","v":""}]
[{"$f":"IF('Product registration form'!V122<>\"\",'Product registration form'!V122,\"\")","v":""},{"$f":"IF('Product registration form'!R122<>\"\",'Product registration form'!R122,\"\")","v":""}]
[{"$f":"IF('Product registration form'!V123<>\"\",'Product registration form'!V123,\"\")","v":""},{"$f":"IF('Product registration form'!R123<>\"\",'Product registration form'!R123,\"\")","v":""}]
[{"$f":"IF('Product registration form'!V124<>\"\",'Product registration form'!V124,\"\")","v":""},{"$f":"IF('Product registration form'!R124<>\"\",'Product registration form'!R124,\"\")","v":""}]
[{"$f":"IF('Product registration form'!V125<>\"\",'Product registration form'!V125,\"\")","v":""},{"$f":"IF('Product registration form'!R125<>\"\",'Product registration form'!R125,\"\")","v":""}]
[{"$f":"IF('Product registration form'!V126<>\"\",'Product registration form'!V126,\"\")","v":""},{"$f":"IF('Product registration form'!R126<>\"\",'Product registration form'!R126,\"\")","v":""}]
[{"$f":"IF('Product registration form'!V127<>\"\",'Product registration form'!V127,\"\")","v":""},{"$f":"IF('Product registration form'!R127<>\"\",'Product registration form'!R127,\"\")","v":""}]
[{"$f":"IF('Product registration form'!V128<>\"\",'Product registration form'!V128,\"\")","v":""},{"$f":"IF('Product registration form'!R128<>\"\",'Product registration form'!R128,\"\")","v":""}]
[{"$f":"IF('Product registration form'!V129<>\"\",'Product registration form'!V129,\"\")","v":""},{"$f":"IF('Product registration form'!R129<>\"\",'Product registration form'!R129,\"\")","v":""}]
[{"$f":"IF('Product registration form'!V130<>\"\",'Product registration form'!V130,\"\")","v":""},{"$f":"IF('Product registration form'!R130<>\"\",'Product registration form'!R130,\"\")","v":""}]
[{"$f":"IF('Product registration form'!V131<>\"\",'Product registration form'!V131,\"\")","v":""},{"$f":"IF('Product registration form'!R131<>\"\",'Product registration form'!R131,\"\")","v":""}]
[{"$f":"IF('Product registration form'!V132<>\"\",'Product registration form'!V132,\"\")","v":""},{"$f":"IF('Product registration form'!R132<>\"\",'Product registration form'!R132,\"\")","v":""}]
[{"$f":"IF('Product registration form'!V133<>\"\",'Product registration form'!V133,\"\")","v":""},{"$f":"IF('Product registration form'!R133<>\"\",'Product registration form'!R133,\"\")","v":""}]
[{"$f":"IF('Product registration form'!V134<>\"\",'Product registration form'!V134,\"\")","v":""},{"$f":"IF('Product registration form'!R134<>\"\",'Product registration form'!R134,\"\")","v":""}]
[{"$f":"IF('Product registration form'!V135<>\"\",'Product registration form'!V135,\"\")","v":""},{"$f":"IF('Product registration form'!R135<>\"\",'Product registration form'!R135,\"\")","v":""}]
[{"$f":"IF('Product registration form'!V136<>\"\",'Product registration form'!V136,\"\")","v":""},{"$f":"IF('Product registration form'!R136<>\"\",'Product registration form'!R136,\"\")","v":""}]
[{"$f":"IF('Product registration form'!V137<>\"\",'Product registration form'!V137,\"\")","v":""},{"$f":"IF('Product registration form'!R137<>\"\",'Product registration form'!R137,\"\")","v":""}]
[{"$f":"IF('Product registration form'!V138<>\"\",'Product registration form'!V138,\"\")","v":""},{"$f":"IF('Product registration form'!R138<>\"\",'Product registration form'!R138,\"\")","v":""}]
[{"$f":"IF('Product registration form'!V139<>\"\",'Product registration form'!V139,\"\")","v":""},{"$f":"IF('Product registration form'!R139<>\"\",'Product registration form'!R139,\"\")","v":""}]
[{"$f":"IF('Product registration form'!V140<>\"\",'Product registration form'!V140,\"\")","v":""},{"$f":"IF('Product registration form'!R140<>\"\",'Product registration form'!R140,\"\")","v":""}]
[{"$f":"IF('Product registration form'!V141<>\"\",'Product registration form'!V141,\"\")","v":""},{"$f":"IF('Product registration form'!R141<>\"\",'Product registration form'!R141,\"\")","v":""}]
[{"$f":"IF('Product registration form'!V142<>\"\",'Product registration form'!V142,\"\")","v":""},{"$f":"IF('Product registration form'!R142<>\"\",'Product registration form'!R142,\"\")","v":""}]
[{"$f":"IF('Product registration form'!V143<>\"\",'Product registration form'!V143,\"\")","v":""},{"$f":"IF('Product registration form'!R143<>\"\",'Product registration form'!R143,\"\")","v":""}]
[{"$f":"IF('Product registration form'!V144<>\"\",'Product registration form'!V144,\"\")","v":""},{"$f":"IF('Product registration form'!R144<>\"\",'Product registration form'!R144,\"\")","v":""}]
[{"$f":"IF('Product registration form'!V145<>\"\",'Product registration form'!V145,\"\")","v":""},{"$f":"IF('Product registration form'!R145<>\"\",'Product registration form'!R145,\"\")","v":""}]
[{"$f":"IF('Product registration form'!V146<>\"\",'Product registration form'!V146,\"\")","v":""},{"$f":"IF('Product registration form'!R146<>\"\",'Product registration form'!R146,\"\")","v":""}]
[{"$f":"IF('Product registration form'!V147<>\"\",'Product registration form'!V147,\"\")","v":""},{"$f":"IF('Product registration form'!R147<>\"\",'Product registration form'!R147,\"\")","v":""}]
[{"$f":"IF('Product registration form'!V148<>\"\",'Product registration form'!V148,\"\")","v":""},{"$f":"IF('Product registration form'!R148<>\"\",'Product registration form'!R148,\"\")","v":""}]
[{"$f":"IF('Product registration form'!V149<>\"\",'Product registration form'!V149,\"\")","v":""},{"$f":"IF('Product registration form'!R149<>\"\",'Product registration form'!R149,\"\")","v":""}]
[{"$f":"IF('Product registration form'!V150<>\"\",'Product registration form'!V150,\"\")","v":""},{"$f":"IF('Product registration form'!R150<>\"\",'Product registration form'!R150,\"\")","v":""}]
[{"$f":"IF('Product registration form'!V151<>\"\",'Product registration form'!V151,\"\")","v":""},{"$f":"IF('Product registration form'!R151<>\"\",'Product registration form'!R151,\"\")","v":""}]
[{"$f":"IF('Product registration form'!V152<>\"\",'Product registration form'!V152,\"\")","v":""},{"$f":"IF('Product registration form'!R152<>\"\",'Product registration form'!R152,\"\")","v":""}]
[{"$f":"IF('Product registration form'!V153<>\"\",'Product registration form'!V153,\"\")","v":""},{"$f":"IF('Product registration form'!R153<>\"\",'Product registration form'!R153,\"\")","v":""}]
[{"$f":"IF('Product registration form'!V154<>\"\",'Product registration form'!V154,\"\")","v":""},{"$f":"IF('Product registration form'!R154<>\"\",'Product registration form'!R154,\"\")","v":""}]
[{"$f":"IF('Product registration form'!V155<>\"\",'Product registration form'!V155,\"\")","v":""},{"$f":"IF('Product registration form'!R155<>\"\",'Product registration form'!R155,\"\")","v":""}]
[{"$f":"IF('Product registration form'!V156<>\"\",'Product registration form'!V156,\"\")","v":""},{"$f":"IF('Product registration form'!R156<>\"\",'Product registration form'!R156,\"\")","v":""}]
[{"$f":"IF('Product registration form'!V157<>\"\",'Product registration form'!V157,\"\")","v":""},{"$f":"IF('Product registration form'!R157<>\"\",'Product registration form'!R157,\"\")","v":""}]
[{"$f":"IF('Product registration form'!V158<>\"\",'Product registration form'!V158,\"\")","v":""},{"$f":"IF('Product registration form'!R158<>\"\",'Product registration form'!R158,\"\")","v":""}]
[{"$f":"IF('Product registration form'!V159<>\"\",'Product registration form'!V159,\"\")","v":""},{"$f":"IF('Product registration form'!R159<>\"\",'Product registration form'!R159,\"\")","v":""}]
[{"$f":"IF('Product registration form'!V160<>\"\",'Product registration form'!V160,\"\")","v":""},{"$f":"IF('Product registration form'!R160<>\"\",'Product registration form'!R160,\"\")","v":""}]
[{"$f":"IF('Product registration form'!V161<>\"\",'Product registration form'!V161,\"\")","v":""},{"$f":"IF('Product registration form'!R161<>\"\",'Product registration form'!R161,\"\")","v":""}]
[{"$f":"IF('Product registration form'!V162<>\"\",'Product registration form'!V162,\"\")","v":""},{"$f":"IF('Product registration form'!R162<>\"\",'Product registration form'!R162,\"\")","v":""}]
[{"$f":"IF('Product registration form'!V163<>\"\",'Product registration form'!V163,\"\")","v":""},{"$f":"IF('Product registration form'!R163<>\"\",'Product registration form'!R163,\"\")","v":""}]
[{"$f":"IF('Product registration form'!V164<>\"\",'Product registration form'!V164,\"\")","v":""},{"$f":"IF('Product registration form'!R164<>\"\",'Product registration form'!R164,\"\")","v":""}]
[{"$f":"IF('Product registration form'!V165<>\"\",'Product registration form'!V165,\"\")","v":""},{"$f":"IF('Product registration form'!R165<>\"\",'Product registration form'!R165,\"\")","v":""}]
[{"$f":"IF('Product registration form'!V166<>\"\",'Product registration form'!V166,\"\")","v":""},{"$f":"IF('Product registration form'!R166<>\"\",'Product registration form'!R166,\"\")","v":""}]
[{"$f":"IF('Product registration form'!V167<>\"\",'Product registration form'!V167,\"\")","v":""},{"$f":"IF('Product registration form'!R167<>\"\",'Product registration form'!R167,\"\")","v":""}]
[{"$f":"IF('Product registration form'!V168<>\"\",'Product registration form'!V168,\"\")","v":""},{"$f":"IF('Product registration form'!R168<>\"\",'Product registration form'!R168,\"\")","v":""}]
[{"$f":"IF('Product registration form'!V169<>\"\",'Product registration form'!V169,\"\")","v":""},{"$f":"IF('Product registration form'!R169<>\"\",'Product registration form'!R169,\"\")","v":""}]
[{"$f":"IF('Product registration form'!V170<>\"\",'Product registration form'!V170,\"\")","v":""},{"$f":"IF('Product registration form'!R170<>\"\",'Product registration form'!R170,\"\")","v":""}]
[{"$f":"IF('Product registration form'!V171<>\"\",'Product registration form'!V171,\"\")","v":""},{"$f":"IF('Product registration form'!R171<>\"\",'Product registration form'!R171,\"\")","v":""}]
[{"$f":"IF('Product registration form'!V172<>\"\",'Product registration form'!V172,\"\")","v":""},{"$f":"IF('Product registration form'!R172<>\"\",'Product registration form'!R172,\"\")","v":""}]
[{"$f":"IF('Product registration form'!V173<>\"\",'Product registration form'!V173,\"\")","v":""},{"$f":"IF('Product registration form'!R173<>\"\",'Product registration form'!R173,\"\")","v":""}]
[{"$f":"IF('Product registration form'!V174<>\"\",'Product registration form'!V174,\"\")","v":""},{"$f":"IF('Product registration form'!R174<>\"\",'Product registration form'!R174,\"\")","v":""}]
[{"$f":"IF('Product registration form'!V175<>\"\",'Product registration form'!V175,\"\")","v":""},{"$f":"IF('Product registration form'!R175<>\"\",'Product registration form'!R175,\"\")","v":""}]
[{"$f":"IF('Product registration form'!V176<>\"\",'Product registration form'!V176,\"\")","v":""},{"$f":"IF('Product registration form'!R176<>\"\",'Product registration form'!R176,\"\")","v":""}]
[{"$f":"IF('Product registration form'!V177<>\"\",'Product registration form'!V177,\"\")","v":""},{"$f":"IF('Product registration form'!R177<>\"\",'Product registration form'!R177,\"\")","v":""}]
[{"$f":"IF('Product registration form'!V178<>\"\",'Product registration form'!V178,\"\")","v":""},{"$f":"IF('Product registration form'!R178<>\"\",'Product registration form'!R178,\"\")","v":""}]
[{"$f":"IF('Product registration form'!V179<>\"\",'Product registration form'!V179,\"\")","v":""},{"$f":"IF('Product registration form'!R179<>\"\",'Product registration form'!R179,\"\")","v":""}]
[{"$f":"IF('Product registration form'!V180<>\"\",'Product registration form'!V180,\"\")","v":""},{"$f":"IF('Product registration form'!R180<>\"\",'Product registration form'!R180,\"\")","v":""}]
[{"$f":"IF('Product registration form'!V181<>\"\",'Product registration form'!V181,\"\")","v":""},{"$f":"IF('Product registration form'!R181<>\"\",'Product registration form'!R181,\"\")","v":""}]
[{"$f":"IF('Product registration form'!V182<>\"\",'Product registration form'!V182,\"\")","v":""},{"$f":"IF('Product registration form'!R182<>\"\",'Product registration form'!R182,\"\")","v":""}]
[{"$f":"IF('Product registration form'!V183<>\"\",'Product registration form'!V183,\"\")","v":""},{"$f":"IF('Product registration form'!R183<>\"\",'Product registration form'!R183,\"\")","v":""}]
[{"$f":"IF('Product registration form'!V184<>\"\",'Product registration form'!V184,\"\")","v":""},{"$f":"IF('Product registration form'!R184<>\"\",'Product registration form'!R184,\"\")","v":""}]
[{"$f":"IF('Product registration form'!V185<>\"\",'Product registration form'!V185,\"\")","v":""},{"$f":"IF('Product registration form'!R185<>\"\",'Product registration form'!R185,\"\")","v":""}]
[{"$f":"IF('Product registration form'!V186<>\"\",'Product registration form'!V186,\"\")","v":""},{"$f":"IF('Product registration form'!R186<>\"\",'Product registration form'!R186,\"\")","v":""}]
[{"$f":"IF('Product registration form'!V187<>\"\",'Product registration form'!V187,\"\")","v":""},{"$f":"IF('Product registration form'!R187<>\"\",'Product registration form'!R187,\"\")","v":""}]
[{"$f":"IF('Product registration form'!V188<>\"\",'Product registration form'!V188,\"\")","v":""},{"$f":"IF('Product registration form'!R188<>\"\",'Product registration form'!R188,\"\")","v":""}]
[{"$f":"IF('Product registration form'!V189<>\"\",'Product registration form'!V189,\"\")","v":""},{"$f":"IF('Product registration form'!R189<>\"\",'Product registration form'!R189,\"\")","v":""}]
[{"$f":"IF('Product registration form'!V190<>\"\",'Product registration form'!V190,\"\")","v":""},{"$f":"IF('Product registration form'!R190<>\"\",'Product registration form'!R190,\"\")","v":""}]
[{"$f":"IF('Product registration form'!V191<>\"\",'Product registration form'!V191,\"\")","v":""},{"$f":"IF('Product registration form'!R191<>\"\",'Product registration form'!R191,\"\")","v":""}]
[{"$f":"IF('Product registration form'!V192<>\"\",'Product registration form'!V192,\"\")","v":""},{"$f":"IF('Product registration form'!R192<>\"\",'Product registration form'!R192,\"\")","v":""}]
[{"$f":"IF('Product registration form'!V193<>\"\",'Product registration form'!V193,\"\")","v":""},{"$f":"IF('Product registration form'!R193<>\"\",'Product registration form'!R193,\"\")","v":""}]
[{"$f":"IF('Product registration form'!V194<>\"\",'Product registration form'!V194,\"\")","v":""},{"$f":"IF('Product registration form'!R194<>\"\",'Product registration form'!R194,\"\")","v":""}]
[{"$f":"IF('Product registration form'!V195<>\"\",'Product registration form'!V195,\"\")","v":""},{"$f":"IF('Product registration form'!R195<>\"\",'Product registration form'!R195,\"\")","v":""}]
[{"$f":"IF('Product registration form'!V196<>\"\",'Product registration form'!V196,\"\")","v":""},{"$f":"IF('Product registration form'!R196<>\"\",'Product registration form'!R196,\"\")","v":""}]
[{"$f":"IF('Product registration form'!V197<>\"\",'Product registration form'!V197,\"\")","v":""},{"$f":"IF('Product registration form'!R197<>\"\",'Product registration form'!R197,\"\")","v":""}]
[{"$f":"IF('Product registration form'!V198<>\"\",'Product registration form'!V198,\"\")","v":""},{"$f":"IF('Product registration form'!R198<>\"\",'Product registration form'!R198,\"\")","v":""}]
[{"$f":"IF('Product registration form'!V199<>\"\",'Product registration form'!V199,\"\")","v":""},{"$f":"IF('Product registration form'!R199<>\"\",'Product registration form'!R199,\"\")","v":""}]
[{"$f":"IF('Product registration form'!V200<>\"\",'Product registration form'!V200,\"\")","v":""},{"$f":"IF('Product registration form'!R200<>\"\",'Product registration form'!R200,\"\")","v":""}]

{"sheet":"Tax - Import only","index":4,"n_rows":200,"n_cols":13,"rows_kept":200,"cut":false,"hidden":false,"merged":[]}
[]
[]
[null,null,null,"To be filled by buying dep.",null,null,"To be filled by Master Data.",null,null,"To be filled by vendor",null,null,"Leave blank"]
["GTIN","Article description","Article no","WEEE","Product weight","Battery","21.1 Bottom cell\nweight i G","21.2 Acid blue\nweight in G","21.3 Nikkle cadmium\nweight in G","21.5 – Industrial\nweight in G","21.4 Other battery\nweight in G","Product weight minus battery"]
[{"$f":"IF('Product registration form'!V5<>\"\",'Product registration form'!V5,\"\")","v":""},{"$f":"IF('Product registration form'!R5<>\"\",'Product registration form'!R5,\"\")","v":""},null,null,{"$f":"IF('Product registration form'!#REF!<>\"\",'Product registration form'!#REF!,\"\")","v":{"$error":"#REF!"}},null,null,null,null,null,null,{"$f":"(E5*1000) - G5 - H5 - I5 - J5 - K5","v":{"$error":"#REF!"}}]
[{"$f":"IF('Product registration form'!V6<>\"\",'Product registration form'!V6,\"\")","v":""},{"$f":"IF('Product registration form'!R6<>\"\",'Product registration form'!R6,\"\")","v":""},null,null,{"$f":"IF('Product registration form'!#REF!<>\"\",'Product registration form'!#REF!,\"\")","v":{"$error":"#REF!"}},null,null,null,null,null,null,{"$f":"(E6*1000) - G6 - H6 - I6 - J6 - K6","v":{"$error":"#REF!"}}]
[{"$f":"IF('Product registration form'!V7<>\"\",'Product registration form'!V7,\"\")","v":""},{"$f":"IF('Product registration form'!R7<>\"\",'Product registration form'!R7,\"\")","v":""},null,null,{"$f":"IF('Product registration form'!#REF!<>\"\",'Product registration form'!#REF!,\"\")","v":{"$error":"#REF!"}},null,null,null,null,null,null,{"$error":"#REF!"}]
[{"$f":"IF('Product registration form'!V8<>\"\",'Product registration form'!V8,\"\")","v":""},{"$f":"IF('Product registration form'!R8<>\"\",'Product registration form'!R8,\"\")","v":""},null,null,{"$f":"IF('Product registration form'!#REF!<>\"\",'Product registration form'!#REF!,\"\")","v":{"$error":"#REF!"}},null,null,null,null,null,null,{"$error":"#REF!"}]
[{"$f":"IF('Product registration form'!V9<>\"\",'Product registration form'!V9,\"\")","v":""},{"$f":"IF('Product registration form'!R9<>\"\",'Product registration form'!R9,\"\")","v":""},null,null,{"$f":"IF('Product registration form'!#REF!<>\"\",'Product registration form'!#REF!,\"\")","v":{"$error":"#REF!"}},null,null,null,null,null,null,{"$error":"#REF!"}]
[{"$f":"IF('Product registration form'!V10<>\"\",'Product registration form'!V10,\"\")","v":""},{"$f":"IF('Product registration form'!R10<>\"\",'Product registration form'!R10,\"\")","v":""},null,null,{"$f":"IF('Product registration form'!#REF!<>\"\",'Product registration form'!#REF!,\"\")","v":{"$error":"#REF!"}},null,null,null,null,null,null,{"$error":"#REF!"}]
[{"$f":"IF('Product registration form'!V11<>\"\",'Product registration form'!V11,\"\")","v":""},{"$f":"IF('Product registration form'!R11<>\"\",'Product registration form'!R11,\"\")","v":""},null,null,{"$f":"IF('Product registration form'!#REF!<>\"\",'Product registration form'!#REF!,\"\")","v":{"$error":"#REF!"}},null,null,null,null,null,null,{"$error":"#REF!"}]
[{"$f":"IF('Product registration form'!V12<>\"\",'Product registration form'!V12,\"\")","v":""},{"$f":"IF('Product registration form'!R12<>\"\",'Product registration form'!R12,\"\")","v":""},null,null,{"$f":"IF('Product registration form'!#REF!<>\"\",'Product registration form'!#REF!,\"\")","v":{"$error":"#REF!"}},null,null,null,null,null,null,{"$error":"#REF!"}]
[{"$f":"IF('Product registration form'!V13<>\"\",'Product registration form'!V13,\"\")","v":""},{"$f":"IF('Product registration form'!R13<>\"\",'Product registration form'!R13,\"\")","v":""},null,null,{"$f":"IF('Product registration form'!#REF!<>\"\",'Product registration form'!#REF!,\"\")","v":{"$error":"#REF!"}},null,null,null,null,null,null,{"$error":"#REF!"}]
[{"$f":"IF('Product registration form'!V14<>\"\",'Product registration form'!V14,\"\")","v":""},{"$f":"IF('Product registration form'!R14<>\"\",'Product registration form'!R14,\"\")","v":""},null,null,{"$f":"IF('Product registration form'!#REF!<>\"\",'Product registration form'!#REF!,\"\")","v":{"$error":"#REF!"}},null,null,null,null,null,null,{"$error":"#REF!"}]
[{"$f":"IF('Product registration form'!V15<>\"\",'Product registration form'!V15,\"\")","v":""},{"$f":"IF('Product registration form'!R15<>\"\",'Product registration form'!R15,\"\")","v":""},null,null,{"$f":"IF('Product registration form'!#REF!<>\"\",'Product registration form'!#REF!,\"\")","v":{"$error":"#REF!"}},null,null,null,null,null,null,{"$error":"#REF!"}]
[{"$f":"IF('Product registration form'!V16<>\"\",'Product registration form'!V16,\"\")","v":""},{"$f":"IF('Product registration form'!R16<>\"\",'Product registration form'!R16,\"\")","v":""},null,null,{"$f":"IF('Product registration form'!#REF!<>\"\",'Product registration form'!#REF!,\"\")","v":{"$error":"#REF!"}},null,null,null,null,null,null,{"$error":"#REF!"}]
[{"$f":"IF('Product registration form'!V17<>\"\",'Product registration form'!V17,\"\")","v":""},{"$f":"IF('Product registration form'!R17<>\"\",'Product registration form'!R17,\"\")","v":""},null,null,{"$f":"IF('Product registration form'!#REF!<>\"\",'Product registration form'!#REF!,\"\")","v":{"$error":"#REF!"}},null,null,null,null,null,null,{"$error":"#REF!"}]
[{"$f":"IF('Product registration form'!V18<>\"\",'Product registration form'!V18,\"\")","v":""},{"$f":"IF('Product registration form'!R18<>\"\",'Product registration form'!R18,\"\")","v":""},null,null,{"$f":"IF('Product registration form'!#REF!<>\"\",'Product registration form'!#REF!,\"\")","v":{"$error":"#REF!"}},null,null,null,null,null,null,{"$error":"#REF!"}]
[{"$f":"IF('Product registration form'!V19<>\"\",'Product registration form'!V19,\"\")","v":""},{"$f":"IF('Product registration form'!R19<>\"\",'Product registration form'!R19,\"\")","v":""},null,null,{"$f":"IF('Product registration form'!#REF!<>\"\",'Product registration form'!#REF!,\"\")","v":{"$error":"#REF!"}},null,null,null,null,null,null,{"$error":"#REF!"}]
[{"$f":"IF('Product registration form'!V20<>\"\",'Product registration form'!V20,\"\")","v":""},{"$f":"IF('Product registration form'!R20<>\"\",'Product registration form'!R20,\"\")","v":""},null,null,{"$f":"IF('Product registration form'!#REF!<>\"\",'Product registration form'!#REF!,\"\")","v":{"$error":"#REF!"}},null,null,null,null,null,null,{"$error":"#REF!"}]
[{"$f":"IF('Product registration form'!V21<>\"\",'Product registration form'!V21,\"\")","v":""},{"$f":"IF('Product registration form'!R21<>\"\",'Product registration form'!R21,\"\")","v":""},null,null,{"$f":"IF('Product registration form'!#REF!<>\"\",'Product registration form'!#REF!,\"\")","v":{"$error":"#REF!"}},null,null,null,null,null,null,{"$error":"#REF!"}]
[{"$f":"IF('Product registration form'!V22<>\"\",'Product registration form'!V22,\"\")","v":""},{"$f":"IF('Product registration form'!R22<>\"\",'Product registration form'!R22,\"\")","v":""},null,null,{"$f":"IF('Product registration form'!#REF!<>\"\",'Product registration form'!#REF!,\"\")","v":{"$error":"#REF!"}},null,null,null,null,null,null,{"$error":"#REF!"}]
[{"$f":"IF('Product registration form'!V23<>\"\",'Product registration form'!V23,\"\")","v":""},{"$f":"IF('Product registration form'!R23<>\"\",'Product registration form'!R23,\"\")","v":""},null,null,{"$f":"IF('Product registration form'!#REF!<>\"\",'Product registration form'!#REF!,\"\")","v":{"$error":"#REF!"}},null,null,null,null,null,null,{"$error":"#REF!"}]
[{"$f":"IF('Product registration form'!V24<>\"\",'Product registration form'!V24,\"\")","v":""},{"$f":"IF('Product registration form'!R24<>\"\",'Product registration form'!R24,\"\")","v":""},null,null,{"$f":"IF('Product registration form'!#REF!<>\"\",'Product registration form'!#REF!,\"\")","v":{"$error":"#REF!"}},null,null,null,null,null,null,{"$error":"#REF!"}]
[{"$f":"IF('Product registration form'!V25<>\"\",'Product registration form'!V25,\"\")","v":""},{"$f":"IF('Product registration form'!R25<>\"\",'Product registration form'!R25,\"\")","v":""},null,null,{"$f":"IF('Product registration form'!#REF!<>\"\",'Product registration form'!#REF!,\"\")","v":{"$error":"#REF!"}},null,null,null,null,null,null,{"$error":"#REF!"}]
[{"$f":"IF('Product registration form'!V26<>\"\",'Product registration form'!V26,\"\")","v":""},{"$f":"IF('Product registration form'!R26<>\"\",'Product registration form'!R26,\"\")","v":""},null,null,{"$f":"IF('Product registration form'!#REF!<>\"\",'Product registration form'!#REF!,\"\")","v":{"$error":"#REF!"}},null,null,null,null,null,null,{"$error":"#REF!"}]
[{"$f":"IF('Product registration form'!V27<>\"\",'Product registration form'!V27,\"\")","v":""},{"$f":"IF('Product registration form'!R27<>\"\",'Product registration form'!R27,\"\")","v":""},null,null,{"$f":"IF('Product registration form'!#REF!<>\"\",'Product registration form'!#REF!,\"\")","v":{"$error":"#REF!"}},null,null,null,null,null,null,{"$error":"#REF!"}]
[{"$f":"IF('Product registration form'!V28<>\"\",'Product registration form'!V28,\"\")","v":""},{"$f":"IF('Product registration form'!R28<>\"\",'Product registration form'!R28,\"\")","v":""},null,null,{"$f":"IF('Product registration form'!#REF!<>\"\",'Product registration form'!#REF!,\"\")","v":{"$error":"#REF!"}},null,null,null,null,null,null,{"$error":"#REF!"}]
[{"$f":"IF('Product registration form'!V29<>\"\",'Product registration form'!V29,\"\")","v":""},{"$f":"IF('Product registration form'!R29<>\"\",'Product registration form'!R29,\"\")","v":""},null,null,{"$f":"IF('Product registration form'!#REF!<>\"\",'Product registration form'!#REF!,\"\")","v":{"$error":"#REF!"}},null,null,null,null,null,null,{"$error":"#REF!"}]
[{"$f":"IF('Product registration form'!V30<>\"\",'Product registration form'!V30,\"\")","v":""},{"$f":"IF('Product registration form'!R30<>\"\",'Product registration form'!R30,\"\")","v":""},null,null,{"$f":"IF('Product registration form'!#REF!<>\"\",'Product registration form'!#REF!,\"\")","v":{"$error":"#REF!"}},null,null,null,null,null,null,{"$error":"#REF!"}]
[{"$f":"IF('Product registration form'!V31<>\"\",'Product registration form'!V31,\"\")","v":""},{"$f":"IF('Product registration form'!R31<>\"\",'Product registration form'!R31,\"\")","v":""},null,null,{"$f":"IF('Product registration form'!#REF!<>\"\",'Product registration form'!#REF!,\"\")","v":{"$error":"#REF!"}},null,null,null,null,null,null,{"$error":"#REF!"}]
[{"$f":"IF('Product registration form'!V32<>\"\",'Product registration form'!V32,\"\")","v":""},{"$f":"IF('Product registration form'!R32<>\"\",'Product registration form'!R32,\"\")","v":""},null,null,{"$f":"IF('Product registration form'!#REF!<>\"\",'Product registration form'!#REF!,\"\")","v":{"$error":"#REF!"}},null,null,null,null,null,null,{"$error":"#REF!"}]
[{"$f":"IF('Product registration form'!V33<>\"\",'Product registration form'!V33,\"\")","v":""},{"$f":"IF('Product registration form'!R33<>\"\",'Product registration form'!R33,\"\")","v":""},null,null,{"$f":"IF('Product registration form'!#REF!<>\"\",'Product registration form'!#REF!,\"\")","v":{"$error":"#REF!"}},null,null,null,null,null,null,{"$error":"#REF!"}]
[{"$f":"IF('Product registration form'!V34<>\"\",'Product registration form'!V34,\"\")","v":""},{"$f":"IF('Product registration form'!R34<>\"\",'Product registration form'!R34,\"\")","v":""},null,null,{"$f":"IF('Product registration form'!#REF!<>\"\",'Product registration form'!#REF!,\"\")","v":{"$error":"#REF!"}},null,null,null,null,null,null,{"$error":"#REF!"}]
[{"$f":"IF('Product registration form'!V35<>\"\",'Product registration form'!V35,\"\")","v":""},{"$f":"IF('Product registration form'!R35<>\"\",'Product registration form'!R35,\"\")","v":""},null,null,{"$f":"IF('Product registration form'!#REF!<>\"\",'Product registration form'!#REF!,\"\")","v":{"$error":"#REF!"}},null,null,null,null,null,null,{"$error":"#REF!"}]
[{"$f":"IF('Product registration form'!V36<>\"\",'Product registration form'!V36,\"\")","v":""},{"$f":"IF('Product registration form'!R36<>\"\",'Product registration form'!R36,\"\")","v":""},null,null,{"$f":"IF('Product registration form'!#REF!<>\"\",'Product registration form'!#REF!,\"\")","v":{"$error":"#REF!"}},null,null,null,null,null,null,{"$error":"#REF!"}]
[{"$f":"IF('Product registration form'!V37<>\"\",'Product registration form'!V37,\"\")","v":""},{"$f":"IF('Product registration form'!R37<>\"\",'Product registration form'!R37,\"\")","v":""},null,null,{"$f":"IF('Product registration form'!#REF!<>\"\",'Product registration form'!#REF!,\"\")","v":{"$error":"#REF!"}},null,null,null,null,null,null,{"$error":"#REF!"}]
[{"$f":"IF('Product registration form'!V38<>\"\",'Product registration form'!V38,\"\")","v":""},{"$f":"IF('Product registration form'!R38<>\"\",'Product registration form'!R38,\"\")","v":""},null,null,{"$f":"IF('Product registration form'!#REF!<>\"\",'Product registration form'!#REF!,\"\")","v":{"$error":"#REF!"}},null,null,null,null,null,null,{"$error":"#REF!"}]
[{"$f":"IF('Product registration form'!V39<>\"\",'Product registration form'!V39,\"\")","v":""},{"$f":"IF('Product registration form'!R39<>\"\",'Product registration form'!R39,\"\")","v":""},null,null,{"$f":"IF('Product registration form'!#REF!<>\"\",'Product registration form'!#REF!,\"\")","v":{"$error":"#REF!"}},null,null,null,null,null,null,{"$error":"#REF!"}]
[{"$f":"IF('Product registration form'!V40<>\"\",'Product registration form'!V40,\"\")","v":""},{"$f":"IF('Product registration form'!R40<>\"\",'Product registration form'!R40,\"\")","v":""},null,null,{"$f":"IF('Product registration form'!#REF!<>\"\",'Product registration form'!#REF!,\"\")","v":{"$error":"#REF!"}},null,null,null,null,null,null,{"$error":"#REF!"}]
[{"$f":"IF('Product registration form'!V41<>\"\",'Product registration form'!V41,\"\")","v":""},{"$f":"IF('Product registration form'!R41<>\"\",'Product registration form'!R41,\"\")","v":""},null,null,{"$f":"IF('Product registration form'!#REF!<>\"\",'Product registration form'!#REF!,\"\")","v":{"$error":"#REF!"}},null,null,null,null,null,null,{"$error":"#REF!"}]
[{"$f":"IF('Product registration form'!V42<>\"\",'Product registration form'!V42,\"\")","v":""},{"$f":"IF('Product registration form'!R42<>\"\",'Product registration form'!R42,\"\")","v":""},null,null,{"$f":"IF('Product registration form'!#REF!<>\"\",'Product registration form'!#REF!,\"\")","v":{"$error":"#REF!"}},null,null,null,null,null,null,{"$error":"#REF!"}]
[{"$f":"IF('Product registration form'!V43<>\"\",'Product registration form'!V43,\"\")","v":""},{"$f":"IF('Product registration form'!R43<>\"\",'Product registration form'!R43,\"\")","v":""},null,null,{"$f":"IF('Product registration form'!#REF!<>\"\",'Product registration form'!#REF!,\"\")","v":{"$error":"#REF!"}},null,null,null,null,null,null,{"$error":"#REF!"}]
[{"$f":"IF('Product registration form'!V44<>\"\",'Product registration form'!V44,\"\")","v":""},{"$f":"IF('Product registration form'!R44<>\"\",'Product registration form'!R44,\"\")","v":""},null,null,{"$f":"IF('Product registration form'!#REF!<>\"\",'Product registration form'!#REF!,\"\")","v":{"$error":"#REF!"}},null,null,null,null,null,null,{"$error":"#REF!"}]
[{"$f":"IF('Product registration form'!V45<>\"\",'Product registration form'!V45,\"\")","v":""},{"$f":"IF('Product registration form'!R45<>\"\",'Product registration form'!R45,\"\")","v":""},null,null,{"$f":"IF('Product registration form'!#REF!<>\"\",'Product registration form'!#REF!,\"\")","v":{"$error":"#REF!"}},null,null,null,null,null,null,{"$error":"#REF!"}]
[{"$f":"IF('Product registration form'!V46<>\"\",'Product registration form'!V46,\"\")","v":""},{"$f":"IF('Product registration form'!R46<>\"\",'Product registration form'!R46,\"\")","v":""},null,null,{"$f":"IF('Product registration form'!#REF!<>\"\",'Product registration form'!#REF!,\"\")","v":{"$error":"#REF!"}},null,null,null,null,null,null,{"$error":"#REF!"}]
[{"$f":"IF('Product registration form'!V47<>\"\",'Product registration form'!V47,\"\")","v":""},{"$f":"IF('Product registration form'!R47<>\"\",'Product registration form'!R47,\"\")","v":""},null,null,{"$f":"IF('Product registration form'!#REF!<>\"\",'Product registration form'!#REF!,\"\")","v":{"$error":"#REF!"}},null,null,null,null,null,null,{"$error":"#REF!"}]
[{"$f":"IF('Product registration form'!V48<>\"\",'Product registration form'!V48,\"\")","v":""},{"$f":"IF('Product registration form'!R48<>\"\",'Product registration form'!R48,\"\")","v":""},null,null,{"$f":"IF('Product registration form'!#REF!<>\"\",'Product registration form'!#REF!,\"\")","v":{"$error":"#REF!"}},null,null,null,null,null,null,{"$error":"#REF!"}]
[{"$f":"IF('Product registration form'!V49<>\"\",'Product registration form'!V49,\"\")","v":""},{"$f":"IF('Product registration form'!R49<>\"\",'Product registration form'!R49,\"\")","v":""},null,null,{"$f":"IF('Product registration form'!#REF!<>\"\",'Product registration form'!#REF!,\"\")","v":{"$error":"#REF!"}},null,null,null,null,null,null,{"$error":"#REF!"}]
[{"$f":"IF('Product registration form'!V50<>\"\",'Product registration form'!V50,\"\")","v":""},{"$f":"IF('Product registration form'!R50<>\"\",'Product registration form'!R50,\"\")","v":""},null,null,{"$f":"IF('Product registration form'!#REF!<>\"\",'Product registration form'!#REF!,\"\")","v":{"$error":"#REF!"}},null,null,null,null,null,null,{"$error":"#REF!"}]
[{"$f":"IF('Product registration form'!V51<>\"\",'Product registration form'!V51,\"\")","v":""},{"$f":"IF('Product registration form'!R51<>\"\",'Product registration form'!R51,\"\")","v":""},null,null,{"$f":"IF('Product registration form'!#REF!<>\"\",'Product registration form'!#REF!,\"\")","v":{"$error":"#REF!"}},null,null,null,null,null,null,{"$error":"#REF!"}]
[{"$f":"IF('Product registration form'!V52<>\"\",'Product registration form'!V52,\"\")","v":""},{"$f":"IF('Product registration form'!R52<>\"\",'Product registration form'!R52,\"\")","v":""},null,null,{"$f":"IF('Product registration form'!#REF!<>\"\",'Product registration form'!#REF!,\"\")","v":{"$error":"#REF!"}},null,null,null,null,null,null,{"$error":"#REF!"}]
[{"$f":"IF('Product registration form'!V53<>\"\",'Product registration form'!V53,\"\")","v":""},{"$f":"IF('Product registration form'!R53<>\"\",'Product registration form'!R53,\"\")","v":""},null,null,{"$f":"IF('Product registration form'!#REF!<>\"\",'Product registration form'!#REF!,\"\")","v":{"$error":"#REF!"}},null,null,null,null,null,null,{"$error":"#REF!"}]
[{"$f":"IF('Product registration form'!V54<>\"\",'Product registration form'!V54,\"\")","v":""},{"$f":"IF('Product registration form'!R54<>\"\",'Product registration form'!R54,\"\")","v":""},null,null,{"$f":"IF('Product registration form'!#REF!<>\"\",'Product registration form'!#REF!,\"\")","v":{"$error":"#REF!"}},null,null,null,null,null,null,{"$error":"#REF!"}]
[{"$f":"IF('Product registration form'!V55<>\"\",'Product registration form'!V55,\"\")","v":""},{"$f":"IF('Product registration form'!R55<>\"\",'Product registration form'!R55,\"\")","v":""},null,null,{"$f":"IF('Product registration form'!#REF!<>\"\",'Product registration form'!#REF!,\"\")","v":{"$error":"#REF!"}},null,null,null,null,null,null,{"$error":"#REF!"}]
[{"$f":"IF('Product registration form'!V56<>\"\",'Product registration form'!V56,\"\")","v":""},{"$f":"IF('Product registration form'!R56<>\"\",'Product registration form'!R56,\"\")","v":""},null,null,{"$f":"IF('Product registration form'!#REF!<>\"\",'Product registration form'!#REF!,\"\")","v":{"$error":"#REF!"}},null,null,null,null,null,null,{"$error":"#REF!"}]
[{"$f":"IF('Product registration form'!V57<>\"\",'Product registration form'!V57,\"\")","v":""},{"$f":"IF('Product registration form'!R57<>\"\",'Product registration form'!R57,\"\")","v":""},null,null,{"$f":"IF('Product registration form'!#REF!<>\"\",'Product registration form'!#REF!,\"\")","v":{"$error":"#REF!"}},null,null,null,null,null,null,{"$error":"#REF!"}]
[{"$f":"IF('Product registration form'!V58<>\"\",'Product registration form'!V58,\"\")","v":""},{"$f":"IF('Product registration form'!R58<>\"\",'Product registration form'!R58,\"\")","v":""},null,null,{"$f":"IF('Product registration form'!#REF!<>\"\",'Product registration form'!#REF!,\"\")","v":{"$error":"#REF!"}},null,null,null,null,null,null,{"$error":"#REF!"}]
[{"$f":"IF('Product registration form'!V59<>\"\",'Product registration form'!V59,\"\")","v":""},{"$f":"IF('Product registration form'!R59<>\"\",'Product registration form'!R59,\"\")","v":""},null,null,{"$f":"IF('Product registration form'!#REF!<>\"\",'Product registration form'!#REF!,\"\")","v":{"$error":"#REF!"}},null,null,null,null,null,null,{"$error":"#REF!"}]
[{"$f":"IF('Product registration form'!V60<>\"\",'Product registration form'!V60,\"\")","v":""},{"$f":"IF('Product registration form'!R60<>\"\",'Product registration form'!R60,\"\")","v":""},null,null,{"$f":"IF('Product registration form'!#REF!<>\"\",'Product registration form'!#REF!,\"\")","v":{"$error":"#REF!"}},null,null,null,null,null,null,{"$error":"#REF!"}]
[{"$f":"IF('Product registration form'!V61<>\"\",'Product registration form'!V61,\"\")","v":""},{"$f":"IF('Product registration form'!R61<>\"\",'Product registration form'!R61,\"\")","v":""},null,null,{"$f":"IF('Product registration form'!#REF!<>\"\",'Product registration form'!#REF!,\"\")","v":{"$error":"#REF!"}},null,null,null,null,null,null,{"$error":"#REF!"}]
[{"$f":"IF('Product registration form'!V62<>\"\",'Product registration form'!V62,\"\")","v":""},{"$f":"IF('Product registration form'!R62<>\"\",'Product registration form'!R62,\"\")","v":""},null,null,{"$f":"IF('Product registration form'!#REF!<>\"\",'Product registration form'!#REF!,\"\")","v":{"$error":"#REF!"}},null,null,null,null,null,null,{"$error":"#REF!"}]
[{"$f":"IF('Product registration form'!V63<>\"\",'Product registration form'!V63,\"\")","v":""},{"$f":"IF('Product registration form'!R63<>\"\",'Product registration form'!R63,\"\")","v":""},null,null,{"$f":"IF('Product registration form'!#REF!<>\"\",'Product registration form'!#REF!,\"\")","v":{"$error":"#REF!"}},null,null,null,null,null,null,{"$error":"#REF!"}]
[{"$f":"IF('Product registration form'!V64<>\"\",'Product registration form'!V64,\"\")","v":""},{"$f":"IF('Product registration form'!R64<>\"\",'Product registration form'!R64,\"\")","v":""},null,null,{"$f":"IF('Product registration form'!#REF!<>\"\",'Product registration form'!#REF!,\"\")","v":{"$error":"#REF!"}},null,null,null,null,null,null,{"$error":"#REF!"}]
[{"$f":"IF('Product registration form'!V65<>\"\",'Product registration form'!V65,\"\")","v":""},{"$f":"IF('Product registration form'!R65<>\"\",'Product registration form'!R65,\"\")","v":""},null,null,{"$f":"IF('Product registration form'!#REF!<>\"\",'Product registration form'!#REF!,\"\")","v":{"$error":"#REF!"}},null,null,null,null,null,null,{"$error":"#REF!"}]
[{"$f":"IF('Product registration form'!V66<>\"\",'Product registration form'!V66,\"\")","v":""},{"$f":"IF('Product registration form'!R66<>\"\",'Product registration form'!R66,\"\")","v":""},null,null,{"$f":"IF('Product registration form'!#REF!<>\"\",'Product registration form'!#REF!,\"\")","v":{"$error":"#REF!"}},null,null,null,null,null,null,{"$error":"#REF!"}]
[{"$f":"IF('Product registration form'!V67<>\"\",'Product registration form'!V67,\"\")","v":""},{"$f":"IF('Product registration form'!R67<>\"\",'Product registration form'!R67,\"\")","v":""},null,null,{"$f":"IF('Product registration form'!#REF!<>\"\",'Product registration form'!#REF!,\"\")","v":{"$error":"#REF!"}},null,null,null,null,null,null,{"$error":"#REF!"}]
[{"$f":"IF('Product registration form'!V68<>\"\",'Product registration form'!V68,\"\")","v":""},{"$f":"IF('Product registration form'!R68<>\"\",'Product registration form'!R68,\"\")","v":""},null,null,{"$f":"IF('Product registration form'!#REF!<>\"\",'Product registration form'!#REF!,\"\")","v":{"$error":"#REF!"}},null,null,null,null,null,null,{"$error":"#REF!"}]
[{"$f":"IF('Product registration form'!V69<>\"\",'Product registration form'!V69,\"\")","v":""},{"$f":"IF('Product registration form'!R69<>\"\",'Product registration form'!R69,\"\")","v":""},null,null,{"$f":"IF('Product registration form'!#REF!<>\"\",'Product registration form'!#REF!,\"\")","v":{"$error":"#REF!"}},null,null,null,null,null,null,{"$error":"#REF!"}]
[{"$f":"IF('Product registration form'!V70<>\"\",'Product registration form'!V70,\"\")","v":""},{"$f":"IF('Product registration form'!R70<>\"\",'Product registration form'!R70,\"\")","v":""},null,null,{"$f":"IF('Product registration form'!#REF!<>\"\",'Product registration form'!#REF!,\"\")","v":{"$error":"#REF!"}},null,null,null,null,null,null,{"$f":"(E70*1000) - G70 - H70 - I70 - J70 - K70","v":{"$error":"#REF!"}}]
[{"$f":"IF('Product registration form'!V71<>\"\",'Product registration form'!V71,\"\")","v":""},{"$f":"IF('Product registration form'!R71<>\"\",'Product registration form'!R71,\"\")","v":""},null,null,{"$f":"IF('Product registration form'!#REF!<>\"\",'Product registration form'!#REF!,\"\")","v":{"$error":"#REF!"}},null,null,null,null,null,null,{"$error":"#REF!"}]
[{"$f":"IF('Product registration form'!V72<>\"\",'Product registration form'!V72,\"\")","v":""},{"$f":"IF('Product registration form'!R72<>\"\",'Product registration form'!R72,\"\")","v":""},null,null,{"$f":"IF('Product registration form'!#REF!<>\"\",'Product registration form'!#REF!,\"\")","v":{"$error":"#REF!"}},null,null,null,null,null,null,{"$error":"#REF!"}]
[{"$f":"IF('Product registration form'!V73<>\"\",'Product registration form'!V73,\"\")","v":""},{"$f":"IF('Product registration form'!R73<>\"\",'Product registration form'!R73,\"\")","v":""},null,null,{"$f":"IF('Product registration form'!#REF!<>\"\",'Product registration form'!#REF!,\"\")","v":{"$error":"#REF!"}},null,null,null,null,null,null,{"$error":"#REF!"}]
[{"$f":"IF('Product registration form'!V74<>\"\",'Product registration form'!V74,\"\")","v":""},{"$f":"IF('Product registration form'!R74<>\"\",'Product registration form'!R74,\"\")","v":""},null,null,{"$f":"IF('Product registration form'!#REF!<>\"\",'Product registration form'!#REF!,\"\")","v":{"$error":"#REF!"}},null,null,null,null,null,null,{"$error":"#REF!"}]
[{"$f":"IF('Product registration form'!V75<>\"\",'Product registration form'!V75,\"\")","v":""},{"$f":"IF('Product registration form'!R75<>\"\",'Product registration form'!R75,\"\")","v":""},null,null,{"$f":"IF('Product registration form'!#REF!<>\"\",'Product registration form'!#REF!,\"\")","v":{"$error":"#REF!"}},null,null,null,null,null,null,{"$error":"#REF!"}]
[{"$f":"IF('Product registration form'!V76<>\"\",'Product registration form'!V76,\"\")","v":""},{"$f":"IF('Product registration form'!R76<>\"\",'Product registration form'!R76,\"\")","v":""},null,null,{"$f":"IF('Product registration form'!#REF!<>\"\",'Product registration form'!#REF!,\"\")","v":{"$error":"#REF!"}},null,null,null,null,null,null,{"$error":"#REF!"}]
[{"$f":"IF('Product registration form'!V77<>\"\",'Product registration form'!V77,\"\")","v":""},{"$f":"IF('Product registration form'!R77<>\"\",'Product registration form'!R77,\"\")","v":""},null,null,{"$f":"IF('Product registration form'!#REF!<>\"\",'Product registration form'!#REF!,\"\")","v":{"$error":"#REF!"}},null,null,null,null,null,null,{"$error":"#REF!"}]
[{"$f":"IF('Product registration form'!V78<>\"\",'Product registration form'!V78,\"\")","v":""},{"$f":"IF('Product registration form'!R78<>\"\",'Product registration form'!R78,\"\")","v":""},null,null,{"$f":"IF('Product registration form'!#REF!<>\"\",'Product registration form'!#REF!,\"\")","v":{"$error":"#REF!"}},null,null,null,null,null,null,{"$error":"#REF!"}]
[{"$f":"IF('Product registration form'!V79<>\"\",'Product registration form'!V79,\"\")","v":""},{"$f":"IF('Product registration form'!R79<>\"\",'Product registration form'!R79,\"\")","v":""},null,null,{"$f":"IF('Product registration form'!#REF!<>\"\",'Product registration form'!#REF!,\"\")","v":{"$error":"#REF!"}},null,null,null,null,null,null,{"$error":"#REF!"}]
[{"$f":"IF('Product registration form'!V80<>\"\",'Product registration form'!V80,\"\")","v":""},{"$f":"IF('Product registration form'!R80<>\"\",'Product registration form'!R80,\"\")","v":""},null,null,{"$f":"IF('Product registration form'!#REF!<>\"\",'Product registration form'!#REF!,\"\")","v":{"$error":"#REF!"}},null,null,null,null,null,null,{"$error":"#REF!"}]
[{"$f":"IF('Product registration form'!V81<>\"\",'Product registration form'!V81,\"\")","v":""},{"$f":"IF('Product registration form'!R81<>\"\",'Product registration form'!R81,\"\")","v":""},null,null,{"$f":"IF('Product registration form'!#REF!<>\"\",'Product registration form'!#REF!,\"\")","v":{"$error":"#REF!"}},null,null,null,null,null,null,{"$error":"#REF!"}]
[{"$f":"IF('Product registration form'!V82<>\"\",'Product registration form'!V82,\"\")","v":""},{"$f":"IF('Product registration form'!R82<>\"\",'Product registration form'!R82,\"\")","v":""},null,null,{"$f":"IF('Product registration form'!#REF!<>\"\",'Product registration form'!#REF!,\"\")","v":{"$error":"#REF!"}},null,null,null,null,null,null,{"$error":"#REF!"}]
[{"$f":"IF('Product registration form'!V83<>\"\",'Product registration form'!V83,\"\")","v":""},{"$f":"IF('Product registration form'!R83<>\"\",'Product registration form'!R83,\"\")","v":""},null,null,{"$f":"IF('Product registration form'!#REF!<>\"\",'Product registration form'!#REF!,\"\")","v":{"$error":"#REF!"}},null,null,null,null,null,null,{"$error":"#REF!"}]
[{"$f":"IF('Product registration form'!V84<>\"\",'Product registration form'!V84,\"\")","v":""},{"$f":"IF('Product registration form'!R84<>\"\",'Product registration form'!R84,\"\")","v":""},null,null,{"$f":"IF('Product registration form'!#REF!<>\"\",'Product registration form'!#REF!,\"\")","v":{"$error":"#REF!"}},null,null,null,null,null,null,{"$error":"#REF!"}]
[{"$f":"IF('Product registration form'!V85<>\"\",'Product registration form'!V85,\"\")","v":""},{"$f":"IF('Product registration form'!R85<>\"\",'Product registration form'!R85,\"\")","v":""},null,null,{"$f":"IF('Product registration form'!#REF!<>\"\",'Product registration form'!#REF!,\"\")","v":{"$error":"#REF!"}},null,null,null,null,null,null,{"$error":"#REF!"}]
[{"$f":"IF('Product registration form'!V86<>\"\",'Product registration form'!V86,\"\")","v":""},{"$f":"IF('Product registration form'!R86<>\"\",'Product registration form'!R86,\"\")","v":""},null,null,{"$f":"IF('Product registration form'!#REF!<>\"\",'Product registration form'!#REF!,\"\")","v":{"$error":"#REF!"}},null,null,null,null,null,null,{"$error":"#REF!"}]
[{"$f":"IF('Product registration form'!V87<>\"\",'Product registration form'!V87,\"\")","v":""},{"$f":"IF('Product registration form'!R87<>\"\",'Product registration form'!R87,\"\")","v":""},null,null,{"$f":"IF('Product registration form'!#REF!<>\"\",'Product registration form'!#REF!,\"\")","v":{"$error":"#REF!"}},null,null,null,null,null,null,{"$error":"#REF!"}]
[{"$f":"IF('Product registration form'!V88<>\"\",'Product registration form'!V88,\"\")","v":""},{"$f":"IF('Product registration form'!R88<>\"\",'Product registration form'!R88,\"\")","v":""},null,null,{"$f":"IF('Product registration form'!#REF!<>\"\",'Product registration form'!#REF!,\"\")","v":{"$error":"#REF!"}},null,null,null,null,null,null,{"$error":"#REF!"}]
[{"$f":"IF('Product registration form'!V89<>\"\",'Product registration form'!V89,\"\")","v":""},{"$f":"IF('Product registration form'!R89<>\"\",'Product registration form'!R89,\"\")","v":""},null,null,{"$f":"IF('Product registration form'!#REF!<>\"\",'Product registration form'!#REF!,\"\")","v":{"$error":"#REF!"}},null,null,null,null,null,null,{"$error":"#REF!"}]
[{"$f":"IF('Product registration form'!V90<>\"\",'Product registration form'!V90,\"\")","v":""},{"$f":"IF('Product registration form'!R90<>\"\",'Product registration form'!R90,\"\")","v":""},null,null,{"$f":"IF('Product registration form'!#REF!<>\"\",'Product registration form'!#REF!,\"\")","v":{"$error":"#REF!"}},null,null,null,null,null,null,{"$error":"#REF!"}]
[{"$f":"IF('Product registration form'!V91<>\"\",'Product registration form'!V91,\"\")","v":""},{"$f":"IF('Product registration form'!R91<>\"\",'Product registration form'!R91,\"\")","v":""},null,null,{"$f":"IF('Product registration form'!#REF!<>\"\",'Product registration form'!#REF!,\"\")","v":{"$error":"#REF!"}},null,null,null,null,null,null,{"$error":"#REF!"}]
[{"$f":"IF('Product registration form'!V92<>\"\",'Product registration form'!V92,\"\")","v":""},{"$f":"IF('Product registration form'!R92<>\"\",'Product registration form'!R92,\"\")","v":""},null,null,{"$f":"IF('Product registration form'!#REF!<>\"\",'Product registration form'!#REF!,\"\")","v":{"$error":"#REF!"}},null,null,null,null,null,null,{"$error":"#REF!"}]
[{"$f":"IF('Product registration form'!V93<>\"\",'Product registration form'!V93,\"\")","v":""},{"$f":"IF('Product registration form'!R93<>\"\",'Product registration form'!R93,\"\")","v":""},null,null,{"$f":"IF('Product registration form'!#REF!<>\"\",'Product registration form'!#REF!,\"\")","v":{"$error":"#REF!"}},null,null,null,null,null,null,{"$error":"#REF!"}]
[{"$f":"IF('Product registration form'!V94<>\"\",'Product registration form'!V94,\"\")","v":""},{"$f":"IF('Product registration form'!R94<>\"\",'Product registration form'!R94,\"\")","v":""},null,null,{"$f":"IF('Product registration form'!#REF!<>\"\",'Product registration form'!#REF!,\"\")","v":{"$error":"#REF!"}},null,null,null,null,null,null,{"$error":"#REF!"}]
[{"$f":"IF('Product registration form'!V95<>\"\",'Product registration form'!V95,\"\")","v":""},{"$f":"IF('Product registration form'!R95<>\"\",'Product registration form'!R95,\"\")","v":""},null,null,{"$f":"IF('Product registration form'!#REF!<>\"\",'Product registration form'!#REF!,\"\")","v":{"$error":"#REF!"}},null,null,null,null,null,null,{"$error":"#REF!"}]
[{"$f":"IF('Product registration form'!V96<>\"\",'Product registration form'!V96,\"\")","v":""},{"$f":"IF('Product registration form'!R96<>\"\",'Product registration form'!R96,\"\")","v":""},null,null,{"$f":"IF('Product registration form'!#REF!<>\"\",'Product registration form'!#REF!,\"\")","v":{"$error":"#REF!"}},null,null,null,null,null,null,{"$error":"#REF!"}]
[{"$f":"IF('Product registration form'!V97<>\"\",'Product registration form'!V97,\"\")","v":""},{"$f":"IF('Product registration form'!R97<>\"\",'Product registration form'!R97,\"\")","v":""},null,null,{"$f":"IF('Product registration form'!#REF!<>\"\",'Product registration form'!#REF!,\"\")","v":{"$error":"#REF!"}},null,null,null,null,null,null,{"$error":"#REF!"}]
[{"$f":"IF('Product registration form'!V98<>\"\",'Product registration form'!V98,\"\")","v":""},{"$f":"IF('Product registration form'!R98<>\"\",'Product registration form'!R98,\"\")","v":""},null,null,{"$f":"IF('Product registration form'!#REF!<>\"\",'Product registration form'!#REF!,\"\")","v":{"$error":"#REF!"}},null,null,null,null,null,null,{"$error":"#REF!"}]
[{"$f":"IF('Product registration form'!V99<>\"\",'Product registration form'!V99,\"\")","v":""},{"$f":"IF('Product registration form'!R99<>\"\",'Product registration form'!R99,\"\")","v":""},null,null,{"$f":"IF('Product registration form'!#REF!<>\"\",'Product registration form'!#REF!,\"\")","v":{"$error":"#REF!"}},null,null,null,null,null,null,{"$error":"#REF!"}]
[{"$f":"IF('Product registration form'!V100<>\"\",'Product registration form'!V100,\"\")","v":""},{"$f":"IF('Product registration form'!R100<>\"\",'Product registration form'!R100,\"\")","v":""},null,null,{"$f":"IF('Product registration form'!#REF!<>\"\",'Product registration form'!#REF!,\"\")","v":{"$error":"#REF!"}},null,null,null,null,null,null,{"$error":"#REF!"}]
[{"$f":"IF('Product registration form'!V101<>\"\",'Product registration form'!V101,\"\")","v":""},{"$f":"IF('Product registration form'!R101<>\"\",'Product registration form'!R101,\"\")","v":""},null,null,{"$f":"IF('Product registration form'!#REF!<>\"\",'Product registration form'!#REF!,\"\")","v":{"$error":"#REF!"}},null,null,null,null,null,null,{"$error":"#REF!"}]
[{"$f":"IF('Product registration form'!V102<>\"\",'Product registration form'!V102,\"\")","v":""},{"$f":"IF('Product registration form'!R102<>\"\",'Product registration form'!R102,\"\")","v":""},null,null,{"$f":"IF('Product registration form'!#REF!<>\"\",'Product registration form'!#REF!,\"\")","v":{"$error":"#REF!"}},null,null,null,null,null,null,{"$error":"#REF!"}]
[{"$f":"IF('Product registration form'!V103<>\"\",'Product registration form'!V103,\"\")","v":""},{"$f":"IF('Product registration form'!R103<>\"\",'Product registration form'!R103,\"\")","v":""},null,null,{"$f":"IF('Product registration form'!#REF!<>\"\",'Product registration form'!#REF!,\"\")","v":{"$error":"#REF!"}},null,null,null,null,null,null,{"$error":"#REF!"}]
[{"$f":"IF('Product registration form'!V104<>\"\",'Product registration form'!V104,\"\")","v":""},{"$f":"IF('Product registration form'!R104<>\"\",'Product registration form'!R104,\"\")","v":""},null,null,{"$f":"IF('Product registration form'!#REF!<>\"\",'Product registration form'!#REF!,\"\")","v":{"$error":"#REF!"}},null,null,null,null,null,null,{"$error":"#REF!"}]
[{"$f":"IF('Product registration form'!V105<>\"\",'Product registration form'!V105,\"\")","v":""},{"$f":"IF('Product registration form'!R105<>\"\",'Product registration form'!R105,\"\")","v":""},null,null,{"$f":"IF('Product registration form'!#REF!<>\"\",'Product registration form'!#REF!,\"\")","v":{"$error":"#REF!"}},null,null,null,null,null,null,{"$error":"#REF!"}]
[{"$f":"IF('Product registration form'!V106<>\"\",'Product registration form'!V106,\"\")","v":""},{"$f":"IF('Product registration form'!R106<>\"\",'Product registration form'!R106,\"\")","v":""},null,null,{"$f":"IF('Product registration form'!#REF!<>\"\",'Product registration form'!#REF!,\"\")","v":{"$error":"#REF!"}},null,null,null,null,null,null,{"$error":"#REF!"}]
[{"$f":"IF('Product registration form'!V107<>\"\",'Product registration form'!V107,\"\")","v":""},{"$f":"IF('Product registration form'!R107<>\"\",'Product registration form'!R107,\"\")","v":""},null,null,{"$f":"IF('Product registration form'!#REF!<>\"\",'Product registration form'!#REF!,\"\")","v":{"$error":"#REF!"}},null,null,null,null,null,null,{"$error":"#REF!"}]
[{"$f":"IF('Product registration form'!V108<>\"\",'Product registration form'!V108,\"\")","v":""},{"$f":"IF('Product registration form'!R108<>\"\",'Product registration form'!R108,\"\")","v":""},null,null,{"$f":"IF('Product registration form'!#REF!<>\"\",'Product registration form'!#REF!,\"\")","v":{"$error":"#REF!"}},null,null,null,null,null,null,{"$error":"#REF!"}]
[{"$f":"IF('Product registration form'!V109<>\"\",'Product registration form'!V109,\"\")","v":""},{"$f":"IF('Product registration form'!R109<>\"\",'Product registration form'!R109,\"\")","v":""},null,null,{"$f":"IF('Product registration form'!#REF!<>\"\",'Product registration form'!#REF!,\"\")","v":{"$error":"#REF!"}},null,null,null,null,null,null,{"$error":"#REF!"}]
[{"$f":"IF('Product registration form'!V110<>\"\",'Product registration form'!V110,\"\")","v":""},{"$f":"IF('Product registration form'!R110<>\"\",'Product registration form'!R110,\"\")","v":""},null,null,{"$f":"IF('Product registration form'!#REF!<>\"\",'Product registration form'!#REF!,\"\")","v":{"$error":"#REF!"}},null,null,null,null,null,null,{"$error":"#REF!"}]
[{"$f":"IF('Product registration form'!V111<>\"\",'Product registration form'!V111,\"\")","v":""},{"$f":"IF('Product registration form'!R111<>\"\",'Product registration form'!R111,\"\")","v":""},null,null,{"$f":"IF('Product registration form'!#REF!<>\"\",'Product registration form'!#REF!,\"\")","v":{"$error":"#REF!"}},null,null,null,null,null,null,{"$error":"#REF!"}]
[{"$f":"IF('Product registration form'!V112<>\"\",'Product registration form'!V112,\"\")","v":""},{"$f":"IF('Product registration form'!R112<>\"\",'Product registration form'!R112,\"\")","v":""},null,null,{"$f":"IF('Product registration form'!#REF!<>\"\",'Product registration form'!#REF!,\"\")","v":{"$error":"#REF!"}},null,null,null,null,null,null,{"$error":"#REF!"}]
[{"$f":"IF('Product registration form'!V113<>\"\",'Product registration form'!V113,\"\")","v":""},{"$f":"IF('Product registration form'!R113<>\"\",'Product registration form'!R113,\"\")","v":""},null,null,{"$f":"IF('Product registration form'!#REF!<>\"\",'Product registration form'!#REF!,\"\")","v":{"$error":"#REF!"}},null,null,null,null,null,null,{"$error":"#REF!"}]
[{"$f":"IF('Product registration form'!V114<>\"\",'Product registration form'!V114,\"\")","v":""},{"$f":"IF('Product registration form'!R114<>\"\",'Product registration form'!R114,\"\")","v":""},null,null,{"$f":"IF('Product registration form'!#REF!<>\"\",'Product registration form'!#REF!,\"\")","v":{"$error":"#REF!"}},null,null,null,null,null,null,{"$error":"#REF!"}]
[{"$f":"IF('Product registration form'!V115<>\"\",'Product registration form'!V115,\"\")","v":""},{"$f":"IF('Product registration form'!R115<>\"\",'Product registration form'!R115,\"\")","v":""},null,null,{"$f":"IF('Product registration form'!#REF!<>\"\",'Product registration form'!#REF!,\"\")","v":{"$error":"#REF!"}},null,null,null,null,null,null,{"$error":"#REF!"}]
[{"$f":"IF('Product registration form'!V116<>\"\",'Product registration form'!V116,\"\")","v":""},{"$f":"IF('Product registration form'!R116<>\"\",'Product registration form'!R116,\"\")","v":""},null,null,{"$f":"IF('Product registration form'!#REF!<>\"\",'Product registration form'!#REF!,\"\")","v":{"$error":"#REF!"}},null,null,null,null,null,null,{"$error":"#REF!"}]
[{"$f":"IF('Product registration form'!V117<>\"\",'Product registration form'!V117,\"\")","v":""},{"$f":"IF('Product registration form'!R117<>\"\",'Product registration form'!R117,\"\")","v":""},null,null,{"$f":"IF('Product registration form'!#REF!<>\"\",'Product registration form'!#REF!,\"\")","v":{"$error":"#REF!"}},null,null,null,null,null,null,{"$error":"#REF!"}]
[{"$f":"IF('Product registration form'!V118<>\"\",'Product registration form'!V118,\"\")","v":""},{"$f":"IF('Product registration form'!R118<>\"\",'Product registration form'!R118,\"\")","v":""},null,null,{"$f":"IF('Product registration form'!#REF!<>\"\",'Product registration form'!#REF!,\"\")","v":{"$error":"#REF!"}},null,null,null,null,null,null,{"$error":"#REF!"}]
[{"$f":"IF('Product registration form'!V119<>\"\",'Product registration form'!V119,\"\")","v":""},{"$f":"IF('Product registration form'!R119<>\"\",'Product registration form'!R119,\"\")","v":""},null,null,{"$f":"IF('Product registration form'!#REF!<>\"\",'Product registration form'!#REF!,\"\")","v":{"$error":"#REF!"}},null,null,null,null,null,null,{"$error":"#REF!"}]
[{"$f":"IF('Product registration form'!V120<>\"\",'Product registration form'!V120,\"\")","v":""},{"$f":"IF('Product registration form'!R120<>\"\",'Product registration form'!R120,\"\")","v":""},null,null,{"$f":"IF('Product registration form'!#REF!<>\"\",'Product registration form'!#REF!,\"\")","v":{"$error":"#REF!"}},null,null,null,null,null,null,{"$error":"#REF!"}]
[{"$f":"IF('Product registration form'!V121<>\"\",'Product registration form'!V121,\"\")","v":""},{"$f":"IF('Product registration form'!R121<>\"\",'Product registration form'!R121,\"\")","v":""},null,null,{"$f":"IF('Product registration form'!#REF!<>\"\",'Product registration form'!#REF!,\"\")","v":{"$error":"#REF!"}},null,null,null,null,null,null,{"$error":"#REF!"}]
[{"$f":"IF('Product registration form'!V122<>\"\",'Product registration form'!V122,\"\")","v":""},{"$f":"IF('Product registration form'!R122<>\"\",'Product registration form'!R122,\"\")","v":""},null,null,{"$f":"IF('Product registration form'!#REF!<>\"\",'Product registration form'!#REF!,\"\")","v":{"$error":"#REF!"}},null,null,null,null,null,null,{"$error":"#REF!"}]
[{"$f":"IF('Product registration form'!V123<>\"\",'Product registration form'!V123,\"\")","v":""},{"$f":"IF('Product registration form'!R123<>\"\",'Product registration form'!R123,\"\")","v":""},null,null,{"$f":"IF('Product registration form'!#REF!<>\"\",'Product registration form'!#REF!,\"\")","v":{"$error":"#REF!"}},null,null,null,null,null,null,{"$error":"#REF!"}]
[{"$f":"IF('Product registration form'!V124<>\"\",'Product registration form'!V124,\"\")","v":""},{"$f":"IF('Product registration form'!R124<>\"\",'Product registration form'!R124,\"\")","v":""},null,null,{"$f":"IF('Product registration form'!#REF!<>\"\",'Product registration form'!#REF!,\"\")","v":{"$error":"#REF!"}},null,null,null,null,null,null,{"$error":"#REF!"}]
[{"$f":"IF('Product registration form'!V125<>\"\",'Product registration form'!V125,\"\")","v":""},{"$f":"IF('Product registration form'!R125<>\"\",'Product registration form'!R125,\"\")","v":""},null,null,{"$f":"IF('Product registration form'!#REF!<>\"\",'Product registration form'!#REF!,\"\")","v":{"$error":"#REF!"}},null,null,null,null,null,null,{"$error":"#REF!"}]
[{"$f":"IF('Product registration form'!V126<>\"\",'Product registration form'!V126,\"\")","v":""},{"$f":"IF('Product registration form'!R126<>\"\",'Product registration form'!R126,\"\")","v":""},null,null,{"$f":"IF('Product registration form'!#REF!<>\"\",'Product registration form'!#REF!,\"\")","v":{"$error":"#REF!"}},null,null,null,null,null,null,{"$error":"#REF!"}]
[{"$f":"IF('Product registration form'!V127<>\"\",'Product registration form'!V127,\"\")","v":""},{"$f":"IF('Product registration form'!R127<>\"\",'Product registration form'!R127,\"\")","v":""},null,null,{"$f":"IF('Product registration form'!#REF!<>\"\",'Product registration form'!#REF!,\"\")","v":{"$error":"#REF!"}},null,null,null,null,null,null,{"$error":"#REF!"}]
[{"$f":"IF('Product registration form'!V128<>\"\",'Product registration form'!V128,\"\")","v":""},{"$f":"IF('Product registration form'!R128<>\"\",'Product registration form'!R128,\"\")","v":""},null,null,{"$f":"IF('Product registration form'!#REF!<>\"\",'Product registration form'!#REF!,\"\")","v":{"$error":"#REF!"}},null,null,null,null,null,null,{"$error":"#REF!"}]
[{"$f":"IF('Product registration form'!V129<>\"\",'Product registration form'!V129,\"\")","v":""},{"$f":"IF('Product registration form'!R129<>\"\",'Product registration form'!R129,\"\")","v":""},null,null,{"$f":"IF('Product registration form'!#REF!<>\"\",'Product registration form'!#REF!,\"\")","v":{"$error":"#REF!"}},null,null,null,null,null,null,{"$error":"#REF!"}]
[{"$f":"IF('Product registration form'!V130<>\"\",'Product registration form'!V130,\"\")","v":""},{"$f":"IF('Product registration form'!R130<>\"\",'Product registration form'!R130,\"\")","v":""},null,null,{"$f":"IF('Product registration form'!#REF!<>\"\",'Product registration form'!#REF!,\"\")","v":{"$error":"#REF!"}},null,null,null,null,null,null,{"$error":"#REF!"}]
[{"$f":"IF('Product registration form'!V131<>\"\",'Product registration form'!V131,\"\")","v":""},{"$f":"IF('Product registration form'!R131<>\"\",'Product registration form'!R131,\"\")","v":""},null,null,{"$f":"IF('Product registration form'!#REF!<>\"\",'Product registration form'!#REF!,\"\")","v":{"$error":"#REF!"}},null,null,null,null,null,null,{"$error":"#REF!"}]
[{"$f":"IF('Product registration form'!V132<>\"\",'Product registration form'!V132,\"\")","v":""},{"$f":"IF('Product registration form'!R132<>\"\",'Product registration form'!R132,\"\")","v":""},null,null,{"$f":"IF('Product registration form'!#REF!<>\"\",'Product registration form'!#REF!,\"\")","v":{"$error":"#REF!"}},null,null,null,null,null,null,{"$error":"#REF!"}]
[{"$f":"IF('Product registration form'!V133<>\"\",'Product registration form'!V133,\"\")","v":""},{"$f":"IF('Product registration form'!R133<>\"\",'Product registration form'!R133,\"\")","v":""},null,null,{"$f":"IF('Product registration form'!#REF!<>\"\",'Product registration form'!#REF!,\"\")","v":{"$error":"#REF!"}},null,null,null,null,null,null,{"$error":"#REF!"}]
[{"$f":"IF('Product registration form'!V134<>\"\",'Product registration form'!V134,\"\")","v":""},{"$f":"IF('Product registration form'!R134<>\"\",'Product registration form'!R134,\"\")","v":""},null,null,{"$f":"IF('Product registration form'!#REF!<>\"\",'Product registration form'!#REF!,\"\")","v":{"$error":"#REF!"}},null,null,null,null,null,null,{"$f":"(E134*1000) - G134 - H134 - I134 - J134 - K134","v":{"$error":"#REF!"}}]
[{"$f":"IF('Product registration form'!V135<>\"\",'Product registration form'!V135,\"\")","v":""},{"$f":"IF('Product registration form'!R135<>\"\",'Product registration form'!R135,\"\")","v":""},null,null,{"$f":"IF('Product registration form'!#REF!<>\"\",'Product registration form'!#REF!,\"\")","v":{"$error":"#REF!"}},null,null,null,null,null,null,{"$error":"#REF!"}]
[{"$f":"IF('Product registration form'!V136<>\"\",'Product registration form'!V136,\"\")","v":""},{"$f":"IF('Product registration form'!R136<>\"\",'Product registration form'!R136,\"\")","v":""},null,null,{"$f":"IF('Product registration form'!#REF!<>\"\",'Product registration form'!#REF!,\"\")","v":{"$error":"#REF!"}},null,null,null,null,null,null,{"$error":"#REF!"}]
[{"$f":"IF('Product registration form'!V137<>\"\",'Product registration form'!V137,\"\")","v":""},{"$f":"IF('Product registration form'!R137<>\"\",'Product registration form'!R137,\"\")","v":""},null,null,{"$f":"IF('Product registration form'!#REF!<>\"\",'Product registration form'!#REF!,\"\")","v":{"$error":"#REF!"}},null,null,null,null,null,null,{"$error":"#REF!"}]
[{"$f":"IF('Product registration form'!V138<>\"\",'Product registration form'!V138,\"\")","v":""},{"$f":"IF('Product registration form'!R138<>\"\",'Product registration form'!R138,\"\")","v":""},null,null,{"$f":"IF('Product registration form'!#REF!<>\"\",'Product registration form'!#REF!,\"\")","v":{"$error":"#REF!"}},null,null,null,null,null,null,{"$error":"#REF!"}]
[{"$f":"IF('Product registration form'!V139<>\"\",'Product registration form'!V139,\"\")","v":""},{"$f":"IF('Product registration form'!R139<>\"\",'Product registration form'!R139,\"\")","v":""},null,null,{"$f":"IF('Product registration form'!#REF!<>\"\",'Product registration form'!#REF!,\"\")","v":{"$error":"#REF!"}},null,null,null,null,null,null,{"$error":"#REF!"}]
[{"$f":"IF('Product registration form'!V140<>\"\",'Product registration form'!V140,\"\")","v":""},{"$f":"IF('Product registration form'!R140<>\"\",'Product registration form'!R140,\"\")","v":""},null,null,{"$f":"IF('Product registration form'!#REF!<>\"\",'Product registration form'!#REF!,\"\")","v":{"$error":"#REF!"}},null,null,null,null,null,null,{"$error":"#REF!"}]
[{"$f":"IF('Product registration form'!V141<>\"\",'Product registration form'!V141,\"\")","v":""},{"$f":"IF('Product registration form'!R141<>\"\",'Product registration form'!R141,\"\")","v":""},null,null,{"$f":"IF('Product registration form'!#REF!<>\"\",'Product registration form'!#REF!,\"\")","v":{"$error":"#REF!"}},null,null,null,null,null,null,{"$error":"#REF!"}]
[{"$f":"IF('Product registration form'!V142<>\"\",'Product registration form'!V142,\"\")","v":""},{"$f":"IF('Product registration form'!R142<>\"\",'Product registration form'!R142,\"\")","v":""},null,null,{"$f":"IF('Product registration form'!#REF!<>\"\",'Product registration form'!#REF!,\"\")","v":{"$error":"#REF!"}},null,null,null,null,null,null,{"$error":"#REF!"}]
[{"$f":"IF('Product registration form'!V143<>\"\",'Product registration form'!V143,\"\")","v":""},{"$f":"IF('Product registration form'!R143<>\"\",'Product registration form'!R143,\"\")","v":""},null,null,{"$f":"IF('Product registration form'!#REF!<>\"\",'Product registration form'!#REF!,\"\")","v":{"$error":"#REF!"}},null,null,null,null,null,null,{"$error":"#REF!"}]
[{"$f":"IF('Product registration form'!V144<>\"\",'Product registration form'!V144,\"\")","v":""},{"$f":"IF('Product registration form'!R144<>\"\",'Product registration form'!R144,\"\")","v":""},null,null,{"$f":"IF('Product registration form'!#REF!<>\"\",'Product registration form'!#REF!,\"\")","v":{"$error":"#REF!"}},null,null,null,null,null,null,{"$error":"#REF!"}]
[{"$f":"IF('Product registration form'!V145<>\"\",'Product registration form'!V145,\"\")","v":""},{"$f":"IF('Product registration form'!R145<>\"\",'Product registration form'!R145,\"\")","v":""},null,null,{"$f":"IF('Product registration form'!#REF!<>\"\",'Product registration form'!#REF!,\"\")","v":{"$error":"#REF!"}},null,null,null,null,null,null,{"$error":"#REF!"}]
[{"$f":"IF('Product registration form'!V146<>\"\",'Product registration form'!V146,\"\")","v":""},{"$f":"IF('Product registration form'!R146<>\"\",'Product registration form'!R146,\"\")","v":""},null,null,{"$f":"IF('Product registration form'!#REF!<>\"\",'Product registration form'!#REF!,\"\")","v":{"$error":"#REF!"}},null,null,null,null,null,null,{"$error":"#REF!"}]
[{"$f":"IF('Product registration form'!V147<>\"\",'Product registration form'!V147,\"\")","v":""},{"$f":"IF('Product registration form'!R147<>\"\",'Product registration form'!R147,\"\")","v":""},null,null,{"$f":"IF('Product registration form'!#REF!<>\"\",'Product registration form'!#REF!,\"\")","v":{"$error":"#REF!"}},null,null,null,null,null,null,{"$error":"#REF!"}]
[{"$f":"IF('Product registration form'!V148<>\"\",'Product registration form'!V148,\"\")","v":""},{"$f":"IF('Product registration form'!R148<>\"\",'Product registration form'!R148,\"\")","v":""},null,null,{"$f":"IF('Product registration form'!#REF!<>\"\",'Product registration form'!#REF!,\"\")","v":{"$error":"#REF!"}},null,null,null,null,null,null,{"$error":"#REF!"}]
[{"$f":"IF('Product registration form'!V149<>\"\",'Product registration form'!V149,\"\")","v":""},{"$f":"IF('Product registration form'!R149<>\"\",'Product registration form'!R149,\"\")","v":""},null,null,{"$f":"IF('Product registration form'!#REF!<>\"\",'Product registration form'!#REF!,\"\")","v":{"$error":"#REF!"}},null,null,null,null,null,null,{"$error":"#REF!"}]
[{"$f":"IF('Product registration form'!V150<>\"\",'Product registration form'!V150,\"\")","v":""},{"$f":"IF('Product registration form'!R150<>\"\",'Product registration form'!R150,\"\")","v":""},null,null,{"$f":"IF('Product registration form'!#REF!<>\"\",'Product registration form'!#REF!,\"\")","v":{"$error":"#REF!"}},null,null,null,null,null,null,{"$error":"#REF!"}]
[{"$f":"IF('Product registration form'!V151<>\"\",'Product registration form'!V151,\"\")","v":""},{"$f":"IF('Product registration form'!R151<>\"\",'Product registration form'!R151,\"\")","v":""},null,null,{"$f":"IF('Product registration form'!#REF!<>\"\",'Product registration form'!#REF!,\"\")","v":{"$error":"#REF!"}},null,null,null,null,null,null,{"$error":"#REF!"}]
[{"$f":"IF('Product registration form'!V152<>\"\",'Product registration form'!V152,\"\")","v":""},{"$f":"IF('Product registration form'!R152<>\"\",'Product registration form'!R152,\"\")","v":""},null,null,{"$f":"IF('Product registration form'!#REF!<>\"\",'Product registration form'!#REF!,\"\")","v":{"$error":"#REF!"}},null,null,null,null,null,null,{"$error":"#REF!"}]
[{"$f":"IF('Product registration form'!V153<>\"\",'Product registration form'!V153,\"\")","v":""},{"$f":"IF('Product registration form'!R153<>\"\",'Product registration form'!R153,\"\")","v":""},null,null,{"$f":"IF('Product registration form'!#REF!<>\"\",'Product registration form'!#REF!,\"\")","v":{"$error":"#REF!"}},null,null,null,null,null,null,{"$error":"#REF!"}]
[{"$f":"IF('Product registration form'!V154<>\"\",'Product registration form'!V154,\"\")","v":""},{"$f":"IF('Product registration form'!R154<>\"\",'Product registration form'!R154,\"\")","v":""},null,null,{"$f":"IF('Product registration form'!#REF!<>\"\",'Product registration form'!#REF!,\"\")","v":{"$error":"#REF!"}},null,null,null,null,null,null,{"$error":"#REF!"}]
[{"$f":"IF('Product registration form'!V155<>\"\",'Product registration form'!V155,\"\")","v":""},{"$f":"IF('Product registration form'!R155<>\"\",'Product registration form'!R155,\"\")","v":""},null,null,{"$f":"IF('Product registration form'!#REF!<>\"\",'Product registration form'!#REF!,\"\")","v":{"$error":"#REF!"}},null,null,null,null,null,null,{"$error":"#REF!"}]
[{"$f":"IF('Product registration form'!V156<>\"\",'Product registration form'!V156,\"\")","v":""},{"$f":"IF('Product registration form'!R156<>\"\",'Product registration form'!R156,\"\")","v":""},null,null,{"$f":"IF('Product registration form'!#REF!<>\"\",'Product registration form'!#REF!,\"\")","v":{"$error":"#REF!"}},null,null,null,null,null,null,{"$error":"#REF!"}]
[{"$f":"IF('Product registration form'!V157<>\"\",'Product registration form'!V157,\"\")","v":""},{"$f":"IF('Product registration form'!R157<>\"\",'Product registration form'!R157,\"\")","v":""},null,null,{"$f":"IF('Product registration form'!#REF!<>\"\",'Product registration form'!#REF!,\"\")","v":{"$error":"#REF!"}},null,null,null,null,null,null,{"$error":"#REF!"}]
[{"$f":"IF('Product registration form'!V158<>\"\",'Product registration form'!V158,\"\")","v":""},{"$f":"IF('Product registration form'!R158<>\"\",'Product registration form'!R158,\"\")","v":""},null,null,{"$f":"IF('Product registration form'!#REF!<>\"\",'Product registration form'!#REF!,\"\")","v":{"$error":"#REF!"}},null,null,null,null,null,null,{"$error":"#REF!"}]
[{"$f":"IF('Product registration form'!V159<>\"\",'Product registration form'!V159,\"\")","v":""},{"$f":"IF('Product registration form'!R159<>\"\",'Product registration form'!R159,\"\")","v":""},null,null,{"$f":"IF('Product registration form'!#REF!<>\"\",'Product registration form'!#REF!,\"\")","v":{"$error":"#REF!"}},null,null,null,null,null,null,{"$error":"#REF!"}]
[{"$f":"IF('Product registration form'!V160<>\"\",'Product registration form'!V160,\"\")","v":""},{"$f":"IF('Product registration form'!R160<>\"\",'Product registration form'!R160,\"\")","v":""},null,null,{"$f":"IF('Product registration form'!#REF!<>\"\",'Product registration form'!#REF!,\"\")","v":{"$error":"#REF!"}},null,null,null,null,null,null,{"$error":"#REF!"}]
[{"$f":"IF('Product registration form'!V161<>\"\",'Product registration form'!V161,\"\")","v":""},{"$f":"IF('Product registration form'!R161<>\"\",'Product registration form'!R161,\"\")","v":""},null,null,{"$f":"IF('Product registration form'!#REF!<>\"\",'Product registration form'!#REF!,\"\")","v":{"$error":"#REF!"}},null,null,null,null,null,null,{"$error":"#REF!"}]
[{"$f":"IF('Product registration form'!V162<>\"\",'Product registration form'!V162,\"\")","v":""},{"$f":"IF('Product registration form'!R162<>\"\",'Product registration form'!R162,\"\")","v":""},null,null,{"$f":"IF('Product registration form'!#REF!<>\"\",'Product registration form'!#REF!,\"\")","v":{"$error":"#REF!"}},null,null,null,null,null,null,{"$error":"#REF!"}]
[{"$f":"IF('Product registration form'!V163<>\"\",'Product registration form'!V163,\"\")","v":""},{"$f":"IF('Product registration form'!R163<>\"\",'Product registration form'!R163,\"\")","v":""},null,null,{"$f":"IF('Product registration form'!#REF!<>\"\",'Product registration form'!#REF!,\"\")","v":{"$error":"#REF!"}},null,null,null,null,null,null,{"$error":"#REF!"}]
[{"$f":"IF('Product registration form'!V164<>\"\",'Product registration form'!V164,\"\")","v":""},{"$f":"IF('Product registration form'!R164<>\"\",'Product registration form'!R164,\"\")","v":""},null,null,{"$f":"IF('Product registration form'!#REF!<>\"\",'Product registration form'!#REF!,\"\")","v":{"$error":"#REF!"}},null,null,null,null,null,null,{"$error":"#REF!"}]
[{"$f":"IF('Product registration form'!V165<>\"\",'Product registration form'!V165,\"\")","v":""},{"$f":"IF('Product registration form'!R165<>\"\",'Product registration form'!R165,\"\")","v":""},null,null,{"$f":"IF('Product registration form'!#REF!<>\"\",'Product registration form'!#REF!,\"\")","v":{"$error":"#REF!"}},null,null,null,null,null,null,{"$error":"#REF!"}]
[{"$f":"IF('Product registration form'!V166<>\"\",'Product registration form'!V166,\"\")","v":""},{"$f":"IF('Product registration form'!R166<>\"\",'Product registration form'!R166,\"\")","v":""},null,null,{"$f":"IF('Product registration form'!#REF!<>\"\",'Product registration form'!#REF!,\"\")","v":{"$error":"#REF!"}},null,null,null,null,null,null,{"$error":"#REF!"}]
[{"$f":"IF('Product registration form'!V167<>\"\",'Product registration form'!V167,\"\")","v":""},{"$f":"IF('Product registration form'!R167<>\"\",'Product registration form'!R167,\"\")","v":""},null,null,{"$f":"IF('Product registration form'!#REF!<>\"\",'Product registration form'!#REF!,\"\")","v":{"$error":"#REF!"}},null,null,null,null,null,null,{"$error":"#REF!"}]
[{"$f":"IF('Product registration form'!V168<>\"\",'Product registration form'!V168,\"\")","v":""},{"$f":"IF('Product registration form'!R168<>\"\",'Product registration form'!R168,\"\")","v":""},null,null,{"$f":"IF('Product registration form'!#REF!<>\"\",'Product registration form'!#REF!,\"\")","v":{"$error":"#REF!"}},null,null,null,null,null,null,{"$error":"#REF!"}]
[{"$f":"IF('Product registration form'!V169<>\"\",'Product registration form'!V169,\"\")","v":""},{"$f":"IF('Product registration form'!R169<>\"\",'Product registration form'!R169,\"\")","v":""},null,null,{"$f":"IF('Product registration form'!#REF!<>\"\",'Product registration form'!#REF!,\"\")","v":{"$error":"#REF!"}},null,null,null,null,null,null,{"$error":"#REF!"}]
[{"$f":"IF('Product registration form'!V170<>\"\",'Product registration form'!V170,\"\")","v":""},{"$f":"IF('Product registration form'!R170<>\"\",'Product registration form'!R170,\"\")","v":""},null,null,{"$f":"IF('Product registration form'!#REF!<>\"\",'Product registration form'!#REF!,\"\")","v":{"$error":"#REF!"}},null,null,null,null,null,null,{"$error":"#REF!"}]
[{"$f":"IF('Product registration form'!V171<>\"\",'Product registration form'!V171,\"\")","v":""},{"$f":"IF('Product registration form'!R171<>\"\",'Product registration form'!R171,\"\")","v":""},null,null,{"$f":"IF('Product registration form'!#REF!<>\"\",'Product registration form'!#REF!,\"\")","v":{"$error":"#REF!"}},null,null,null,null,null,null,{"$error":"#REF!"}]
[{"$f":"IF('Product registration form'!V172<>\"\",'Product registration form'!V172,\"\")","v":""},{"$f":"IF('Product registration form'!R172<>\"\",'Product registration form'!R172,\"\")","v":""},null,null,{"$f":"IF('Product registration form'!#REF!<>\"\",'Product registration form'!#REF!,\"\")","v":{"$error":"#REF!"}},null,null,null,null,null,null,{"$error":"#REF!"}]
[{"$f":"IF('Product registration form'!V173<>\"\",'Product registration form'!V173,\"\")","v":""},{"$f":"IF('Product registration form'!R173<>\"\",'Product registration form'!R173,\"\")","v":""},null,null,{"$f":"IF('Product registration form'!#REF!<>\"\",'Product registration form'!#REF!,\"\")","v":{"$error":"#REF!"}},null,null,null,null,null,null,{"$error":"#REF!"}]
[{"$f":"IF('Product registration form'!V174<>\"\",'Product registration form'!V174,\"\")","v":""},{"$f":"IF('Product registration form'!R174<>\"\",'Product registration form'!R174,\"\")","v":""},null,null,{"$f":"IF('Product registration form'!#REF!<>\"\",'Product registration form'!#REF!,\"\")","v":{"$error":"#REF!"}},null,null,null,null,null,null,{"$error":"#REF!"}]
[{"$f":"IF('Product registration form'!V175<>\"\",'Product registration form'!V175,\"\")","v":""},{"$f":"IF('Product registration form'!R175<>\"\",'Product registration form'!R175,\"\")","v":""},null,null,{"$f":"IF('Product registration form'!#REF!<>\"\",'Product registration form'!#REF!,\"\")","v":{"$error":"#REF!"}},null,null,null,null,null,null,{"$error":"#REF!"}]
[{"$f":"IF('Product registration form'!V176<>\"\",'Product registration form'!V176,\"\")","v":""},{"$f":"IF('Product registration form'!R176<>\"\",'Product registration form'!R176,\"\")","v":""},null,null,{"$f":"IF('Product registration form'!#REF!<>\"\",'Product registration form'!#REF!,\"\")","v":{"$error":"#REF!"}},null,null,null,null,null,null,{"$error":"#REF!"}]
[{"$f":"IF('Product registration form'!V177<>\"\",'Product registration form'!V177,\"\")","v":""},{"$f":"IF('Product registration form'!R177<>\"\",'Product registration form'!R177,\"\")","v":""},null,null,{"$f":"IF('Product registration form'!#REF!<>\"\",'Product registration form'!#REF!,\"\")","v":{"$error":"#REF!"}},null,null,null,null,null,null,{"$error":"#REF!"}]
[{"$f":"IF('Product registration form'!V178<>\"\",'Product registration form'!V178,\"\")","v":""},{"$f":"IF('Product registration form'!R178<>\"\",'Product registration form'!R178,\"\")","v":""},null,null,{"$f":"IF('Product registration form'!#REF!<>\"\",'Product registration form'!#REF!,\"\")","v":{"$error":"#REF!"}},null,null,null,null,null,null,{"$error":"#REF!"}]
[{"$f":"IF('Product registration form'!V179<>\"\",'Product registration form'!V179,\"\")","v":""},{"$f":"IF('Product registration form'!R179<>\"\",'Product registration form'!R179,\"\")","v":""},null,null,{"$f":"IF('Product registration form'!#REF!<>\"\",'Product registration form'!#REF!,\"\")","v":{"$error":"#REF!"}},null,null,null,null,null,null,{"$error":"#REF!"}]
[{"$f":"IF('Product registration form'!V180<>\"\",'Product registration form'!V180,\"\")","v":""},{"$f":"IF('Product registration form'!R180<>\"\",'Product registration form'!R180,\"\")","v":""},null,null,{"$f":"IF('Product registration form'!#REF!<>\"\",'Product registration form'!#REF!,\"\")","v":{"$error":"#REF!"}},null,null,null,null,null,null,{"$error":"#REF!"}]
[{"$f":"IF('Product registration form'!V181<>\"\",'Product registration form'!V181,\"\")","v":""},{"$f":"IF('Product registration form'!R181<>\"\",'Product registration form'!R181,\"\")","v":""},null,null,{"$f":"IF('Product registration form'!#REF!<>\"\",'Product registration form'!#REF!,\"\")","v":{"$error":"#REF!"}},null,null,null,null,null,null,{"$error":"#REF!"}]
[{"$f":"IF('Product registration form'!V182<>\"\",'Product registration form'!V182,\"\")","v":""},{"$f":"IF('Product registration form'!R182<>\"\",'Product registration form'!R182,\"\")","v":""},null,null,{"$f":"IF('Product registration form'!#REF!<>\"\",'Product registration form'!#REF!,\"\")","v":{"$error":"#REF!"}},null,null,null,null,null,null,{"$error":"#REF!"}]
[{"$f":"IF('Product registration form'!V183<>\"\",'Product registration form'!V183,\"\")","v":""},{"$f":"IF('Product registration form'!R183<>\"\",'Product registration form'!R183,\"\")","v":""},null,null,{"$f":"IF('Product registration form'!#REF!<>\"\",'Product registration form'!#REF!,\"\")","v":{"$error":"#REF!"}},null,null,null,null,null,null,{"$error":"#REF!"}]
[{"$f":"IF('Product registration form'!V184<>\"\",'Product registration form'!V184,\"\")","v":""},{"$f":"IF('Product registration form'!R184<>\"\",'Product registration form'!R184,\"\")","v":""},null,null,{"$f":"IF('Product registration form'!#REF!<>\"\",'Product registration form'!#REF!,\"\")","v":{"$error":"#REF!"}},null,null,null,null,null,null,{"$error":"#REF!"}]
[{"$f":"IF('Product registration form'!V185<>\"\",'Product registration form'!V185,\"\")","v":""},{"$f":"IF('Product registration form'!R185<>\"\",'Product registration form'!R185,\"\")","v":""},null,null,{"$f":"IF('Product registration form'!#REF!<>\"\",'Product registration form'!#REF!,\"\")","v":{"$error":"#REF!"}},null,null,null,null,null,null,{"$error":"#REF!"}]
[{"$f":"IF('Product registration form'!V186<>\"\",'Product registration form'!V186,\"\")","v":""},{"$f":"IF('Product registration form'!R186<>\"\",'Product registration form'!R186,\"\")","v":""},null,null,{"$f":"IF('Product registration form'!#REF!<>\"\",'Product registration form'!#REF!,\"\")","v":{"$error":"#REF!"}},null,null,null,null,null,null,{"$error":"#REF!"}]
[{"$f":"IF('Product registration form'!V187<>\"\",'Product registration form'!V187,\"\")","v":""},{"$f":"IF('Product registration form'!R187<>\"\",'Product registration form'!R187,\"\")","v":""},null,null,{"$f":"IF('Product registration form'!#REF!<>\"\",'Product registration form'!#REF!,\"\")","v":{"$error":"#REF!"}},null,null,null,null,null,null,{"$error":"#REF!"}]
[{"$f":"IF('Product registration form'!V188<>\"\",'Product registration form'!V188,\"\")","v":""},{"$f":"IF('Product registration form'!R188<>\"\",'Product registration form'!R188,\"\")","v":""},null,null,{"$f":"IF('Product registration form'!#REF!<>\"\",'Product registration form'!#REF!,\"\")","v":{"$error":"#REF!"}},null,null,null,null,null,null,{"$error":"#REF!"}]
[{"$f":"IF('Product registration form'!V189<>\"\",'Product registration form'!V189,\"\")","v":""},{"$f":"IF('Product registration form'!R189<>\"\",'Product registration form'!R189,\"\")","v":""},null,null,{"$f":"IF('Product registration form'!#REF!<>\"\",'Product registration form'!#REF!,\"\")","v":{"$error":"#REF!"}},null,null,null,null,null,null,{"$error":"#REF!"}]
[{"$f":"IF('Product registration form'!V190<>\"\",'Product registration form'!V190,\"\")","v":""},{"$f":"IF('Product registration form'!R190<>\"\",'Product registration form'!R190,\"\")","v":""},null,null,{"$f":"IF('Product registration form'!#REF!<>\"\",'Product registration form'!#REF!,\"\")","v":{"$error":"#REF!"}},null,null,null,null,null,null,{"$error":"#REF!"}]
[{"$f":"IF('Product registration form'!V191<>\"\",'Product registration form'!V191,\"\")","v":""},{"$f":"IF('Product registration form'!R191<>\"\",'Product registration form'!R191,\"\")","v":""},null,null,{"$f":"IF('Product registration form'!#REF!<>\"\",'Product registration form'!#REF!,\"\")","v":{"$error":"#REF!"}},null,null,null,null,null,null,{"$error":"#REF!"}]
[{"$f":"IF('Product registration form'!V192<>\"\",'Product registration form'!V192,\"\")","v":""},{"$f":"IF('Product registration form'!R192<>\"\",'Product registration form'!R192,\"\")","v":""},null,null,{"$f":"IF('Product registration form'!#REF!<>\"\",'Product registration form'!#REF!,\"\")","v":{"$error":"#REF!"}},null,null,null,null,null,null,{"$error":"#REF!"}]
[{"$f":"IF('Product registration form'!V193<>\"\",'Product registration form'!V193,\"\")","v":""},{"$f":"IF('Product registration form'!R193<>\"\",'Product registration form'!R193,\"\")","v":""},null,null,{"$f":"IF('Product registration form'!#REF!<>\"\",'Product registration form'!#REF!,\"\")","v":{"$error":"#REF!"}},null,null,null,null,null,null,{"$error":"#REF!"}]
[{"$f":"IF('Product registration form'!V194<>\"\",'Product registration form'!V194,\"\")","v":""},{"$f":"IF('Product registration form'!R194<>\"\",'Product registration form'!R194,\"\")","v":""},null,null,{"$f":"IF('Product registration form'!#REF!<>\"\",'Product registration form'!#REF!,\"\")","v":{"$error":"#REF!"}},null,null,null,null,null,null,{"$error":"#REF!"}]
[{"$f":"IF('Product registration form'!V195<>\"\",'Product registration form'!V195,\"\")","v":""},{"$f":"IF('Product registration form'!R195<>\"\",'Product registration form'!R195,\"\")","v":""},null,null,{"$f":"IF('Product registration form'!#REF!<>\"\",'Product registration form'!#REF!,\"\")","v":{"$error":"#REF!"}},null,null,null,null,null,null,{"$error":"#REF!"}]
[{"$f":"IF('Product registration form'!V196<>\"\",'Product registration form'!V196,\"\")","v":""},{"$f":"IF('Product registration form'!R196<>\"\",'Product registration form'!R196,\"\")","v":""},null,null,{"$f":"IF('Product registration form'!#REF!<>\"\",'Product registration form'!#REF!,\"\")","v":{"$error":"#REF!"}},null,null,null,null,null,null,{"$error":"#REF!"}]
[{"$f":"IF('Product registration form'!V197<>\"\",'Product registration form'!V197,\"\")","v":""},{"$f":"IF('Product registration form'!R197<>\"\",'Product registration form'!R197,\"\")","v":""},null,null,{"$f":"IF('Product registration form'!#REF!<>\"\",'Product registration form'!#REF!,\"\")","v":{"$error":"#REF!"}},null,null,null,null,null,null,{"$error":"#REF!"}]
[{"$f":"IF('Product registration form'!V198<>\"\",'Product registration form'!V198,\"\")","v":""},{"$f":"IF('Product registration form'!R198<>\"\",'Product registration form'!R198,\"\")","v":""},null,null,{"$f":"IF('Product registration form'!#REF!<>\"\",'Product registration form'!#REF!,\"\")","v":{"$error":"#REF!"}},null,null,null,null,null,null,{"$f":"(E198*1000) - G198 - H198 - I198 - J198 - K198","v":{"$error":"#REF!"}}]
[{"$f":"IF('Product registration form'!V199<>\"\",'Product registration form'!V199,\"\")","v":""},{"$f":"IF('Product registration form'!R199<>\"\",'Product registration form'!R199,\"\")","v":""},null,null,{"$f":"IF('Product registration form'!#REF!<>\"\",'Product registration form'!#REF!,\"\")","v":{"$error":"#REF!"}},null,null,null,null,null,null,{"$error":"#REF!"}]
[{"$f":"IF('Product registration form'!V200<>\"\",'Product registration form'!V200,\"\")","v":""},{"$f":"IF('Product registration form'!R200<>\"\",'Product registration form'!R200,\"\")","v":""},null,null,{"$f":"IF('Product registration form'!#REF!<>\"\",'Product registration form'!#REF!,\"\")","v":{"$error":"#REF!"}},null,null,null,null,null,null,{"$error":"#REF!"}]

{"sheet":"Unpacking data","index":5,"n_rows":200,"n_cols":9,"rows_kept":200,"cut":false,"hidden":false,"merged":[]}
[]
[]
[null,"To be filled by vendor",null,null,"To be filled by buying dep.",null,null,"To be filled by Master Data."]
["GTIN","Article description","Gross weight/BOX KG","Depth/BOX MM","Width/BOX MM","Height/BOX MM","CA Per Box","BOX per layer","BOX per pallet"]
[{"$f":"IF('Product registration form'!V5<>\"\",'Product registration form'!V5,\"\")","v":""},{"$f":"IF('Product registration form'!R5<>\"\",'Product registration form'!R5,\"\")","v":""}]
[{"$f":"IF('Product registration form'!V6<>\"\",'Product registration form'!V6,\"\")","v":""},{"$f":"IF('Product registration form'!R6<>\"\",'Product registration form'!R6,\"\")","v":""}]
[{"$f":"IF('Product registration form'!V7<>\"\",'Product registration form'!V7,\"\")","v":""},{"$f":"IF('Product registration form'!R7<>\"\",'Product registration form'!R7,\"\")","v":""}]
[{"$f":"IF('Product registration form'!V8<>\"\",'Product registration form'!V8,\"\")","v":""},{"$f":"IF('Product registration form'!R8<>\"\",'Product registration form'!R8,\"\")","v":""}]
[{"$f":"IF('Product registration form'!V9<>\"\",'Product registration form'!V9,\"\")","v":""},{"$f":"IF('Product registration form'!R9<>\"\",'Product registration form'!R9,\"\")","v":""}]
[{"$f":"IF('Product registration form'!V10<>\"\",'Product registration form'!V10,\"\")","v":""},{"$f":"IF('Product registration form'!R10<>\"\",'Product registration form'!R10,\"\")","v":""}]
[{"$f":"IF('Product registration form'!V11<>\"\",'Product registration form'!V11,\"\")","v":""},{"$f":"IF('Product registration form'!R11<>\"\",'Product registration form'!R11,\"\")","v":""}]
[{"$f":"IF('Product registration form'!V12<>\"\",'Product registration form'!V12,\"\")","v":""},{"$f":"IF('Product registration form'!R12<>\"\",'Product registration form'!R12,\"\")","v":""}]
[{"$f":"IF('Product registration form'!V13<>\"\",'Product registration form'!V13,\"\")","v":""},{"$f":"IF('Product registration form'!R13<>\"\",'Product registration form'!R13,\"\")","v":""}]
[{"$f":"IF('Product registration form'!V14<>\"\",'Product registration form'!V14,\"\")","v":""},{"$f":"IF('Product registration form'!R14<>\"\",'Product registration form'!R14,\"\")","v":""}]
[{"$f":"IF('Product registration form'!V15<>\"\",'Product registration form'!V15,\"\")","v":""},{"$f":"IF('Product registration form'!R15<>\"\",'Product registration form'!R15,\"\")","v":""}]
[{"$f":"IF('Product registration form'!V16<>\"\",'Product registration form'!V16,\"\")","v":""},{"$f":"IF('Product registration form'!R16<>\"\",'Product registration form'!R16,\"\")","v":""}]
[{"$f":"IF('Product registration form'!V17<>\"\",'Product registration form'!V17,\"\")","v":""},{"$f":"IF('Product registration form'!R17<>\"\",'Product registration form'!R17,\"\")","v":""}]
[{"$f":"IF('Product registration form'!V18<>\"\",'Product registration form'!V18,\"\")","v":""},{"$f":"IF('Product registration form'!R18<>\"\",'Product registration form'!R18,\"\")","v":""}]
[{"$f":"IF('Product registration form'!V19<>\"\",'Product registration form'!V19,\"\")","v":""},{"$f":"IF('Product registration form'!R19<>\"\",'Product registration form'!R19,\"\")","v":""}]
[{"$f":"IF('Product registration form'!V20<>\"\",'Product registration form'!V20,\"\")","v":""},{"$f":"IF('Product registration form'!R20<>\"\",'Product registration form'!R20,\"\")","v":""}]
[{"$f":"IF('Product registration form'!V21<>\"\",'Product registration form'!V21,\"\")","v":""},{"$f":"IF('Product registration form'!R21<>\"\",'Product registration form'!R21,\"\")","v":""}]
[{"$f":"IF('Product registration form'!V22<>\"\",'Product registration form'!V22,\"\")","v":""},{"$f":"IF('Product registration form'!R22<>\"\",'Product registration form'!R22,\"\")","v":""}]
[{"$f":"IF('Product registration form'!V23<>\"\",'Product registration form'!V23,\"\")","v":""},{"$f":"IF('Product registration form'!R23<>\"\",'Product registration form'!R23,\"\")","v":""}]
[{"$f":"IF('Product registration form'!V24<>\"\",'Product registration form'!V24,\"\")","v":""},{"$f":"IF('Product registration form'!R24<>\"\",'Product registration form'!R24,\"\")","v":""}]
[{"$f":"IF('Product registration form'!V25<>\"\",'Product registration form'!V25,\"\")","v":""},{"$f":"IF('Product registration form'!R25<>\"\",'Product registration form'!R25,\"\")","v":""}]
[{"$f":"IF('Product registration form'!V26<>\"\",'Product registration form'!V26,\"\")","v":""},{"$f":"IF('Product registration form'!R26<>\"\",'Product registration form'!R26,\"\")","v":""}]
[{"$f":"IF('Product registration form'!V27<>\"\",'Product registration form'!V27,\"\")","v":""},{"$f":"IF('Product registration form'!R27<>\"\",'Product registration form'!R27,\"\")","v":""}]
[{"$f":"IF('Product registration form'!V28<>\"\",'Product registration form'!V28,\"\")","v":""},{"$f":"IF('Product registration form'!R28<>\"\",'Product registration form'!R28,\"\")","v":""}]
[{"$f":"IF('Product registration form'!V29<>\"\",'Product registration form'!V29,\"\")","v":""},{"$f":"IF('Product registration form'!R29<>\"\",'Product registration form'!R29,\"\")","v":""}]
[{"$f":"IF('Product registration form'!V30<>\"\",'Product registration form'!V30,\"\")","v":""},{"$f":"IF('Product registration form'!R30<>\"\",'Product registration form'!R30,\"\")","v":""}]
[{"$f":"IF('Product registration form'!V31<>\"\",'Product registration form'!V31,\"\")","v":""},{"$f":"IF('Product registration form'!R31<>\"\",'Product registration form'!R31,\"\")","v":""}]
[{"$f":"IF('Product registration form'!V32<>\"\",'Product registration form'!V32,\"\")","v":""},{"$f":"IF('Product registration form'!R32<>\"\",'Product registration form'!R32,\"\")","v":""}]
[{"$f":"IF('Product registration form'!V33<>\"\",'Product registration form'!V33,\"\")","v":""},{"$f":"IF('Product registration form'!R33<>\"\",'Product registration form'!R33,\"\")","v":""}]
[{"$f":"IF('Product registration form'!V34<>\"\",'Product registration form'!V34,\"\")","v":""},{"$f":"IF('Product registration form'!R34<>\"\",'Product registration form'!R34,\"\")","v":""}]
[{"$f":"IF('Product registration form'!V35<>\"\",'Product registration form'!V35,\"\")","v":""},{"$f":"IF('Product registration form'!R35<>\"\",'Product registration form'!R35,\"\")","v":""}]
[{"$f":"IF('Product registration form'!V36<>\"\",'Product registration form'!V36,\"\")","v":""},{"$f":"IF('Product registration form'!R36<>\"\",'Product registration form'!R36,\"\")","v":""}]
[{"$f":"IF('Product registration form'!V37<>\"\",'Product registration form'!V37,\"\")","v":""},{"$f":"IF('Product registration form'!R37<>\"\",'Product registration form'!R37,\"\")","v":""}]
[{"$f":"IF('Product registration form'!V38<>\"\",'Product registration form'!V38,\"\")","v":""},{"$f":"IF('Product registration form'!R38<>\"\",'Product registration form'!R38,\"\")","v":""}]
[{"$f":"IF('Product registration form'!V39<>\"\",'Product registration form'!V39,\"\")","v":""},{"$f":"IF('Product registration form'!R39<>\"\",'Product registration form'!R39,\"\")","v":""}]
[{"$f":"IF('Product registration form'!V40<>\"\",'Product registration form'!V40,\"\")","v":""},{"$f":"IF('Product registration form'!R40<>\"\",'Product registration form'!R40,\"\")","v":""}]
[{"$f":"IF('Product registration form'!V41<>\"\",'Product registration form'!V41,\"\")","v":""},{"$f":"IF('Product registration form'!R41<>\"\",'Product registration form'!R41,\"\")","v":""}]
[{"$f":"IF('Product registration form'!V42<>\"\",'Product registration form'!V42,\"\")","v":""},{"$f":"IF('Product registration form'!R42<>\"\",'Product registration form'!R42,\"\")","v":""}]
[{"$f":"IF('Product registration form'!V43<>\"\",'Product registration form'!V43,\"\")","v":""},{"$f":"IF('Product registration form'!R43<>\"\",'Product registration form'!R43,\"\")","v":""}]
[{"$f":"IF('Product registration form'!V44<>\"\",'Product registration form'!V44,\"\")","v":""},{"$f":"IF('Product registration form'!R44<>\"\",'Product registration form'!R44,\"\")","v":""}]
[{"$f":"IF('Product registration form'!V45<>\"\",'Product registration form'!V45,\"\")","v":""},{"$f":"IF('Product registration form'!R45<>\"\",'Product registration form'!R45,\"\")","v":""}]
[{"$f":"IF('Product registration form'!V46<>\"\",'Product registration form'!V46,\"\")","v":""},{"$f":"IF('Product registration form'!R46<>\"\",'Product registration form'!R46,\"\")","v":""}]
[{"$f":"IF('Product registration form'!V47<>\"\",'Product registration form'!V47,\"\")","v":""},{"$f":"IF('Product registration form'!R47<>\"\",'Product registration form'!R47,\"\")","v":""}]
[{"$f":"IF('Product registration form'!V48<>\"\",'Product registration form'!V48,\"\")","v":""},{"$f":"IF('Product registration form'!R48<>\"\",'Product registration form'!R48,\"\")","v":""}]
[{"$f":"IF('Product registration form'!V49<>\"\",'Product registration form'!V49,\"\")","v":""},{"$f":"IF('Product registration form'!R49<>\"\",'Product registration form'!R49,\"\")","v":""}]
[{"$f":"IF('Product registration form'!V50<>\"\",'Product registration form'!V50,\"\")","v":""},{"$f":"IF('Product registration form'!R50<>\"\",'Product registration form'!R50,\"\")","v":""}]
[{"$f":"IF('Product registration form'!V51<>\"\",'Product registration form'!V51,\"\")","v":""},{"$f":"IF('Product registration form'!R51<>\"\",'Product registration form'!R51,\"\")","v":""}]
[{"$f":"IF('Product registration form'!V52<>\"\",'Product registration form'!V52,\"\")","v":""},{"$f":"IF('Product registration form'!R52<>\"\",'Product registration form'!R52,\"\")","v":""}]
[{"$f":"IF('Product registration form'!V53<>\"\",'Product registration form'!V53,\"\")","v":""},{"$f":"IF('Product registration form'!R53<>\"\",'Product registration form'!R53,\"\")","v":""}]
[{"$f":"IF('Product registration form'!V54<>\"\",'Product registration form'!V54,\"\")","v":""},{"$f":"IF('Product registration form'!R54<>\"\",'Product registration form'!R54,\"\")","v":""}]
[{"$f":"IF('Product registration form'!V55<>\"\",'Product registration form'!V55,\"\")","v":""},{"$f":"IF('Product registration form'!R55<>\"\",'Product registration form'!R55,\"\")","v":""}]
[{"$f":"IF('Product registration form'!V56<>\"\",'Product registration form'!V56,\"\")","v":""},{"$f":"IF('Product registration form'!R56<>\"\",'Product registration form'!R56,\"\")","v":""}]
[{"$f":"IF('Product registration form'!V57<>\"\",'Product registration form'!V57,\"\")","v":""},{"$f":"IF('Product registration form'!R57<>\"\",'Product registration form'!R57,\"\")","v":""}]
[{"$f":"IF('Product registration form'!V58<>\"\",'Product registration form'!V58,\"\")","v":""},{"$f":"IF('Product registration form'!R58<>\"\",'Product registration form'!R58,\"\")","v":""}]
[{"$f":"IF('Product registration form'!V59<>\"\",'Product registration form'!V59,\"\")","v":""},{"$f":"IF('Product registration form'!R59<>\"\",'Product registration form'!R59,\"\")","v":""}]
[{"$f":"IF('Product registration form'!V60<>\"\",'Product registration form'!V60,\"\")","v":""},{"$f":"IF('Product registration form'!R60<>\"\",'Product registration form'!R60,\"\")","v":""}]
[{"$f":"IF('Product registration form'!V61<>\"\",'Product registration form'!V61,\"\")","v":""},{"$f":"IF('Product registration form'!R61<>\"\",'Product registration form'!R61,\"\")","v":""}]
[{"$f":"IF('Product registration form'!V62<>\"\",'Product registration form'!V62,\"\")","v":""},{"$f":"IF('Product registration form'!R62<>\"\",'Product registration form'!R62,\"\")","v":""}]
[{"$f":"IF('Product registration form'!V63<>\"\",'Product registration form'!V63,\"\")","v":""},{"$f":"IF('Product registration form'!R63<>\"\",'Product registration form'!R63,\"\")","v":""}]
[{"$f":"IF('Product registration form'!V64<>\"\",'Product registration form'!V64,\"\")","v":""},{"$f":"IF('Product registration form'!R64<>\"\",'Product registration form'!R64,\"\")","v":""}]
[{"$f":"IF('Product registration form'!V65<>\"\",'Product registration form'!V65,\"\")","v":""},{"$f":"IF('Product registration form'!R65<>\"\",'Product registration form'!R65,\"\")","v":""}]
[{"$f":"IF('Product registration form'!V66<>\"\",'Product registration form'!V66,\"\")","v":""},{"$f":"IF('Product registration form'!R66<>\"\",'Product registration form'!R66,\"\")","v":""}]
[{"$f":"IF('Product registration form'!V67<>\"\",'Product registration form'!V67,\"\")","v":""},{"$f":"IF('Product registration form'!R67<>\"\",'Product registration form'!R67,\"\")","v":""}]
[{"$f":"IF('Product registration form'!V68<>\"\",'Product registration form'!V68,\"\")","v":""},{"$f":"IF('Product registration form'!R68<>\"\",'Product registration form'!R68,\"\")","v":""}]
[{"$f":"IF('Product registration form'!V69<>\"\",'Product registration form'!V69,\"\")","v":""},{"$f":"IF('Product registration form'!R69<>\"\",'Product registration form'!R69,\"\")","v":""}]
[{"$f":"IF('Product registration form'!V70<>\"\",'Product registration form'!V70,\"\")","v":""},{"$f":"IF('Product registration form'!R70<>\"\",'Product registration form'!R70,\"\")","v":""}]
[{"$f":"IF('Product registration form'!V71<>\"\",'Product registration form'!V71,\"\")","v":""},{"$f":"IF('Product registration form'!R71<>\"\",'Product registration form'!R71,\"\")","v":""}]
[{"$f":"IF('Product registration form'!V72<>\"\",'Product registration form'!V72,\"\")","v":""},{"$f":"IF('Product registration form'!R72<>\"\",'Product registration form'!R72,\"\")","v":""}]
[{"$f":"IF('Product registration form'!V73<>\"\",'Product registration form'!V73,\"\")","v":""},{"$f":"IF('Product registration form'!R73<>\"\",'Product registration form'!R73,\"\")","v":""}]
[{"$f":"IF('Product registration form'!V74<>\"\",'Product registration form'!V74,\"\")","v":""},{"$f":"IF('Product registration form'!R74<>\"\",'Product registration form'!R74,\"\")","v":""}]
[{"$f":"IF('Product registration form'!V75<>\"\",'Product registration form'!V75,\"\")","v":""},{"$f":"IF('Product registration form'!R75<>\"\",'Product registration form'!R75,\"\")","v":""}]
[{"$f":"IF('Product registration form'!V76<>\"\",'Product registration form'!V76,\"\")","v":""},{"$f":"IF('Product registration form'!R76<>\"\",'Product registration form'!R76,\"\")","v":""}]
[{"$f":"IF('Product registration form'!V77<>\"\",'Product registration form'!V77,\"\")","v":""},{"$f":"IF('Product registration form'!R77<>\"\",'Product registration form'!R77,\"\")","v":""}]
[{"$f":"IF('Product registration form'!V78<>\"\",'Product registration form'!V78,\"\")","v":""},{"$f":"IF('Product registration form'!R78<>\"\",'Product registration form'!R78,\"\")","v":""}]
[{"$f":"IF('Product registration form'!V79<>\"\",'Product registration form'!V79,\"\")","v":""},{"$f":"IF('Product registration form'!R79<>\"\",'Product registration form'!R79,\"\")","v":""}]
[{"$f":"IF('Product registration form'!V80<>\"\",'Product registration form'!V80,\"\")","v":""},{"$f":"IF('Product registration form'!R80<>\"\",'Product registration form'!R80,\"\")","v":""}]
[{"$f":"IF('Product registration form'!V81<>\"\",'Product registration form'!V81,\"\")","v":""},{"$f":"IF('Product registration form'!R81<>\"\",'Product registration form'!R81,\"\")","v":""}]
[{"$f":"IF('Product registration form'!V82<>\"\",'Product registration form'!V82,\"\")","v":""},{"$f":"IF('Product registration form'!R82<>\"\",'Product registration form'!R82,\"\")","v":""}]
[{"$f":"IF('Product registration form'!V83<>\"\",'Product registration form'!V83,\"\")","v":""},{"$f":"IF('Product registration form'!R83<>\"\",'Product registration form'!R83,\"\")","v":""}]
[{"$f":"IF('Product registration form'!V84<>\"\",'Product registration form'!V84,\"\")","v":""},{"$f":"IF('Product registration form'!R84<>\"\",'Product registration form'!R84,\"\")","v":""}]
[{"$f":"IF('Product registration form'!V85<>\"\",'Product registration form'!V85,\"\")","v":""},{"$f":"IF('Product registration form'!R85<>\"\",'Product registration form'!R85,\"\")","v":""}]
[{"$f":"IF('Product registration form'!V86<>\"\",'Product registration form'!V86,\"\")","v":""},{"$f":"IF('Product registration form'!R86<>\"\",'Product registration form'!R86,\"\")","v":""}]
[{"$f":"IF('Product registration form'!V87<>\"\",'Product registration form'!V87,\"\")","v":""},{"$f":"IF('Product registration form'!R87<>\"\",'Product registration form'!R87,\"\")","v":""}]
[{"$f":"IF('Product registration form'!V88<>\"\",'Product registration form'!V88,\"\")","v":""},{"$f":"IF('Product registration form'!R88<>\"\",'Product registration form'!R88,\"\")","v":""}]
[{"$f":"IF('Product registration form'!V89<>\"\",'Product registration form'!V89,\"\")","v":""},{"$f":"IF('Product registration form'!R89<>\"\",'Product registration form'!R89,\"\")","v":""}]
[{"$f":"IF('Product registration form'!V90<>\"\",'Product registration form'!V90,\"\")","v":""},{"$f":"IF('Product registration form'!R90<>\"\",'Product registration form'!R90,\"\")","v":""}]
[{"$f":"IF('Product registration form'!V91<>\"\",'Product registration form'!V91,\"\")","v":""},{"$f":"IF('Product registration form'!R91<>\"\",'Product registration form'!R91,\"\")","v":""}]
[{"$f":"IF('Product registration form'!V92<>\"\",'Product registration form'!V92,\"\")","v":""},{"$f":"IF('Product registration form'!R92<>\"\",'Product registration form'!R92,\"\")","v":""}]
[{"$f":"IF('Product registration form'!V93<>\"\",'Product registration form'!V93,\"\")","v":""},{"$f":"IF('Product registration form'!R93<>\"\",'Product registration form'!R93,\"\")","v":""}]
[{"$f":"IF('Product registration form'!V94<>\"\",'Product registration form'!V94,\"\")","v":""},{"$f":"IF('Product registration form'!R94<>\"\",'Product registration form'!R94,\"\")","v":""}]
[{"$f":"IF('Product registration form'!V95<>\"\",'Product registration form'!V95,\"\")","v":""},{"$f":"IF('Product registration form'!R95<>\"\",'Product registration form'!R95,\"\")","v":""}]
[{"$f":"IF('Product registration form'!V96<>\"\",'Product registration form'!V96,\"\")","v":""},{"$f":"IF('Product registration form'!R96<>\"\",'Product registration form'!R96,\"\")","v":""}]
[{"$f":"IF('Product registration form'!V97<>\"\",'Product registration form'!V97,\"\")","v":""},{"$f":"IF('Product registration form'!R97<>\"\",'Product registration form'!R97,\"\")","v":""}]
[{"$f":"IF('Product registration form'!V98<>\"\",'Product registration form'!V98,\"\")","v":""},{"$f":"IF('Product registration form'!R98<>\"\",'Product registration form'!R98,\"\")","v":""}]
[{"$f":"IF('Product registration form'!V99<>\"\",'Product registration form'!V99,\"\")","v":""},{"$f":"IF('Product registration form'!R99<>\"\",'Product registration form'!R99,\"\")","v":""}]
[{"$f":"IF('Product registration form'!V100<>\"\",'Product registration form'!V100,\"\")","v":""},{"$f":"IF('Product registration form'!R100<>\"\",'Product registration form'!R100,\"\")","v":""}]
[{"$f":"IF('Product registration form'!V101<>\"\",'Product registration form'!V101,\"\")","v":""},{"$f":"IF('Product registration form'!R101<>\"\",'Product registration form'!R101,\"\")","v":""}]
[{"$f":"IF('Product registration form'!V102<>\"\",'Product registration form'!V102,\"\")","v":""},{"$f":"IF('Product registration form'!R102<>\"\",'Product registration form'!R102,\"\")","v":""}]
[{"$f":"IF('Product registration form'!V103<>\"\",'Product registration form'!V103,\"\")","v":""},{"$f":"IF('Product registration form'!R103<>\"\",'Product registration form'!R103,\"\")","v":""}]
[{"$f":"IF('Product registration form'!V104<>\"\",'Product registration form'!V104,\"\")","v":""},{"$f":"IF('Product registration form'!R104<>\"\",'Product registration form'!R104,\"\")","v":""}]
[{"$f":"IF('Product registration form'!V105<>\"\",'Product registration form'!V105,\"\")","v":""},{"$f":"IF('Product registration form'!R105<>\"\",'Product registration form'!R105,\"\")","v":""}]
[{"$f":"IF('Product registration form'!V106<>\"\",'Product registration form'!V106,\"\")","v":""},{"$f":"IF('Product registration form'!R106<>\"\",'Product registration form'!R106,\"\")","v":""}]
[{"$f":"IF('Product registration form'!V107<>\"\",'Product registration form'!V107,\"\")","v":""},{"$f":"IF('Product registration form'!R107<>\"\",'Product registration form'!R107,\"\")","v":""}]
[{"$f":"IF('Product registration form'!V108<>\"\",'Product registration form'!V108,\"\")","v":""},{"$f":"IF('Product registration form'!R108<>\"\",'Product registration form'!R108,\"\")","v":""}]
[{"$f":"IF('Product registration form'!V109<>\"\",'Product registration form'!V109,\"\")","v":""},{"$f":"IF('Product registration form'!R109<>\"\",'Product registration form'!R109,\"\")","v":""}]
[{"$f":"IF('Product registration form'!V110<>\"\",'Product registration form'!V110,\"\")","v":""},{"$f":"IF('Product registration form'!R110<>\"\",'Product registration form'!R110,\"\")","v":""}]
[{"$f":"IF('Product registration form'!V111<>\"\",'Product registration form'!V111,\"\")","v":""},{"$f":"IF('Product registration form'!R111<>\"\",'Product registration form'!R111,\"\")","v":""}]
[{"$f":"IF('Product registration form'!V112<>\"\",'Product registration form'!V112,\"\")","v":""},{"$f":"IF('Product registration form'!R112<>\"\",'Product registration form'!R112,\"\")","v":""}]
[{"$f":"IF('Product registration form'!V113<>\"\",'Product registration form'!V113,\"\")","v":""},{"$f":"IF('Product registration form'!R113<>\"\",'Product registration form'!R113,\"\")","v":""}]
[{"$f":"IF('Product registration form'!V114<>\"\",'Product registration form'!V114,\"\")","v":""},{"$f":"IF('Product registration form'!R114<>\"\",'Product registration form'!R114,\"\")","v":""}]
[{"$f":"IF('Product registration form'!V115<>\"\",'Product registration form'!V115,\"\")","v":""},{"$f":"IF('Product registration form'!R115<>\"\",'Product registration form'!R115,\"\")","v":""}]
[{"$f":"IF('Product registration form'!V116<>\"\",'Product registration form'!V116,\"\")","v":""},{"$f":"IF('Product registration form'!R116<>\"\",'Product registration form'!R116,\"\")","v":""}]
[{"$f":"IF('Product registration form'!V117<>\"\",'Product registration form'!V117,\"\")","v":""},{"$f":"IF('Product registration form'!R117<>\"\",'Product registration form'!R117,\"\")","v":""}]
[{"$f":"IF('Product registration form'!V118<>\"\",'Product registration form'!V118,\"\")","v":""},{"$f":"IF('Product registration form'!R118<>\"\",'Product registration form'!R118,\"\")","v":""}]
[{"$f":"IF('Product registration form'!V119<>\"\",'Product registration form'!V119,\"\")","v":""},{"$f":"IF('Product registration form'!R119<>\"\",'Product registration form'!R119,\"\")","v":""}]
[{"$f":"IF('Product registration form'!V120<>\"\",'Product registration form'!V120,\"\")","v":""},{"$f":"IF('Product registration form'!R120<>\"\",'Product registration form'!R120,\"\")","v":""}]
[{"$f":"IF('Product registration form'!V121<>\"\",'Product registration form'!V121,\"\")","v":""},{"$f":"IF('Product registration form'!R121<>\"\",'Product registration form'!R121,\"\")","v":""}]
[{"$f":"IF('Product registration form'!V122<>\"\",'Product registration form'!V122,\"\")","v":""},{"$f":"IF('Product registration form'!R122<>\"\",'Product registration form'!R122,\"\")","v":""}]
[{"$f":"IF('Product registration form'!V123<>\"\",'Product registration form'!V123,\"\")","v":""},{"$f":"IF('Product registration form'!R123<>\"\",'Product registration form'!R123,\"\")","v":""}]
[{"$f":"IF('Product registration form'!V124<>\"\",'Product registration form'!V124,\"\")","v":""},{"$f":"IF('Product registration form'!R124<>\"\",'Product registration form'!R124,\"\")","v":""}]
[{"$f":"IF('Product registration form'!V125<>\"\",'Product registration form'!V125,\"\")","v":""},{"$f":"IF('Product registration form'!R125<>\"\",'Product registration form'!R125,\"\")","v":""}]
[{"$f":"IF('Product registration form'!V126<>\"\",'Product registration form'!V126,\"\")","v":""},{"$f":"IF('Product registration form'!R126<>\"\",'Product registration form'!R126,\"\")","v":""}]
[{"$f":"IF('Product registration form'!V127<>\"\",'Product registration form'!V127,\"\")","v":""},{"$f":"IF('Product registration form'!R127<>\"\",'Product registration form'!R127,\"\")","v":""}]
[{"$f":"IF('Product registration form'!V128<>\"\",'Product registration form'!V128,\"\")","v":""},{"$f":"IF('Product registration form'!R128<>\"\",'Product registration form'!R128,\"\")","v":""}]
[{"$f":"IF('Product registration form'!V129<>\"\",'Product registration form'!V129,\"\")","v":""},{"$f":"IF('Product registration form'!R129<>\"\",'Product registration form'!R129,\"\")","v":""}]
[{"$f":"IF('Product registration form'!V130<>\"\",'Product registration form'!V130,\"\")","v":""},{"$f":"IF('Product registration form'!R130<>\"\",'Product registration form'!R130,\"\")","v":""}]
[{"$f":"IF('Product registration form'!V131<>\"\",'Product registration form'!V131,\"\")","v":""},{"$f":"IF('Product registration form'!R131<>\"\",'Product registration form'!R131,\"\")","v":""}]
[{"$f":"IF('Product registration form'!V132<>\"\",'Product registration form'!V132,\"\")","v":""},{"$f":"IF('Product registration form'!R132<>\"\",'Product registration form'!R132,\"\")","v":""}]
[{"$f":"IF('Product registration form'!V133<>\"\",'Product registration form'!V133,\"\")","v":""},{"$f":"IF('Product registration form'!R133<>\"\",'Product registration form'!R133,\"\")","v":""}]
[{"$f":"IF('Product registration form'!V134<>\"\",'Product registration form'!V134,\"\")","v":""},{"$f":"IF('Product registration form'!R134<>\"\",'Product registration form'!R134,\"\")","v":""}]
[{"$f":"IF('Product registration form'!V135<>\"\",'Product registration form'!V135,\"\")","v":""},{"$f":"IF('Product registration form'!R135<>\"\",'Product registration form'!R135,\"\")","v":""}]
[{"$f":"IF('Product registration form'!V136<>\"\",'Product registration form'!V136,\"\")","v":""},{"$f":"IF('Product registration form'!R136<>\"\",'Product registration form'!R136,\"\")","v":""}]
[{"$f":"IF('Product registration form'!V137<>\"\",'Product registration form'!V137,\"\")","v":""},{"$f":"IF('Product registration form'!R137<>\"\",'Product registration form'!R137,\"\")","v":""}]
[{"$f":"IF('Product registration form'!V138<>\"\",'Product registration form'!V138,\"\")","v":""},{"$f":"IF('Product registration form'!R138<>\"\",'Product registration form'!R138,\"\")","v":""}]
[{"$f":"IF('Product registration form'!V139<>\"\",'Product registration form'!V139,\"\")","v":""},{"$f":"IF('Product registration form'!R139<>\"\",'Product registration form'!R139,\"\")","v":""}]
[{"$f":"IF('Product registration form'!V140<>\"\",'Product registration form'!V140,\"\")","v":""},{"$f":"IF('Product registration form'!R140<>\"\",'Product registration form'!R140,\"\")","v":""}]
[{"$f":"IF('Product registration form'!V141<>\"\",'Product registration form'!V141,\"\")","v":""},{"$f":"IF('Product registration form'!R141<>\"\",'Product registration form'!R141,\"\")","v":""}]
[{"$f":"IF('Product registration form'!V142<>\"\",'Product registration form'!V142,\"\")","v":""},{"$f":"IF('Product registration form'!R142<>\"\",'Product registration form'!R142,\"\")","v":""}]
[{"$f":"IF('Product registration form'!V143<>\"\",'Product registration form'!V143,\"\")","v":""},{"$f":"IF('Product registration form'!R143<>\"\",'Product registration form'!R143,\"\")","v":""}]
[{"$f":"IF('Product registration form'!V144<>\"\",'Product registration form'!V144,\"\")","v":""},{"$f":"IF('Product registration form'!R144<>\"\",'Product registration form'!R144,\"\")","v":""}]
[{"$f":"IF('Product registration form'!V145<>\"\",'Product registration form'!V145,\"\")","v":""},{"$f":"IF('Product registration form'!R145<>\"\",'Product registration form'!R145,\"\")","v":""}]
[{"$f":"IF('Product registration form'!V146<>\"\",'Product registration form'!V146,\"\")","v":""},{"$f":"IF('Product registration form'!R146<>\"\",'Product registration form'!R146,\"\")","v":""}]
[{"$f":"IF('Product registration form'!V147<>\"\",'Product registration form'!V147,\"\")","v":""},{"$f":"IF('Product registration form'!R147<>\"\",'Product registration form'!R147,\"\")","v":""}]
[{"$f":"IF('Product registration form'!V148<>\"\",'Product registration form'!V148,\"\")","v":""},{"$f":"IF('Product registration form'!R148<>\"\",'Product registration form'!R148,\"\")","v":""}]
[{"$f":"IF('Product registration form'!V149<>\"\",'Product registration form'!V149,\"\")","v":""},{"$f":"IF('Product registration form'!R149<>\"\",'Product registration form'!R149,\"\")","v":""}]
[{"$f":"IF('Product registration form'!V150<>\"\",'Product registration form'!V150,\"\")","v":""},{"$f":"IF('Product registration form'!R150<>\"\",'Product registration form'!R150,\"\")","v":""}]
[{"$f":"IF('Product registration form'!V151<>\"\",'Product registration form'!V151,\"\")","v":""},{"$f":"IF('Product registration form'!R151<>\"\",'Product registration form'!R151,\"\")","v":""}]
[{"$f":"IF('Product registration form'!V152<>\"\",'Product registration form'!V152,\"\")","v":""},{"$f":"IF('Product registration form'!R152<>\"\",'Product registration form'!R152,\"\")","v":""}]
[{"$f":"IF('Product registration form'!V153<>\"\",'Product registration form'!V153,\"\")","v":""},{"$f":"IF('Product registration form'!R153<>\"\",'Product registration form'!R153,\"\")","v":""}]
[{"$f":"IF('Product registration form'!V154<>\"\",'Product registration form'!V154,\"\")","v":""},{"$f":"IF('Product registration form'!R154<>\"\",'Product registration form'!R154,\"\")","v":""}]
[{"$f":"IF('Product registration form'!V155<>\"\",'Product registration form'!V155,\"\")","v":""},{"$f":"IF('Product registration form'!R155<>\"\",'Product registration form'!R155,\"\")","v":""}]
[{"$f":"IF('Product registration form'!V156<>\"\",'Product registration form'!V156,\"\")","v":""},{"$f":"IF('Product registration form'!R156<>\"\",'Product registration form'!R156,\"\")","v":""}]
[{"$f":"IF('Product registration form'!V157<>\"\",'Product registration form'!V157,\"\")","v":""},{"$f":"IF('Product registration form'!R157<>\"\",'Product registration form'!R157,\"\")","v":""}]
[{"$f":"IF('Product registration form'!V158<>\"\",'Product registration form'!V158,\"\")","v":""},{"$f":"IF('Product registration form'!R158<>\"\",'Product registration form'!R158,\"\")","v":""}]
[{"$f":"IF('Product registration form'!V159<>\"\",'Product registration form'!V159,\"\")","v":""},{"$f":"IF('Product registration form'!R159<>\"\",'Product registration form'!R159,\"\")","v":""}]
[{"$f":"IF('Product registration form'!V160<>\"\",'Product registration form'!V160,\"\")","v":""},{"$f":"IF('Product registration form'!R160<>\"\",'Product registration form'!R160,\"\")","v":""}]
[{"$f":"IF('Product registration form'!V161<>\"\",'Product registration form'!V161,\"\")","v":""},{"$f":"IF('Product registration form'!R161<>\"\",'Product registration form'!R161,\"\")","v":""}]
[{"$f":"IF('Product registration form'!V162<>\"\",'Product registration form'!V162,\"\")","v":""},{"$f":"IF('Product registration form'!R162<>\"\",'Product registration form'!R162,\"\")","v":""}]
[{"$f":"IF('Product registration form'!V163<>\"\",'Product registration form'!V163,\"\")","v":""},{"$f":"IF('Product registration form'!R163<>\"\",'Product registration form'!R163,\"\")","v":""}]
[{"$f":"IF('Product registration form'!V164<>\"\",'Product registration form'!V164,\"\")","v":""},{"$f":"IF('Product registration form'!R164<>\"\",'Product registration form'!R164,\"\")","v":""}]
[{"$f":"IF('Product registration form'!V165<>\"\",'Product registration form'!V165,\"\")","v":""},{"$f":"IF('Product registration form'!R165<>\"\",'Product registration form'!R165,\"\")","v":""}]
[{"$f":"IF('Product registration form'!V166<>\"\",'Product registration form'!V166,\"\")","v":""},{"$f":"IF('Product registration form'!R166<>\"\",'Product registration form'!R166,\"\")","v":""}]
[{"$f":"IF('Product registration form'!V167<>\"\",'Product registration form'!V167,\"\")","v":""},{"$f":"IF('Product registration form'!R167<>\"\",'Product registration form'!R167,\"\")","v":""}]
[{"$f":"IF('Product registration form'!V168<>\"\",'Product registration form'!V168,\"\")","v":""},{"$f":"IF('Product registration form'!R168<>\"\",'Product registration form'!R168,\"\")","v":""}]
[{"$f":"IF('Product registration form'!V169<>\"\",'Product registration form'!V169,\"\")","v":""},{"$f":"IF('Product registration form'!R169<>\"\",'Product registration form'!R169,\"\")","v":""}]
[{"$f":"IF('Product registration form'!V170<>\"\",'Product registration form'!V170,\"\")","v":""},{"$f":"IF('Product registration form'!R170<>\"\",'Product registration form'!R170,\"\")","v":""}]
[{"$f":"IF('Product registration form'!V171<>\"\",'Product registration form'!V171,\"\")","v":""},{"$f":"IF('Product registration form'!R171<>\"\",'Product registration form'!R171,\"\")","v":""}]
[{"$f":"IF('Product registration form'!V172<>\"\",'Product registration form'!V172,\"\")","v":""},{"$f":"IF('Product registration form'!R172<>\"\",'Product registration form'!R172,\"\")","v":""}]
[{"$f":"IF('Product registration form'!V173<>\"\",'Product registration form'!V173,\"\")","v":""},{"$f":"IF('Product registration form'!R173<>\"\",'Product registration form'!R173,\"\")","v":""}]
[{"$f":"IF('Product registration form'!V174<>\"\",'Product registration form'!V174,\"\")","v":""},{"$f":"IF('Product registration form'!R174<>\"\",'Product registration form'!R174,\"\")","v":""}]
[{"$f":"IF('Product registration form'!V175<>\"\",'Product registration form'!V175,\"\")","v":""},{"$f":"IF('Product registration form'!R175<>\"\",'Product registration form'!R175,\"\")","v":""}]
[{"$f":"IF('Product registration form'!V176<>\"\",'Product registration form'!V176,\"\")","v":""},{"$f":"IF('Product registration form'!R176<>\"\",'Product registration form'!R176,\"\")","v":""}]
[{"$f":"IF('Product registration form'!V177<>\"\",'Product registration form'!V177,\"\")","v":""},{"$f":"IF('Product registration form'!R177<>\"\",'Product registration form'!R177,\"\")","v":""}]
[{"$f":"IF('Product registration form'!V178<>\"\",'Product registration form'!V178,\"\")","v":""},{"$f":"IF('Product registration form'!R178<>\"\",'Product registration form'!R178,\"\")","v":""}]
[{"$f":"IF('Product registration form'!V179<>\"\",'Product registration form'!V179,\"\")","v":""},{"$f":"IF('Product registration form'!R179<>\"\",'Product registration form'!R179,\"\")","v":""}]
[{"$f":"IF('Product registration form'!V180<>\"\",'Product registration form'!V180,\"\")","v":""},{"$f":"IF('Product registration form'!R180<>\"\",'Product registration form'!R180,\"\")","v":""}]
[{"$f":"IF('Product registration form'!V181<>\"\",'Product registration form'!V181,\"\")","v":""},{"$f":"IF('Product registration form'!R181<>\"\",'Product registration form'!R181,\"\")","v":""}]
[{"$f":"IF('Product registration form'!V182<>\"\",'Product registration form'!V182,\"\")","v":""},{"$f":"IF('Product registration form'!R182<>\"\",'Product registration form'!R182,\"\")","v":""}]
[{"$f":"IF('Product registration form'!V183<>\"\",'Product registration form'!V183,\"\")","v":""},{"$f":"IF('Product registration form'!R183<>\"\",'Product registration form'!R183,\"\")","v":""}]
[{"$f":"IF('Product registration form'!V184<>\"\",'Product registration form'!V184,\"\")","v":""},{"$f":"IF('Product registration form'!R184<>\"\",'Product registration form'!R184,\"\")","v":""}]
[{"$f":"IF('Product registration form'!V185<>\"\",'Product registration form'!V185,\"\")","v":""},{"$f":"IF('Product registration form'!R185<>\"\",'Product registration form'!R185,\"\")","v":""}]
[{"$f":"IF('Product registration form'!V186<>\"\",'Product registration form'!V186,\"\")","v":""},{"$f":"IF('Product registration form'!R186<>\"\",'Product registration form'!R186,\"\")","v":""}]
[{"$f":"IF('Product registration form'!V187<>\"\",'Product registration form'!V187,\"\")","v":""},{"$f":"IF('Product registration form'!R187<>\"\",'Product registration form'!R187,\"\")","v":""}]
[{"$f":"IF('Product registration form'!V188<>\"\",'Product registration form'!V188,\"\")","v":""},{"$f":"IF('Product registration form'!R188<>\"\",'Product registration form'!R188,\"\")","v":""}]
[{"$f":"IF('Product registration form'!V189<>\"\",'Product registration form'!V189,\"\")","v":""},{"$f":"IF('Product registration form'!R189<>\"\",'Product registration form'!R189,\"\")","v":""}]
[{"$f":"IF('Product registration form'!V190<>\"\",'Product registration form'!V190,\"\")","v":""},{"$f":"IF('Product registration form'!R190<>\"\",'Product registration form'!R190,\"\")","v":""}]
[{"$f":"IF('Product registration form'!V191<>\"\",'Product registration form'!V191,\"\")","v":""},{"$f":"IF('Product registration form'!R191<>\"\",'Product registration form'!R191,\"\")","v":""}]
[{"$f":"IF('Product registration form'!V192<>\"\",'Product registration form'!V192,\"\")","v":""},{"$f":"IF('Product registration form'!R192<>\"\",'Product registration form'!R192,\"\")","v":""}]
[{"$f":"IF('Product registration form'!V193<>\"\",'Product registration form'!V193,\"\")","v":""},{"$f":"IF('Product registration form'!R193<>\"\",'Product registration form'!R193,\"\")","v":""}]
[{"$f":"IF('Product registration form'!V194<>\"\",'Product registration form'!V194,\"\")","v":""},{"$f":"IF('Product registration form'!R194<>\"\",'Product registration form'!R194,\"\")","v":""}]
[{"$f":"IF('Product registration form'!V195<>\"\",'Product registration form'!V195,\"\")","v":""},{"$f":"IF('Product registration form'!R195<>\"\",'Product registration form'!R195,\"\")","v":""}]
[{"$f":"IF('Product registration form'!V196<>\"\",'Product registration form'!V196,\"\")","v":""},{"$f":"IF('Product registration form'!R196<>\"\",'Product registration form'!R196,\"\")","v":""}]
[{"$f":"IF('Product registration form'!V197<>\"\",'Product registration form'!V197,\"\")","v":""},{"$f":"IF('Product registration form'!R197<>\"\",'Product registration form'!R197,\"\")","v":""}]
[{"$f":"IF('Product registration form'!V198<>\"\",'Product registration form'!V198,\"\")","v":""},{"$f":"IF('Product registration form'!R198<>\"\",'Product registration form'!R198,\"\")","v":""}]
[{"$f":"IF('Product registration form'!V199<>\"\",'Product registration form'!V199,\"\")","v":""},{"$f":"IF('Product registration form'!R199<>\"\",'Product registration form'!R199,\"\")","v":""}]
[{"$f":"IF('Product registration form'!V200<>\"\",'Product registration form'!V200,\"\")","v":""},{"$f":"IF('Product registration form'!R200<>\"\",'Product registration form'!R200,\"\")","v":""}]

{"sheet":"Display","index":6,"n_rows":4,"n_cols":6,"rows_kept":4,"cut":false,"hidden":false,"merged":[[2,0,2,4]]}
[]
[null,"To be filled by vendor",null,null,null,"To be filled by buying dep."]
["If the display consists of new articles, a separate product registration form must be filled in for each new article. Note this in the comment field, for both the display and the new articles."]
["English Description Display","GTIN","Article GTIN","Quantity of sales units","DS article number"]

{"sheet":"Set of goods","index":7,"n_rows":5,"n_cols":9,"rows_kept":5,"cut":false,"hidden":false,"merged":[[2,0,2,4]]}
[]
[null,"To be filled by vendor",null,null,null,"To be filled by buying dep."]
["If the set of goods consists of new articles, a separate product registration form must be filled in for each new article. Note this in the comment field, for all new articles."]
["English Description Display","GTIN","Article GTIN","Quantity","DS article number"]
[null,null,null,null,null,null,null,null," "]

{"sheet":"Additional GTINS","index":8,"n_rows":4,"n_cols":2,"rows_kept":4,"cut":false,"hidden":false,"merged":[]}
[]
[null,"To be filled by vendor"]
[]
["English Description","GTIN"]

{"sheet":"Sub-components","index":9,"n_rows":4,"n_cols":9,"rows_kept":4,"cut":false,"hidden":false,"merged":[]}
[]
[]
[]
["English Description","Description","GTIN","Internal GTIN","Quantity","Length MM","Width MM","Height MM","Gross Weight KG"]

{"sheet":"Measurements","index":10,"n_rows":25,"n_cols":8,"rows_kept":25,"cut":false,"hidden":false,"merged":[[24,0,24,11]]}
[]
["Dimensions of a sales unit",null,null,null,null,null,null,"Dimensions of a distribution/inventory unit"]
[]
[]
[]
[]
[]
[]
[]
[]
[]
[]
[]
[]
[]
[]
[]
[]
[]
[]
[]
[]
[]
[]
["Definition of sales units, cartons and outer cartons"]

{"sheet":"Lists","index":11,"n_rows":244,"n_cols":66,"rows_kept":244,"cut":false,"hidden":true,"merged":[]}
["RP Type DC","RP Type Store","Article Type","Flow Type","Purchasing organization","Sales Rules","Yes/No","Afdeling","Article category","Supply Source F&G","Article category F&G","Article Hierachy F&G","StockPlanner","StorrageLocation","Assortment list type","Naming","Price Unit","BUoM","GBB","CSR Brand","Envir. Label","Health claims","Organic","ISFP Type","Purch grp","Supply source",null,"Merch cat","Pallet Type",null,"Multi buy key",null,"No repeat key",null,"Voucher",null,"Unit of measure",null,"Traceability",null,"RB LM",null,"Batteri","Tax","Source List",null,"Trade Exact","Catch Weight","Temperature","Currency","Deposit","Sales org","Content Unit","Deposit Type","Deposit Description","Shipping Instruction","Country of Origin",null,"Distribution Channel","Cross Docking","Product Cost Group","WEEE","Bettery","Order Unit","OTC Sales Rule","Costing Variant"]
["Z0: No Planning","PD: RP","ZADM - DS Administration","RA: Assortment articles","DS01","0 No Sales Rule","Yes","320","00 Single article","Direct vendor to store","Single article","R61255 APPLES","010 - Butcher","0001 - Store",1,"SIK (Safety)","EA","EA","Good","Anb. af dyrs besk (DK)","Allergy certified","D-Vitamins","Organic cotton","Production (ZPRD)","101 Petfood","1: Direct delivery",null,"10001 CHEESE","1,5/1",null,"0 Not allowed",null,"No repeat key allowed",null,"Blackhawk",null,"EA",null,"0 No",null,"RB",null,"Knapcelle (Zink/Kviksølv Oxid/ Sølv Oxid): Kode 21.1","0 No tax",9001,null,"1. No Data",null,"-18 C","DKK","A","0100-01","CL - Centiliter","A","COOP CRATE 30 PCS","V1 Dry","Afghanistan-AF",null,9001,9002,"1 (F) RUGBRØD - KOLDHÆVET PROD","(1.1) Temperature exchange equipment","YES","EA","0 No Rule","BAKERY"]
["Z1: DSTime-phased w.auto.rord.pnt","Z0: No Planning","ZCAT - DS Category Articles","SA: Articles sold in a seasonal period","NE02","1 Above 18 years","No","330","01 Generic article","DC to store","Logistical Normal display","R61256 PEARS","020 - Deli","0010 - Butcher",6,"SLA (Slagter)","KG","EA1","Better","ASC","Astma og allergi Danmark","Diabetes","Natrue","Easy handling","102 Coffee/Tea","2: Delivery via DC",null,"10002 COLD MEAT","1/1",null,"1 Optional use",null,"Repeat key must be used",null,"Goyada",null,"EA1",null,"1 Beef",null,"LM",null,"Blysyre: Kode 21.2","1 Full tax",9002,null,"2. Dummy approved","X","-17 C","EUR","B","0200-01","CM - Centimeter","B","CRATE (POSCH) 30 PCS","V2 Cold","Albania-AL",null,9002,9102,"2 (B) RUGBRØD - KOLDHÆVET PROD","(2.1) Laptops","NO","KG","1 Aciclovir"]
["Z2: DS Static w. Man Reord Pt","Z1: DSTime-phased w.auto.rord.pnt","ZCS - Commercial set","OT: One timer campaign article","NE04","2 Above 16 years",null,"370","10 Sales set",null,"Logistical Apple display","R61274 CAPSICUMS","030 - Bakery","0020 - Deli",null,"TEX (Tøj og sko)",null,"KG","Best","BCI","BDIH (DE)","Free of sugar (totally free)","Organic","Pre-packed (ZTG)","103 Groceries",null,null,"10003 DAIRIES","1/2",null,null,null,null,null,"Goyada - ny",null,"KG",null,"2 Veal",null,null,null,"Nikkel Cadmium: Kode 21.3","2 Half tax",9010,null,"3. Approved",null,"-16 C","GBP","C","0200-02","DL - Deciliter","C","CRATE 10 PCS","V3 Frozen","Algeria-DZ",null,9011,null,"3 (B) RUGBRØD - RUGBRØDSCHIPS","(2.2) Other equipment containing screens having a surface > 100 cm2",null,"CA","2 Ibuprofen"]
["Z3: DS Static w. auto Reord Pt","Z2: DS Static w. Man Reord Pt","ZDRP - Mix Display for ZFUL","MT: Multi timer campaign article","NE05","3 Above 15 years",null,"390","12 Display",null,null,"R61275 CUCUMBERS","040 - Bistro","0030 - Bakery",null,"REN (Rengøring)",null,"M",null,"Fair flowers fair plants","Biodegradeable","Fuldkornsmærket",null,"Raw material (ZRAW)","104 Confectionary",null,null,"10004 EGGS","1/4",null,null,null,null,null,"Lotto",null,"L",null,"3 Pork",null,null,null,"Andre: Kode 21.4","3 Low tax",9011,null,null,null,"-15 C","HKD",null,"0200-10","EA - Each","A-IMPORT","CRATE 12 PCS",null,"Amer.Virgin Is.-VI",null,9012,null,"4 (F) HVEDEBRØD - DIR. DEJFØRING","(3.1) Lamps",null,"1/4","3 Acetylsalicylsyre"]
["Z8: DS Manual Replenishment","Z3: DS Static w. auto Reord Pt","ZDS1 - DS Disp Art (Trading Gds)","AD: Administration articles, packing material (articles not sold)","NE07","4 Remember receipt w/clear codes",null,null,null,null,null,"R61276 EGGPLANTS/COURGETTES/PUMPKINS",null,"0040 - Bistro",null,"BAG (Bager)",null,null,null,"Fairtrade","CO2 Neutral","Gluten free",null,null,"105 Dry Food",null,null,"10005 FATS",null,null,null,null,null,null,null,null,"PCS",null,"4 Lamb",null,null,null,null,null,9012,null,null,null,"-14 C","PLN",null,"0400-01","G - Gram","B-IMPORT","CRATE 15 PCS",null,"Andorra-AD",null,9017,null,"5 (B) HVEDEBRØD - DIR. DEJFØRING","(4.1) Large equipment - white goods (container fraction)",null,"1/2","4 Paracetamol"]
["Z9: Mix Article Planning","Z8: DS Manual Replenishment","ZDS2 - DS Disp Art (Perishables)",null,"SA01","5 Above 12 years",null,null,null,null,null,"R61278 LETTUCE",null,null,null,"DEL (Deli)",null,null,null,"FSC","Cosmebio","Lactose free",null,null,"106 Frozen",null,null,"10006 FISH",null,null,null,null,null,null,null,null,null,null,"5 Poultry",null,null,null,null,null,9016,null,null,null,"-13 C","SEK",null,"0410-01","KG - KiloG","C-IMPORT","CRATE 20 PCS 50 CL",null,"Angola-AO",null,9018,null,"6 (F) HVEDEBRØD - KOLDHÆVET PROD","(4.2) Large equipment - Other large equipment  (container fraction)",null,"1/1","5 Cyclizin"]
["ZM: MRP for F&V and KRO articles","Z9: Mix Article Planning","ZDS3 - DS Disp Art (11 Dgt Trdg)",null,null,"6 Articles must be sold in parts",null,null,null,null,null,"R61279 MUSHROOMS",null,null,null,"F&G (Frugt & Grønt)",null,null,null,"Good weave","Dansk IP kvalitet (DK)","Light food",null,null,"107 Preserved/p+r Sauc",null,null,"10007 FROZEN",null,null,null,null,null,null,null,null,null,null,"6 Mutton",null,null,null,null,null,9017,null,null,null,"-12 C","USD",null,"0500-01","L - Liter","A-VIN IMPORT","CRATE 24 PCS 33 CL",null,"Anguilla-AI",null,9023,null,"7 (B) HVEDEBRØD - KOLDHÆVET PROD","(4.3) Large equipment - Other equipment with an external dimension > 50 cm.  (cafe fraction)",null,null,"6 Acetylcystein"]
["ZZ: No Planning; Not F&R Relevant","ZZ: No Planning; Not F&R Relevant","ZDS4 - DS Disp Art (11 Dgt Prsh)",null,null,"7 Check age limit on the product",null,null,null,null,null,"R61281 TOMATOES",null,null,null,"QFB (Quickfood/ Bistro)",null,null,null,"Hearts-  1 (pork only)","Ecolabel","No added sugar",null,null,"108 Fruit/Vegetables",null,null,"10010 POULTRY",null,null,null,null,null,null,null,null,null,null,"7 Goat",null,null,null,null,null,9018,null,null,null,"-11 C",null,null,"0700-01","LMX - Liter Mix","LIQUOR","CRATE 24 PCS 50 CL",null,"Antarctica-AQ",null,9026,null,"8 (F) HVEDEBRØD - PRINCIP PROD","(5.1) Small equipment (< 50 cm)",null,null,"7 Glucosamin"]
[null,null,"ZDS5 - DS Mix Disp Art (Textile)",null,null,"8 Leader Key",null,null,null,null,null,"R61282 SPROUTS",null,null,null,"FRA (Carls Jr & SBux)",null,null,null,"Hearts - 2 (pork only)","Indeklima","Nøglehullet (nordic)",null,null,"110 Beer/Water",null,null,"10011 PRE-PACKED MEAT",null,null,null,null,null,null,null,null,null,null,null,null,null,null,null,null,9023,null,null,null,"-10 C",null,null,"0800-01","M - Meter","KEG 25/30 L","CRATE 30 PCS 25 CL",null,"Antigua/Barbuda-AG",null,9031,null,"9 (B) HVEDEBRØD - PRINCIP PROD","(6.1) Small IT and telecommunications equipmnt (< 50 cm)",null,null,"8 Acricastin"]
[null,null,"ZDS6 - DS Disp Art (10 Dgt Trdg)",null,null,"9 Blocked for sale",null,null,null,null,null,"R61263 CABBAGE",null,null,null,"KOL (Kolonial)",null,null,null,"Hearts - 3 (pork only)","Oeko-tex","Proteins added",null,null,"112 Wine",null,null,"10012 SALADS/FASTFOOD/SAUS",null,null,null,null,null,null,null,null,null,null,null,null,null,null,null,null,9026,null,null,null,"-9 C",null,null,"0900-01","ML - Milliliter","CARBON DIOXIDE 6/10 KG","CRATE 30 PCS 33CL (RUB 25+33CL)",null,"Argentina-AR",null,9032,null,"10 (F) HVEDEBRØD - FASTFOOD","(7.1) Photovoltaic panels ",null,null,"9 Strepsils"]
[null,null,"ZDS7 - Log.Display ZFUL (8 dgt)",null,null,null,null,null,null,null,null,"R61264 POTATOES",null,null,null,"HUS (Administration)",null,null,null,"MSC","Recycled","Vitamins added",null,null,"113 Spirits",null,null,"10029 FRESH BREAD",null,null,null,null,null,null,null,null,null,null,null,null,null,null,null,null,9029,null,null,null,"-8 C",null,null,"1000-04","MM - Millimeter",null,"TRAY BEER",null,"Armenia-AM",null,9037,null,"11 (B) HVEDEBRØD - FASTFOOD",null,null,null,"10 Azelastin"]
[null,null,"ZDS8 - Log.Display ZFUL (11 dgt)",null,null,null,null,null,null,null,null,"R61265 CARROTS",null,null,null,"FÆL (Fælles produktion)",null,null,null,"PEFC","RSPO",null,null,null,"114 Juice",null,null,"10030 ALCOHOLIC BEVERAGE",null,null,null,null,null,null,null,null,null,null,null,null,null,null,null,null,9031,null,null,null,"-7 C",null,null,"1014-01","PTI - Pint UK Liquid",null,"TRAY SOFTDRINK 1,5 L&1,25 L(RUB 2L)",null,"Aruba-AW",null,9038,null,"12 (F) STK & BOLLER - SPECIAL HÅN",null,null,null,"11 Benzydamin"]
[null,null,"ZEMP - DS Empties",null,null,null,null,null,null,null,null,"R61266 ONIONS",null,null,null,null,null,null,null,"Rainforest Aliance","RTRS",null,null,null,"115 Dairy/Eggs/Fats",null,null,"10031 NON-ALCO. BEVERAGE",null,null,null,null,null,null,null,null,null,null,null,null,null,null,null,null,9032,null,null,null,"-6 C",null,null,"1600-01","WSH - Wash",null,"TRAY SOFTDRINK 2 L",null,"Australia-AU",null,null,null,"13 (B) STK & BOLLER - SPECIAL HÅN",null,null,null,"12 Bromhexin"]
[null,null,"ZFPA - DS Franchise Prod Article",null,null,null,null,null,null,null,null,"R61267 ROOT VEGETABLES",null,null,null,null,null,null,null,"UTZ","Svane (Nordic)",null,null,null,"116 Cheese",null,null,"10032 BREAD & COOKIES",null,null,null,null,null,null,null,null,null,null,null,null,null,null,null,null,9040,null,null,null,"-5 C",null,null,null,null,null,"BOTTOM TRAY FOR BEER",null,"Austria-AT",null,null,null,"14 (F) STK & BOLLER - DIR. DEJF.",null,null,null,"13 Cetirizin"]
[null,null,"ZFRA - DS Franchise RAW Article",null,null,null,null,null,null,null,null,"R61257 CLEMENTINES",null,null,null,null,null,null,null,"WWF","Vegan",null,null,null,"117 Health",null,null,"10033 COFFE & TEA",null,null,null,null,null,null,null,null,null,null,null,null,null,null,null,null,"9039/E-com",null,null,null,"-4 C",null,null,null,null,null,null,null,"Azerbaijan-AZ",null,null,null,"15 (B) STK & BOLLER - DIR. DEJF.",null,null,null,"14 Chlorhexidindin, Benzokain"]
[null,null,"ZFRE - DS Free Goods",null,null,null,null,null,null,null,null,"R61258 GRAPEFRUIT/POMELO/OTHERS",null,null,null,null,null,null,null,null,"Grüne punkt (DE)",null,null,null,"118 Bread/Cookies",null,null,"10034 CONFECTIONARY",null,null,null,null,null,null,null,null,null,null,null,null,null,null,null,null,9040,null,null,null,"-3 C",null,null,null,null,null,null,null,"Bahamas-BS",null,null,null,"16 (F) STK & BOLLER - KOLDH. PR.",null,null,null,"15 Diclofenac"]
[null,null,"ZFS - DS Food Servc Fin Product",null,null,null,null,null,null,null,null,"R61260 LEMONS/LIMES",null,null,null,null,null,null,null,null,"Vegetarian",null,null,null,"120 CHILLED CONVENIENC",null,null,"10035 DRY GROCERIES",null,null,null,null,null,null,null,null,null,null,null,null,null,null,null,null,9102,null,null,null,"-2 C",null,null,null,null,null,null,null,"Bahrain-BH",null,null,null,"17 (B) STK & BOLLER - KOLDH. PR.",null,null,null,"16 Magnesiumoxid"]
[null,null,"ZFUL - DS Full Products",null,null,null,null,null,null,null,null,"R61261 ORANGES",null,null,null,null,null,null,null,null,null,null,null,null,"121 SAUSAGES/BACON",null,null,"10036 FRUIT  &  VEGETABLES",null,null,null,null,null,null,null,null,null,null,null,null,null,null,null,null,null,null,null,null,"-1 C",null,null,null,null,null,null,null,"Bangladesh-BD",null,null,null,"18 (F) STK & BOLLER - PRINC.PR.BR",null,null,null,"17 Mælkesyreprod. Bakterier"]
[null,null,"ZPAC - DS Non val. Packing materials",null,null,null,null,null,null,null,null,"R61268 F&V READY TO EAT SOLUTIONS",null,null,null,null,null,null,null,null,null,null,null,null,"130 SLICED COLD MEAT/S",null,null,"10037 PETFOOD",null,null,null,null,null,null,null,null,null,null,null,null,null,null,null,null,null,null,null,null,"0 C",null,null,null,null,null,null,null,"Barbados-BB",null,null,null,"19 (B) STK & BOLLER - PRINC.PR.BR",null,null,null,"18 Natriumpicosulfat"]
[null,null,"ZPAL - DS Packing materials (valuated)",null,null,null,null,null,null,null,null,"R61269 SALADS FRESH CUTS",null,null,null,null,null,null,null,null,null,null,null,null,"140 Fish",null,null,"10038 PRESERVED FOOD",null,null,null,null,null,null,null,null,null,null,null,null,null,null,null,null,null,null,null,null,"1 C",null,null,null,null,null,null,null,"Belarus-BY",null,null,null,"20 (F) BAGUETTER - KOLDHÆVET PROD",null,null,null,"19 Nicotin"]
[null,null,"ZPBS - DS Pay by scan",null,null,null,null,null,null,null,null,"R61270 VEGETABLES FRESH CUTS",null,null,null,null,null,null,null,null,null,null,null,null,"150 Deli",null,null,"10039 WINE",null,null,null,null,null,null,null,null,null,null,null,null,null,null,null,null,null,null,null,null,"2 C",null,null,null,null,null,null,null,"Belgium-BE",null,null,null,"21 (B) BAGUETTER - KOLDHÆVET PROD",null,null,null,"20 Xylometazolin"]
[null,null,"ZPER - DS Perishables",null,null,null,null,null,null,null,null,"R61262 SLICED FRUITS",null,null,null,null,null,null,null,null,null,null,null,null,"210 Fresh meat",null,null,"10040 SPIRIT",null,null,null,null,null,null,null,null,null,null,null,null,null,null,null,null,null,null,null,null,"3 C",null,null,null,null,null,null,null,"Belize-BZ",null,null,null,"22 (F) WIENER&BLØDDEJ - EGEN PROD",null,null,null,"21 Loperamid"]
[null,null,"ZPRD - DS Central Kitch Fin Prod",null,null,null,null,null,null,null,null,"R61242 MANGO/PAPAYA",null,null,null,null,null,null,null,null,null,null,null,null,"220 Poultry",null,null,"10041 TOBACCO & CIGARETTES",null,null,null,null,null,null,null,null,null,null,null,null,null,null,null,null,null,null,null,null,"4 C",null,null,null,null,null,null,null,"Benin-BJ",null,null,null,"23 (B) WIENER&BLØDDEJ - EGEN PROD"]
[null,null,"ZRAW - DS Raw materials",null,null,null,null,null,null,null,null,"R61243 OTHER EXOTIC FRUITS",null,null,null,null,null,null,null,null,null,null,null,null,"230 Bakery",null,null,"10043 DIRECT DEL. BREAD",null,null,null,null,null,null,null,null,null,null,null,null,null,null,null,null,null,null,null,null,"5 C",null,null,null,null,null,null,null,"Bermuda-BM",null,null,null,"24 (F) WIENER&BLØDDEJ - HALVFABR."]
[null,null,"ZREF - DS Reference articles",null,null,null,null,null,null,null,null,"R61244 PINEAPPLES",null,null,null,null,null,null,null,null,null,null,null,null,"240 Quick Food/Bistro",null,null,"10060 BAKERY",null,null,null,null,null,null,null,null,null,null,null,null,null,null,null,null,null,null,null,null,"6 C",null,null,null,null,null,null,null,"Bhutan-BT",null,null,null,"25 (B) WIENER&BLØDDEJ - HALVFABR."]
[null,null,"ZSER - DS Service",null,null,null,null,null,null,null,null,"R61247 BANANAS",null,null,null,null,null,null,null,null,null,null,null,null,"250 Home Delivery",null,null,"10061 BISTRO",null,null,null,null,null,null,null,null,null,null,null,null,null,null,null,null,null,null,null,null,"7 C",null,null,null,null,null,null,null,"Blue-BL",null,null,null,"26 (F) SMÅ KAGER - EGEN PROD"]
[null,null,"ZTEX - DS Textile",null,null,null,null,null,null,null,null,"R61259 KIWI",null,null,null,null,null,null,null,null,null,null,null,null,"310 Occassion",null,null,"10062 DELI",null,null,null,null,null,null,null,null,null,null,null,null,null,null,null,null,null,null,null,null,"8 C",null,null,null,null,null,null,null,"Bolivia-BO",null,null,null,"27 (B) SMÅ KAGER - EGEN PROD"]
[null,null,"ZTG - DS Trading Goods",null,null,null,null,null,null,null,null,"R61271 AVOCADO",null,null,null,null,null,null,null,null,null,null,null,null,"320 Papers/Tobacco/Bet",null,null,"10063 BUTCHER",null,null,null,null,null,null,null,null,null,null,null,null,null,null,null,null,null,null,null,null,"9 C",null,null,null,null,null,null,null,"Bosnia-Herz.-BA",null,null,null,"28 (F) SMÅ KAGER - HALVFABRIKATA"]
[null,null,null,null,null,null,null,null,null,null,null,"R61272 OTHER EXOTIC VEGETABLES",null,null,null,null,null,null,null,null,null,null,null,null,"330 PERSONAL CARE",null,null,"10064 DO NOT USE !",null,null,null,null,null,null,null,null,null,null,null,null,null,null,null,null,null,null,null,null,"10 C",null,null,null,null,null,null,null,"Botswana-BW",null,null,null,"29 (B) SMÅ KAGER - HALVFABRIKATA"]
[null,null,null,null,null,null,null,null,null,null,null,"R61273 ASPARAGUES/BEANS",null,null,null,null,null,null,null,null,null,null,null,null,"331 HOUSEHOLD/BABY",null,null,"10065 DO NOT USE !",null,null,null,null,null,null,null,null,null,null,null,null,null,null,null,null,null,null,null,null,"11 C",null,null,null,null,null,null,null,"Bouvet Islands-BV",null,null,null,"30 (F) SMÅ KAGER - TØ OG SERVER"]
[null,null,null,null,null,null,null,null,null,null,null,"R61280 PEAS/SWEET CORN",null,null,null,null,null,null,null,null,null,null,null,null,"332 HYGIENE PRODUCTS",null,null,"10066 STARBUCKS",null,null,null,null,null,null,null,null,null,null,null,null,null,null,null,null,null,null,null,null,"12 C",null,null,null,null,null,null,null,"Brazil-BR",null,null,null,"31 (B) SMÅ KAGER - TØ OG SERVER"]
[null,null,null,null,null,null,null,null,null,null,null,"R61277 HERBS",null,null,null,null,null,null,null,null,null,null,null,null,"340 Cleaning/Detergent",null,null,"10067 CARL'S JR.",null,null,null,null,null,null,null,null,null,null,null,null,null,null,null,null,null,null,null,null,"13 C",null,null,null,null,null,null,null,"Brit.Ind.Oc.Ter-IO",null,null,null,"32 (F) SMÅ KAGER - PRINCIP PROD"]
[null,null,null,null,null,null,null,null,null,null,null,"R61245 DRIED FRUITS",null,null,null,null,null,null,null,null,null,null,null,null,"400 OTC",null,null,"10068 BAKERY PRODUCED",null,null,null,null,null,null,null,null,null,null,null,null,null,null,null,null,null,null,null,null,"14 C",null,null,null,null,null,null,null,"Brit.Virgin Is.-VG",null,null,null,"33 (B) SMÅ KAGER - PRINCIP PROD"]
[null,null,null,null,null,null,null,null,null,null,null,"R61246 NUTS",null,null,null,null,null,null,null,null,null,null,null,null,"410 NDK Home",null,null,"20001 CHEMIST",null,null,null,null,null,null,null,null,null,null,null,null,null,null,null,null,null,null,null,null,"15 C",null,null,null,null,null,null,null,"Brunei Daruss.-BN",null,null,null,"34 (F) FASTFOOD - EGEN PROD"]
[null,null,null,null,null,null,null,null,null,null,null,"R61248 BERRIES",null,null,null,null,null,null,null,null,null,null,null,null,"411 NDK Electronics",null,null,"20002 CLEANING",null,null,null,null,null,null,null,null,null,null,null,null,null,null,null,null,null,null,null,null,"16 C",null,null,null,null,null,null,null,"Bulgaria-BG",null,null,null,"35 (B) FASTFOOD - EGEN PROD"]
[null,null,null,null,null,null,null,null,null,null,null,"R61249 GRAPES",null,null,null,null,null,null,null,null,null,null,null,null,"412 NDK Outdoor&Sports",null,null,"20003 DETERGENTS",null,null,null,null,null,null,null,null,null,null,null,null,null,null,null,null,null,null,null,null,"17 C",null,null,null,null,null,null,null,"Burkina Faso-BF",null,null,null,"36 (F) FASTFOOD - HALVFABRIKATA"]
[null,null,null,null,null,null,null,null,null,null,null,"R61250 MELONS",null,null,null,null,null,null,null,null,null,null,null,null,"413 NDK Textiles",null,null,"20004 HOUSEHOLD DISPOSABLE",null,null,null,null,null,null,null,null,null,null,null,null,null,null,null,null,null,null,null,null,"18 C",null,null,null,null,null,null,null,"Burma-MM",null,null,null,"37 (F) SMÅ FLØDEKAGER - EGEN PROD"]
[null,null,null,null,null,null,null,null,null,null,null,"R61251 CHERRIES",null,null,null,null,null,null,null,null,null,null,null,null,"414 NDK Candles&Napkin",null,null,"20020 BATTERIES",null,null,null,null,null,null,null,null,null,null,null,null,null,null,null,null,null,null,null,null,"19 C",null,null,null,null,null,null,null,"Burundi-BI",null,null,null,"38 (B) SMÅ FLØDEKAGER - EGEN PROD"]
[null,null,null,null,null,null,null,null,null,null,null,"R61252 NECTARINES/PEACHES",null,null,null,null,null,null,null,null,null,null,null,null,"450 (S) Menswear",null,null,"20021 COMMUNICATION",null,null,null,null,null,null,null,null,null,null,null,null,null,null,null,null,null,null,null,null,"20 C",null,null,null,null,null,null,null,"Cambodia-KH",null,null,null,"39 (F) SMÅ FLØDEKAGER - HALVFABR."]
[null,null,null,null,null,null,null,null,null,null,null,"R61253 PLUMS/ABRICOTS",null,null,null,null,null,null,null,null,null,null,null,null,"451 (S) Ladieswear",null,null,"20022 COMPUTER",null,null,null,null,null,null,null,null,null,null,null,null,null,null,null,null,null,null,null,null,null,null,null,null,null,null,null,null,"Cameroon-CM",null,null,null,"40 (B) SMÅ FLØDEKAGER - HALVFABR."]
[null,null,null,null,null,null,null,null,null,null,null,null,null,null,null,null,null,null,null,null,null,null,null,null,"452 (S) Childrenswear",null,null,"20023 DIGITAL MEDIA",null,null,null,null,null,null,null,null,null,null,null,null,null,null,null,null,null,null,null,null,null,null,null,null,null,null,null,null,"Canada-CA",null,null,null,"41 (F) SPECIALKAGE"]
[null,null,null,null,null,null,null,null,null,null,null,null,null,null,null,null,null,null,null,null,null,null,null,null,"453 (S) Young Shop",null,null,"20024 ELECTRONIC GAMES",null,null,null,null,null,null,null,null,null,null,null,null,null,null,null,null,null,null,null,null,null,null,null,null,null,null,null,null,"Cape Verde-CV",null,null,null,"42 (F) STOR FLØDEKAGE - EGEN PROD"]
[null,null,null,null,null,null,null,null,null,null,null,null,null,null,null,null,null,null,null,null,null,null,null,null,"454 (S) Women Lingerie",null,null,"20025 PHOTO",null,null,null,null,null,null,null,null,null,null,null,null,null,null,null,null,null,null,null,null,null,null,null,null,null,null,null,null,"CAR-CF",null,null,null,"43 (B) STOR FLØDEKAGE - EGEN PROD"]
[null,null,null,null,null,null,null,null,null,null,null,null,null,null,null,null,null,null,null,null,null,null,null,null,"455 (S) Womens access.",null,null,"20026 PICTURE",null,null,null,null,null,null,null,null,null,null,null,null,null,null,null,null,null,null,null,null,null,null,null,null,null,null,null,null,"Cayman Islands-KY",null,null,null,"44 (F) STOR FLØDEKAGE - HALVFABR."]
[null,null,null,null,null,null,null,null,null,null,null,null,null,null,null,null,null,null,null,null,null,null,null,null,"456 (S) Sport/shoes",null,null,"20027 SMALL APPLIANCES",null,null,null,null,null,null,null,null,null,null,null,null,null,null,null,null,null,null,null,null,null,null,null,null,null,null,null,null,"Chad-TD",null,null,null,"45 (B) STOR FLØDEKAGE - HALVFABR."]
[null,null,null,null,null,null,null,null,null,null,null,null,null,null,null,null,null,null,null,null,null,null,null,null,"457 (S) Shoes",null,null,"20028 SOUND",null,null,null,null,null,null,null,null,null,null,null,null,null,null,null,null,null,null,null,null,null,null,null,null,null,null,null,null,"Chile-CL",null,null,null,"46 (F) STORE KAGER - NYTÅR"]
[null,null,null,null,null,null,null,null,null,null,null,null,null,null,null,null,null,null,null,null,null,null,null,null,"458 (S) Leathergoods",null,null,"20029 WATCHES",null,null,null,null,null,null,null,null,null,null,null,null,null,null,null,null,null,null,null,null,null,null,null,null,null,null,null,null,"China-CN",null,null,null,"47 (B) STORE KAGER - NYTÅR"]
[null,null,null,null,null,null,null,null,null,null,null,null,null,null,null,null,null,null,null,null,null,null,null,null,"459 (S) Jewellery",null,null,"20040 BEDS",null,null,null,null,null,null,null,null,null,null,null,null,null,null,null,null,null,null,null,null,null,null,null,null,null,null,null,null,"Christmas Islnd-CX",null,null,null,"48 (F) STORE KAGER - EGEN PROD"]
[null,null,null,null,null,null,null,null,null,null,null,null,null,null,null,null,null,null,null,null,null,null,null,null,"500 Paint",null,null,"20041 HEAVY FURNI & CARPE",null,null,null,null,null,null,null,null,null,null,null,null,null,null,null,null,null,null,null,null,null,null,null,null,null,null,null,null,"Coconut Islands-CC",null,null,null,"49 (B) STORE KAGER - EGEN PROD"]
[null,null,null,null,null,null,null,null,null,null,null,null,null,null,null,null,null,null,null,null,null,null,null,null,"510 Gardening Tools",null,null,"20042 LIGHT FURNITURE",null,null,null,null,null,null,null,null,null,null,null,null,null,null,null,null,null,null,null,null,null,null,null,null,null,null,null,null,"Colombia-CO",null,null,null,"50 (F) STORE KAGER - HALVFABR."]
[null,null,null,null,null,null,null,null,null,null,null,null,null,null,null,null,null,null,null,null,null,null,null,null,"520 Outdoor plants",null,null,"20043 LIGHTING",null,null,null,null,null,null,null,null,null,null,null,null,null,null,null,null,null,null,null,null,null,null,null,null,null,null,null,null,"Comoros-KM",null,null,null,"51 (B) STORE KAGER - HALVFABR."]
[null,null,null,null,null,null,null,null,null,null,null,null,null,null,null,null,null,null,null,null,null,null,null,null,"530 Indoor flowers",null,null,"20044 SUNSH., MIRROS & GAL",null,null,null,null,null,null,null,null,null,null,null,null,null,null,null,null,null,null,null,null,null,null,null,null,null,null,null,null,"Cook Islands-CK",null,null,null,"52 (F) KAGEMAND"]
[null,null,null,null,null,null,null,null,null,null,null,null,null,null,null,null,null,null,null,null,null,null,null,null,"540 Furniture/Carpets",null,null,"20045 LUGGAGE",null,null,null,null,null,null,null,null,null,null,null,null,null,null,null,null,null,null,null,null,null,null,null,null,null,null,null,null,"Costa Rica-CR",null,null,null,"53 (B) STORE KAGER - PRINCIP PROD"]
[null,null,null,null,null,null,null,null,null,null,null,null,null,null,null,null,null,null,null,null,null,null,null,null,"550 Home Textiles",null,null,"20060 GARDEN ACCESSORIES",null,null,null,null,null,null,null,null,null,null,null,null,null,null,null,null,null,null,null,null,null,null,null,null,null,null,null,null,"Cote d'Ivoire-CI",null,null,null,"999 NOT RELEVANT"]
[null,null,null,null,null,null,null,null,null,null,null,null,null,null,null,null,null,null,null,null,null,null,null,null,"560 Kitchen",null,null,"20061 GARDEN FURNITURE BBQ",null,null,null,null,null,null,null,null,null,null,null,null,null,null,null,null,null,null,null,null,null,null,null,null,null,null,null,null,"Croatia-HR"]
[null,null,null,null,null,null,null,null,null,null,null,null,null,null,null,null,null,null,null,null,null,null,null,null,"570 Lighting",null,null,"20062 GREENHOUSES & GARDEN",null,null,null,null,null,null,null,null,null,null,null,null,null,null,null,null,null,null,null,null,null,null,null,null,null,null,null,null,"Cuba-CU"]
[null,null,null,null,null,null,null,null,null,null,null,null,null,null,null,null,null,null,null,null,null,null,null,null,"580 Travel",null,null,"20063 OUTDOOR PLANTS",null,null,null,null,null,null,null,null,null,null,null,null,null,null,null,null,null,null,null,null,null,null,null,null,null,null,null,null,"Cyprus-CY"]
[null,null,null,null,null,null,null,null,null,null,null,null,null,null,null,null,null,null,null,null,null,null,null,null,"600 Camping/Outdoor",null,null,"20064 POTTERY FOR HOUSE",null,null,null,null,null,null,null,null,null,null,null,null,null,null,null,null,null,null,null,null,null,null,null,null,null,null,null,null,"Czech Republic-CZ"]
[null,null,null,null,null,null,null,null,null,null,null,null,null,null,null,null,null,null,null,null,null,null,null,null,"610 DIY/Bike/Fit/Auto",null,null,"20065 SEEDS, FLOWERBULBS,",null,null,null,null,null,null,null,null,null,null,null,null,null,null,null,null,null,null,null,null,null,null,null,null,null,null,null,null,"Dem. Rep. Congo-CD"]
[null,null,null,null,null,null,null,null,null,null,null,null,null,null,null,null,null,null,null,null,null,null,null,null,"620 Radio/TV",null,null,"20066 OUTDOOR/FISHING",null,null,null,null,null,null,null,null,null,null,null,null,null,null,null,null,null,null,null,null,null,null,null,null,null,null,null,null,"Denmark-DK"]
[null,null,null,null,null,null,null,null,null,null,null,null,null,null,null,null,null,null,null,null,null,null,null,null,"630 Digital Media",null,null,"20100 BATHROOM & SANITATIO",null,null,null,null,null,null,null,null,null,null,null,null,null,null,null,null,null,null,null,null,null,null,null,null,null,null,null,null,"Djibouti-DJ"]
[null,null,null,null,null,null,null,null,null,null,null,null,null,null,null,null,null,null,null,null,null,null,null,null,"640 Computer",null,null,"20101 BUILDING MATERIALS",null,null,null,null,null,null,null,null,null,null,null,null,null,null,null,null,null,null,null,null,null,null,null,null,null,null,null,null,"Dominica-DM"]
[null,null,null,null,null,null,null,null,null,null,null,null,null,null,null,null,null,null,null,null,null,null,null,null,"650 Photo/Comm.",null,null,"20102 HOME TEXTILES",null,null,null,null,null,null,null,null,null,null,null,null,null,null,null,null,null,null,null,null,null,null,null,null,null,null,null,null,"Dominican Rep.-DO"]
[null,null,null,null,null,null,null,null,null,null,null,null,null,null,null,null,null,null,null,null,null,null,null,null,"660 Watches",null,null,"20103 INDOOR PLANTS AND FL",null,null,null,null,null,null,null,null,null,null,null,null,null,null,null,null,null,null,null,null,null,null,null,null,null,null,null,null,"Dutch Antilles-AN"]
[null,null,null,null,null,null,null,null,null,null,null,null,null,null,null,null,null,null,null,null,null,null,null,null,"670 Outdoor/fishing",null,null,"20104 INTERIOR",null,null,null,null,null,null,null,null,null,null,null,null,null,null,null,null,null,null,null,null,null,null,null,null,null,null,null,null,"East Timor-TL"]
[null,null,null,null,null,null,null,null,null,null,null,null,null,null,null,null,null,null,null,null,null,null,null,null,"700 Toys",null,null,"20105 PAINT & WALL COATING",null,null,null,null,null,null,null,null,null,null,null,null,null,null,null,null,null,null,null,null,null,null,null,null,null,null,null,null,"Ecuador-EC"]
[null,null,null,null,null,null,null,null,null,null,null,null,null,null,null,null,null,null,null,null,null,null,null,null,"710 Stationery",null,null,"20106 TOOLS & ACCESSORIES",null,null,null,null,null,null,null,null,null,null,null,null,null,null,null,null,null,null,null,null,null,null,null,null,null,null,null,null,"Egypt-EG"]
[null,null,null,null,null,null,null,null,null,null,null,null,null,null,null,null,null,null,null,null,null,null,null,null,"720 Batteries",null,null,"20120 BOOKS",null,null,null,null,null,null,null,null,null,null,null,null,null,null,null,null,null,null,null,null,null,null,null,null,null,null,null,null,"El Salvador-SV"]
[null,null,null,null,null,null,null,null,null,null,null,null,null,null,null,null,null,null,null,null,null,null,null,null,"730 Books",null,null,"20121 CANDLES",null,null,null,null,null,null,null,null,null,null,null,null,null,null,null,null,null,null,null,null,null,null,null,null,null,null,null,null,"Equatorial Guin-GQ"]
[null,null,null,null,null,null,null,null,null,null,null,null,null,null,null,null,null,null,null,null,null,null,null,null,"740 Electronic Appl.",null,null,"20122 STAMPS, LOTTERY, TIC",null,null,null,null,null,null,null,null,null,null,null,null,null,null,null,null,null,null,null,null,null,null,null,null,null,null,null,null,"Eritrea-ER"]
[null,null,null,null,null,null,null,null,null,null,null,null,null,null,null,null,null,null,null,null,null,null,null,null,"750 Loyalty programs",null,null,"20123 FEASTS & OCCASIONS",null,null,null,null,null,null,null,null,null,null,null,null,null,null,null,null,null,null,null,null,null,null,null,null,null,null,null,null,"Estonia-EE"]
[null,null,null,null,null,null,null,null,null,null,null,null,null,null,null,null,null,null,null,null,null,null,null,null,"800 Menswear",null,null,"20124 GIFT ARTICLES",null,null,null,null,null,null,null,null,null,null,null,null,null,null,null,null,null,null,null,null,null,null,null,null,null,null,null,null,"Ethiopia-ET"]
[null,null,null,null,null,null,null,null,null,null,null,null,null,null,null,null,null,null,null,null,null,null,null,null,"810 Ladieswear",null,null,"20125 HEALTH",null,null,null,null,null,null,null,null,null,null,null,null,null,null,null,null,null,null,null,null,null,null,null,null,null,null,null,null,"European Union-EU"]
[null,null,null,null,null,null,null,null,null,null,null,null,null,null,null,null,null,null,null,null,null,null,null,null,"820 Childrenswear",null,null,"20126 HOBBY",null,null,null,null,null,null,null,null,null,null,null,null,null,null,null,null,null,null,null,null,null,null,null,null,null,null,null,null,"Falkland Islnds-FK"]
[null,null,null,null,null,null,null,null,null,null,null,null,null,null,null,null,null,null,null,null,null,null,null,null,"830 Underwear",null,null,"20127 HOUSEHOLD HARDWARE",null,null,null,null,null,null,null,null,null,null,null,null,null,null,null,null,null,null,null,null,null,null,null,null,null,null,null,null,"Faroe Islands-FO"]
[null,null,null,null,null,null,null,null,null,null,null,null,null,null,null,null,null,null,null,null,null,null,null,null,"840 Sportswear",null,null,"20128 NAPKINS",null,null,null,null,null,null,null,null,null,null,null,null,null,null,null,null,null,null,null,null,null,null,null,null,null,null,null,null,"Fiji-FJ"]
[null,null,null,null,null,null,null,null,null,null,null,null,null,null,null,null,null,null,null,null,null,null,null,null,"850 Shoes",null,null,"20129 OPTICS",null,null,null,null,null,null,null,null,null,null,null,null,null,null,null,null,null,null,null,null,null,null,null,null,null,null,null,null,"Finland-FI"]
[null,null,null,null,null,null,null,null,null,null,null,null,null,null,null,null,null,null,null,null,null,null,null,null,"860 Accessories",null,null,"20130 OTC",null,null,null,null,null,null,null,null,null,null,null,null,null,null,null,null,null,null,null,null,null,null,null,null,null,null,null,null,"France-FR"]
[null,null,null,null,null,null,null,null,null,null,null,null,null,null,null,null,null,null,null,null,null,null,null,null,"870 Starbucks",null,null,"20131 PAPERS/MAGAZINES",null,null,null,null,null,null,null,null,null,null,null,null,null,null,null,null,null,null,null,null,null,null,null,null,null,null,null,null,"Frenc.Polynesia-PF"]
[null,null,null,null,null,null,null,null,null,null,null,null,null,null,null,null,null,null,null,null,null,null,null,null,"880 Carl's Jr.",null,null,"20132 SEASON",null,null,null,null,null,null,null,null,null,null,null,null,null,null,null,null,null,null,null,null,null,null,null,null,null,null,null,null,"French Guayana-GF"]
[null,null,null,null,null,null,null,null,null,null,null,null,null,null,null,null,null,null,null,null,null,null,null,null,"900 Administrative",null,null,"20133 STATIONARY",null,null,null,null,null,null,null,null,null,null,null,null,null,null,null,null,null,null,null,null,null,null,null,null,null,null,null,null,"French S.Territ-TF"]
[null,null,null,null,null,null,null,null,null,null,null,null,null,null,null,null,null,null,null,null,null,null,null,null,"910 CSR",null,null,"20134 TOYS",null,null,null,null,null,null,null,null,null,null,null,null,null,null,null,null,null,null,null,null,null,null,null,null,null,null,null,null,"Gabon-GA"]
[null,null,null,null,null,null,null,null,null,null,null,null,null,null,null,null,null,null,null,null,null,null,null,null,null,null,null,"20135 DISPOSABLES",null,null,null,null,null,null,null,null,null,null,null,null,null,null,null,null,null,null,null,null,null,null,null,null,null,null,null,null,"Gambia-GM"]
[null,null,null,null,null,null,null,null,null,null,null,null,null,null,null,null,null,null,null,null,null,null,null,null,null,null,null,"20136 HOUSEHOLD ELECTRONIC",null,null,null,null,null,null,null,null,null,null,null,null,null,null,null,null,null,null,null,null,null,null,null,null,null,null,null,null,"Georgia-GE"]
[null,null,null,null,null,null,null,null,null,null,null,null,null,null,null,null,null,null,null,null,null,null,null,null,null,null,null,"20150 AUTO",null,null,null,null,null,null,null,null,null,null,null,null,null,null,null,null,null,null,null,null,null,null,null,null,null,null,null,null,"Germany-DE"]
[null,null,null,null,null,null,null,null,null,null,null,null,null,null,null,null,null,null,null,null,null,null,null,null,null,null,null,"20151 PRAMS AND STROLLERS",null,null,null,null,null,null,null,null,null,null,null,null,null,null,null,null,null,null,null,null,null,null,null,null,null,null,null,null,"Ghana-GH"]
[null,null,null,null,null,null,null,null,null,null,null,null,null,null,null,null,null,null,null,null,null,null,null,null,null,null,null,"20152 SECURITY",null,null,null,null,null,null,null,null,null,null,null,null,null,null,null,null,null,null,null,null,null,null,null,null,null,null,null,null,"Gibraltar-GI"]
[null,null,null,null,null,null,null,null,null,null,null,null,null,null,null,null,null,null,null,null,null,null,null,null,null,null,null,"20153 FIREWORKS",null,null,null,null,null,null,null,null,null,null,null,null,null,null,null,null,null,null,null,null,null,null,null,null,null,null,null,null,"Greece-GR"]
[null,null,null,null,null,null,null,null,null,null,null,null,null,null,null,null,null,null,null,null,null,null,null,null,null,null,null,"20170 DIAPERS",null,null,null,null,null,null,null,null,null,null,null,null,null,null,null,null,null,null,null,null,null,null,null,null,null,null,null,null,"Greenland-GL"]
[null,null,null,null,null,null,null,null,null,null,null,null,null,null,null,null,null,null,null,null,null,null,null,null,null,null,null,"20171 HAIR PRODUCTS",null,null,null,null,null,null,null,null,null,null,null,null,null,null,null,null,null,null,null,null,null,null,null,null,null,null,null,null,"Grenada-GD"]
[null,null,null,null,null,null,null,null,null,null,null,null,null,null,null,null,null,null,null,null,null,null,null,null,null,null,null,"20172 INTIME HYGIENE",null,null,null,null,null,null,null,null,null,null,null,null,null,null,null,null,null,null,null,null,null,null,null,null,null,null,null,null,"Guadeloupe-GP"]
[null,null,null,null,null,null,null,null,null,null,null,null,null,null,null,null,null,null,null,null,null,null,null,null,null,null,null,"20173 ORAL",null,null,null,null,null,null,null,null,null,null,null,null,null,null,null,null,null,null,null,null,null,null,null,null,null,null,null,null,"Guam-GU"]
[null,null,null,null,null,null,null,null,null,null,null,null,null,null,null,null,null,null,null,null,null,null,null,null,null,null,null,"20174 PERFUME AND DEODORAN",null,null,null,null,null,null,null,null,null,null,null,null,null,null,null,null,null,null,null,null,null,null,null,null,null,null,null,null,"Guatemala-GT"]
[null,null,null,null,null,null,null,null,null,null,null,null,null,null,null,null,null,null,null,null,null,null,null,null,null,null,null,"20175 SKIN AND COSMETICS P",null,null,null,null,null,null,null,null,null,null,null,null,null,null,null,null,null,null,null,null,null,null,null,null,null,null,null,null,"Guinea-Bissau-GW"]
[null,null,null,null,null,null,null,null,null,null,null,null,null,null,null,null,null,null,null,null,null,null,null,null,null,null,null,"20176 TOILET PAPER",null,null,null,null,null,null,null,null,null,null,null,null,null,null,null,null,null,null,null,null,null,null,null,null,null,null,null,null,"Guinea-GN"]
[null,null,null,null,null,null,null,null,null,null,null,null,null,null,null,null,null,null,null,null,null,null,null,null,null,null,null,"20177 COTTON & PAPER",null,null,null,null,null,null,null,null,null,null,null,null,null,null,null,null,null,null,null,null,null,null,null,null,null,null,null,null,"Guyana-GY"]
[null,null,null,null,null,null,null,null,null,null,null,null,null,null,null,null,null,null,null,null,null,null,null,null,null,null,null,"20178 ACCESSORIES PERFUME",null,null,null,null,null,null,null,null,null,null,null,null,null,null,null,null,null,null,null,null,null,null,null,null,null,null,null,null,"Haiti-HT"]
[null,null,null,null,null,null,null,null,null,null,null,null,null,null,null,null,null,null,null,null,null,null,null,null,null,null,null,"20200 BIKES",null,null,null,null,null,null,null,null,null,null,null,null,null,null,null,null,null,null,null,null,null,null,null,null,null,null,null,null,"Heard/McDon.Isl-HM"]
[null,null,null,null,null,null,null,null,null,null,null,null,null,null,null,null,null,null,null,null,null,null,null,null,null,null,null,"20201 SPORT EQUIPMENT",null,null,null,null,null,null,null,null,null,null,null,null,null,null,null,null,null,null,null,null,null,null,null,null,null,null,null,null,"Honduras-HN"]
[null,null,null,null,null,null,null,null,null,null,null,null,null,null,null,null,null,null,null,null,null,null,null,null,null,null,null,"20202 WELLNESS & EXERCISE",null,null,null,null,null,null,null,null,null,null,null,null,null,null,null,null,null,null,null,null,null,null,null,null,null,null,null,null,"Hong Kong-HK"]
[null,null,null,null,null,null,null,null,null,null,null,null,null,null,null,null,null,null,null,null,null,null,null,null,null,null,null,"20240 YOUNG FASHION",null,null,null,null,null,null,null,null,null,null,null,null,null,null,null,null,null,null,null,null,null,null,null,null,null,null,null,null,"Hungary-HU"]
[null,null,null,null,null,null,null,null,null,null,null,null,null,null,null,null,null,null,null,null,null,null,null,null,null,null,null,"20241 LEATHER GOODS",null,null,null,null,null,null,null,null,null,null,null,null,null,null,null,null,null,null,null,null,null,null,null,null,null,null,null,null,"Iceland-IS"]
[null,null,null,null,null,null,null,null,null,null,null,null,null,null,null,null,null,null,null,null,null,null,null,null,null,null,null,"20242 JEWELLERY",null,null,null,null,null,null,null,null,null,null,null,null,null,null,null,null,null,null,null,null,null,null,null,null,null,null,null,null,"India-IN"]
[null,null,null,null,null,null,null,null,null,null,null,null,null,null,null,null,null,null,null,null,null,null,null,null,null,null,null,"20250 MEN TEXTILE",null,null,null,null,null,null,null,null,null,null,null,null,null,null,null,null,null,null,null,null,null,null,null,null,null,null,null,null,"Indonesia-ID"]
[null,null,null,null,null,null,null,null,null,null,null,null,null,null,null,null,null,null,null,null,null,null,null,null,null,null,null,"20251 WOMEN TEXTILE",null,null,null,null,null,null,null,null,null,null,null,null,null,null,null,null,null,null,null,null,null,null,null,null,null,null,null,null,"Iran-IR"]
[null,null,null,null,null,null,null,null,null,null,null,null,null,null,null,null,null,null,null,null,null,null,null,null,null,null,null,"20252 CHILDREN TEXTILE",null,null,null,null,null,null,null,null,null,null,null,null,null,null,null,null,null,null,null,null,null,null,null,null,null,null,null,null,"Iraq-IQ"]
[null,null,null,null,null,null,null,null,null,null,null,null,null,null,null,null,null,null,null,null,null,null,null,null,null,null,null,"20253 NEW BORN TEXTILE",null,null,null,null,null,null,null,null,null,null,null,null,null,null,null,null,null,null,null,null,null,null,null,null,null,null,null,null,"Ireland-IE"]
[null,null,null,null,null,null,null,null,null,null,null,null,null,null,null,null,null,null,null,null,null,null,null,null,null,null,null,"20254 SPORT TEXTILE",null,null,null,null,null,null,null,null,null,null,null,null,null,null,null,null,null,null,null,null,null,null,null,null,null,null,null,null,"Israel-IL"]
[null,null,null,null,null,null,null,null,null,null,null,null,null,null,null,null,null,null,null,null,null,null,null,null,null,null,null,"20255 SHOES",null,null,null,null,null,null,null,null,null,null,null,null,null,null,null,null,null,null,null,null,null,null,null,null,null,null,null,null,"Italy-IT"]
[null,null,null,null,null,null,null,null,null,null,null,null,null,null,null,null,null,null,null,null,null,null,null,null,null,null,null,"20256 ACCESSORIES TEXTILE",null,null,null,null,null,null,null,null,null,null,null,null,null,null,null,null,null,null,null,null,null,null,null,null,null,null,null,null,"Jamaica-JM"]
[null,null,null,null,null,null,null,null,null,null,null,null,null,null,null,null,null,null,null,null,null,null,null,null,null,null,null,"20257 UNDERWEAR",null,null,null,null,null,null,null,null,null,null,null,null,null,null,null,null,null,null,null,null,null,null,null,null,null,null,null,null,"Japan-JP"]
[null,null,null,null,null,null,null,null,null,null,null,null,null,null,null,null,null,null,null,null,null,null,null,null,null,null,null,"20260 LOYALTY PROGRAMS",null,null,null,null,null,null,null,null,null,null,null,null,null,null,null,null,null,null,null,null,null,null,null,null,null,null,null,null,"Jersey-JE"]
[null,null,null,null,null,null,null,null,null,null,null,null,null,null,null,null,null,null,null,null,null,null,null,null,null,null,null,"20270 CSR",null,null,null,null,null,null,null,null,null,null,null,null,null,null,null,null,null,null,null,null,null,null,null,null,null,null,null,null,"Jordan-JO"]
[null,null,null,null,null,null,null,null,null,null,null,null,null,null,null,null,null,null,null,null,null,null,null,null,null,null,null,"30001 ADMINISTRATIVE",null,null,null,null,null,null,null,null,null,null,null,null,null,null,null,null,null,null,null,null,null,null,null,null,null,null,null,null,"Kazakhstan-KZ"]
[null,null,null,null,null,null,null,null,null,null,null,null,null,null,null,null,null,null,null,null,null,null,null,null,null,null,null,"30002 CANTEEN",null,null,null,null,null,null,null,null,null,null,null,null,null,null,null,null,null,null,null,null,null,null,null,null,null,null,null,null,"Kenya-KE"]
[null,null,null,null,null,null,null,null,null,null,null,null,null,null,null,null,null,null,null,null,null,null,null,null,null,null,null,"30003 DECORATION",null,null,null,null,null,null,null,null,null,null,null,null,null,null,null,null,null,null,null,null,null,null,null,null,null,null,null,null,"Kiribati-KI"]
[null,null,null,null,null,null,null,null,null,null,null,null,null,null,null,null,null,null,null,null,null,null,null,null,null,null,null,"30004 INVENTORY",null,null,null,null,null,null,null,null,null,null,null,null,null,null,null,null,null,null,null,null,null,null,null,null,null,null,null,null,"Kuwait-KW"]
[null,null,null,null,null,null,null,null,null,null,null,null,null,null,null,null,null,null,null,null,null,null,null,null,null,null,null,"30005 NETTO INVENTORY",null,null,null,null,null,null,null,null,null,null,null,null,null,null,null,null,null,null,null,null,null,null,null,null,null,null,null,null,"Kyrgyzstan-KG"]
[null,null,null,null,null,null,null,null,null,null,null,null,null,null,null,null,null,null,null,null,null,null,null,null,null,null,null,"30006 PALLETS & CONTAINERS",null,null,null,null,null,null,null,null,null,null,null,null,null,null,null,null,null,null,null,null,null,null,null,null,null,null,null,null,"Laos-LA"]
[null,null,null,null,null,null,null,null,null,null,null,null,null,null,null,null,null,null,null,null,null,null,null,null,null,null,null,"30007 SERVICES",null,null,null,null,null,null,null,null,null,null,null,null,null,null,null,null,null,null,null,null,null,null,null,null,null,null,null,null,"Latvia-LV"]
[null,null,null,null,null,null,null,null,null,null,null,null,null,null,null,null,null,null,null,null,null,null,null,null,null,null,null,"30020 EMPTIES",null,null,null,null,null,null,null,null,null,null,null,null,null,null,null,null,null,null,null,null,null,null,null,null,null,null,null,null,"Lebanon-LB"]
[null,null,null,null,null,null,null,null,null,null,null,null,null,null,null,null,null,null,null,null,null,null,null,null,null,null,null,"30100 GIFT VOUCHERS",null,null,null,null,null,null,null,null,null,null,null,null,null,null,null,null,null,null,null,null,null,null,null,null,null,null,null,null,"Lesotho-LS"]
[null,null,null,null,null,null,null,null,null,null,null,null,null,null,null,null,null,null,null,null,null,null,null,null,null,null,null,"30110 POS SALES GRP ART",null,null,null,null,null,null,null,null,null,null,null,null,null,null,null,null,null,null,null,null,null,null,null,null,null,null,null,null,"Liberia-LR"]
[null,null,null,null,null,null,null,null,null,null,null,null,null,null,null,null,null,null,null,null,null,null,null,null,null,null,null,"90000 ZDSV from Hybris",null,null,null,null,null,null,null,null,null,null,null,null,null,null,null,null,null,null,null,null,null,null,null,null,null,null,null,null,"Libya-LY"]
[null,null,null,null,null,null,null,null,null,null,null,null,null,null,null,null,null,null,null,null,null,null,null,null,null,null,null,null,null,null,null,null,null,null,null,null,null,null,null,null,null,null,null,null,null,null,null,null,null,null,null,null,null,null,null,null,"Liechtenstein-LI"]
[null,null,null,null,null,null,null,null,null,null,null,null,null,null,null,null,null,null,null,null,null,null,null,null,null,null,null,null,null,null,null,null,null,null,null,null,null,null,null,null,null,null,null,null,null,null,null,null,null,null,null,null,null,null,null,null,"Lithuania-LT"]
[null,null,null,null,null,null,null,null,null,null,null,null,null,null,null,null,null,null,null,null,null,null,null,null,null,null,null,null,null,null,null,null,null,null,null,null,null,null,null,null,null,null,null,null,null,null,null,null,null,null,null,null,null,null,null,null,"Luxembourg-LU"]
[null,null,null,null,null,null,null,null,null,null,null,null,null,null,null,null,null,null,null,null,null,null,null,null,null,null,null,null,null,null,null,null,null,null,null,null,null,null,null,null,null,null,null,null,null,null,null,null,null,null,null,null,null,null,null,null,"Macau-MO"]
[null,null,null,null,null,null,null,null,null,null,null,null,null,null,null,null,null,null,null,null,null,null,null,null,null,null,null,null,null,null,null,null,null,null,null,null,null,null,null,null,null,null,null,null,null,null,null,null,null,null,null,null,null,null,null,null,"Macedonia-MK"]
[null,null,null,null,null,null,null,null,null,null,null,null,null,null,null,null,null,null,null,null,null,null,null,null,null,null,null,null,null,null,null,null,null,null,null,null,null,null,null,null,null,null,null,null,null,null,null,null,null,null,null,null,null,null,null,null,"Madagascar-MG"]
[null,null,null,null,null,null,null,null,null,null,null,null,null,null,null,null,null,null,null,null,null,null,null,null,null,null,null,null,null,null,null,null,null,null,null,null,null,null,null,null,null,null,null,null,null,null,null,null,null,null,null,null,null,null,null,null,"Malawi-MW"]
[null,null,null,null,null,null,null,null,null,null,null,null,null,null,null,null,null,null,null,null,null,null,null,null,null,null,null,null,null,null,null,null,null,null,null,null,null,null,null,null,null,null,null,null,null,null,null,null,null,null,null,null,null,null,null,null,"Malaysia-MY"]
[null,null,null,null,null,null,null,null,null,null,null,null,null,null,null,null,null,null,null,null,null,null,null,null,null,null,null,null,null,null,null,null,null,null,null,null,null,null,null,null,null,null,null,null,null,null,null,null,null,null,null,null,null,null,null,null,"Maldives-MV"]
[null,null,null,null,null,null,null,null,null,null,null,null,null,null,null,null,null,null,null,null,null,null,null,null,null,null,null,null,null,null,null,null,null,null,null,null,null,null,null,null,null,null,null,null,null,null,null,null,null,null,null,null,null,null,null,null,"Mali-ML"]
[null,null,null,null,null,null,null,null,null,null,null,null,null,null,null,null,null,null,null,null,null,null,null,null,null,null,null,null,null,null,null,null,null,null,null,null,null,null,null,null,null,null,null,null,null,null,null,null,null,null,null,null,null,null,null,null,"Malta-MT"]
[null,null,null,null,null,null,null,null,null,null,null,null,null,null,null,null,null,null,null,null,null,null,null,null,null,null,null,null,null,null,null,null,null,null,null,null,null,null,null,null,null,null,null,null,null,null,null,null,null,null,null,null,null,null,null,null,"Marshall Islnds-MH"]
[null,null,null,null,null,null,null,null,null,null,null,null,null,null,null,null,null,null,null,null,null,null,null,null,null,null,null,null,null,null,null,null,null,null,null,null,null,null,null,null,null,null,null,null,null,null,null,null,null,null,null,null,null,null,null,null,"Martinique-MQ"]
[null,null,null,null,null,null,null,null,null,null,null,null,null,null,null,null,null,null,null,null,null,null,null,null,null,null,null,null,null,null,null,null,null,null,null,null,null,null,null,null,null,null,null,null,null,null,null,null,null,null,null,null,null,null,null,null,"Mauretania-MR"]
[null,null,null,null,null,null,null,null,null,null,null,null,null,null,null,null,null,null,null,null,null,null,null,null,null,null,null,null,null,null,null,null,null,null,null,null,null,null,null,null,null,null,null,null,null,null,null,null,null,null,null,null,null,null,null,null,"Mauritius-MU"]
[null,null,null,null,null,null,null,null,null,null,null,null,null,null,null,null,null,null,null,null,null,null,null,null,null,null,null,null,null,null,null,null,null,null,null,null,null,null,null,null,null,null,null,null,null,null,null,null,null,null,null,null,null,null,null,null,"Mayotte-YT"]
[null,null,null,null,null,null,null,null,null,null,null,null,null,null,null,null,null,null,null,null,null,null,null,null,null,null,null,null,null,null,null,null,null,null,null,null,null,null,null,null,null,null,null,null,null,null,null,null,null,null,null,null,null,null,null,null,"Mexico-MX"]
[null,null,null,null,null,null,null,null,null,null,null,null,null,null,null,null,null,null,null,null,null,null,null,null,null,null,null,null,null,null,null,null,null,null,null,null,null,null,null,null,null,null,null,null,null,null,null,null,null,null,null,null,null,null,null,null,"Micronesia-FM"]
[null,null,null,null,null,null,null,null,null,null,null,null,null,null,null,null,null,null,null,null,null,null,null,null,null,null,null,null,null,null,null,null,null,null,null,null,null,null,null,null,null,null,null,null,null,null,null,null,null,null,null,null,null,null,null,null,"Minor Outl.Isl.-UM"]
[null,null,null,null,null,null,null,null,null,null,null,null,null,null,null,null,null,null,null,null,null,null,null,null,null,null,null,null,null,null,null,null,null,null,null,null,null,null,null,null,null,null,null,null,null,null,null,null,null,null,null,null,null,null,null,null,"Moldova-MD"]
[null,null,null,null,null,null,null,null,null,null,null,null,null,null,null,null,null,null,null,null,null,null,null,null,null,null,null,null,null,null,null,null,null,null,null,null,null,null,null,null,null,null,null,null,null,null,null,null,null,null,null,null,null,null,null,null,"Monaco-MC"]
[null,null,null,null,null,null,null,null,null,null,null,null,null,null,null,null,null,null,null,null,null,null,null,null,null,null,null,null,null,null,null,null,null,null,null,null,null,null,null,null,null,null,null,null,null,null,null,null,null,null,null,null,null,null,null,null,"Mongolia-MN"]
[null,null,null,null,null,null,null,null,null,null,null,null,null,null,null,null,null,null,null,null,null,null,null,null,null,null,null,null,null,null,null,null,null,null,null,null,null,null,null,null,null,null,null,null,null,null,null,null,null,null,null,null,null,null,null,null,"Montenegro-ME"]
[null,null,null,null,null,null,null,null,null,null,null,null,null,null,null,null,null,null,null,null,null,null,null,null,null,null,null,null,null,null,null,null,null,null,null,null,null,null,null,null,null,null,null,null,null,null,null,null,null,null,null,null,null,null,null,null,"Montserrat-MS"]
[null,null,null,null,null,null,null,null,null,null,null,null,null,null,null,null,null,null,null,null,null,null,null,null,null,null,null,null,null,null,null,null,null,null,null,null,null,null,null,null,null,null,null,null,null,null,null,null,null,null,null,null,null,null,null,null,"Morocco-MA"]
[null,null,null,null,null,null,null,null,null,null,null,null,null,null,null,null,null,null,null,null,null,null,null,null,null,null,null,null,null,null,null,null,null,null,null,null,null,null,null,null,null,null,null,null,null,null,null,null,null,null,null,null,null,null,null,null,"Mozambique-MZ"]
[null,null,null,null,null,null,null,null,null,null,null,null,null,null,null,null,null,null,null,null,null,null,null,null,null,null,null,null,null,null,null,null,null,null,null,null,null,null,null,null,null,null,null,null,null,null,null,null,null,null,null,null,null,null,null,null,"N.Mariana Islnd-MP"]
[null,null,null,null,null,null,null,null,null,null,null,null,null,null,null,null,null,null,null,null,null,null,null,null,null,null,null,null,null,null,null,null,null,null,null,null,null,null,null,null,null,null,null,null,null,null,null,null,null,null,null,null,null,null,null,null,"Namibia-NA"]
[null,null,null,null,null,null,null,null,null,null,null,null,null,null,null,null,null,null,null,null,null,null,null,null,null,null,null,null,null,null,null,null,null,null,null,null,null,null,null,null,null,null,null,null,null,null,null,null,null,null,null,null,null,null,null,null,"Nauru-NR"]
[null,null,null,null,null,null,null,null,null,null,null,null,null,null,null,null,null,null,null,null,null,null,null,null,null,null,null,null,null,null,null,null,null,null,null,null,null,null,null,null,null,null,null,null,null,null,null,null,null,null,null,null,null,null,null,null,"Nepal-NP"]
[null,null,null,null,null,null,null,null,null,null,null,null,null,null,null,null,null,null,null,null,null,null,null,null,null,null,null,null,null,null,null,null,null,null,null,null,null,null,null,null,null,null,null,null,null,null,null,null,null,null,null,null,null,null,null,null,"Netherlands-NL"]
[null,null,null,null,null,null,null,null,null,null,null,null,null,null,null,null,null,null,null,null,null,null,null,null,null,null,null,null,null,null,null,null,null,null,null,null,null,null,null,null,null,null,null,null,null,null,null,null,null,null,null,null,null,null,null,null,"New Caledonia-NC"]
[null,null,null,null,null,null,null,null,null,null,null,null,null,null,null,null,null,null,null,null,null,null,null,null,null,null,null,null,null,null,null,null,null,null,null,null,null,null,null,null,null,null,null,null,null,null,null,null,null,null,null,null,null,null,null,null,"New Zealand-NZ"]
[null,null,null,null,null,null,null,null,null,null,null,null,null,null,null,null,null,null,null,null,null,null,null,null,null,null,null,null,null,null,null,null,null,null,null,null,null,null,null,null,null,null,null,null,null,null,null,null,null,null,null,null,null,null,null,null,"Nicaragua-NI"]
[null,null,null,null,null,null,null,null,null,null,null,null,null,null,null,null,null,null,null,null,null,null,null,null,null,null,null,null,null,null,null,null,null,null,null,null,null,null,null,null,null,null,null,null,null,null,null,null,null,null,null,null,null,null,null,null,"Nigeria-NG"]
[null,null,null,null,null,null,null,null,null,null,null,null,null,null,null,null,null,null,null,null,null,null,null,null,null,null,null,null,null,null,null,null,null,null,null,null,null,null,null,null,null,null,null,null,null,null,null,null,null,null,null,null,null,null,null,null,"Niger-NE"]
[null,null,null,null,null,null,null,null,null,null,null,null,null,null,null,null,null,null,null,null,null,null,null,null,null,null,null,null,null,null,null,null,null,null,null,null,null,null,null,null,null,null,null,null,null,null,null,null,null,null,null,null,null,null,null,null,"Niue-NU"]
[null,null,null,null,null,null,null,null,null,null,null,null,null,null,null,null,null,null,null,null,null,null,null,null,null,null,null,null,null,null,null,null,null,null,null,null,null,null,null,null,null,null,null,null,null,null,null,null,null,null,null,null,null,null,null,null,"Norfolk Islands-NF"]
[null,null,null,null,null,null,null,null,null,null,null,null,null,null,null,null,null,null,null,null,null,null,null,null,null,null,null,null,null,null,null,null,null,null,null,null,null,null,null,null,null,null,null,null,null,null,null,null,null,null,null,null,null,null,null,null,"North Korea-KP"]
[null,null,null,null,null,null,null,null,null,null,null,null,null,null,null,null,null,null,null,null,null,null,null,null,null,null,null,null,null,null,null,null,null,null,null,null,null,null,null,null,null,null,null,null,null,null,null,null,null,null,null,null,null,null,null,null,"Norway-NO"]
[null,null,null,null,null,null,null,null,null,null,null,null,null,null,null,null,null,null,null,null,null,null,null,null,null,null,null,null,null,null,null,null,null,null,null,null,null,null,null,null,null,null,null,null,null,null,null,null,null,null,null,null,null,null,null,null,"Oman-OM"]
[null,null,null,null,null,null,null,null,null,null,null,null,null,null,null,null,null,null,null,null,null,null,null,null,null,null,null,null,null,null,null,null,null,null,null,null,null,null,null,null,null,null,null,null,null,null,null,null,null,null,null,null,null,null,null,null,"Pakistan-PK"]
[null,null,null,null,null,null,null,null,null,null,null,null,null,null,null,null,null,null,null,null,null,null,null,null,null,null,null,null,null,null,null,null,null,null,null,null,null,null,null,null,null,null,null,null,null,null,null,null,null,null,null,null,null,null,null,null,"Palau-PW"]
[null,null,null,null,null,null,null,null,null,null,null,null,null,null,null,null,null,null,null,null,null,null,null,null,null,null,null,null,null,null,null,null,null,null,null,null,null,null,null,null,null,null,null,null,null,null,null,null,null,null,null,null,null,null,null,null,"Palestine-PS"]
[null,null,null,null,null,null,null,null,null,null,null,null,null,null,null,null,null,null,null,null,null,null,null,null,null,null,null,null,null,null,null,null,null,null,null,null,null,null,null,null,null,null,null,null,null,null,null,null,null,null,null,null,null,null,null,null,"Panama-PA"]
[null,null,null,null,null,null,null,null,null,null,null,null,null,null,null,null,null,null,null,null,null,null,null,null,null,null,null,null,null,null,null,null,null,null,null,null,null,null,null,null,null,null,null,null,null,null,null,null,null,null,null,null,null,null,null,null,"Pap. New Guinea-PG"]
[null,null,null,null,null,null,null,null,null,null,null,null,null,null,null,null,null,null,null,null,null,null,null,null,null,null,null,null,null,null,null,null,null,null,null,null,null,null,null,null,null,null,null,null,null,null,null,null,null,null,null,null,null,null,null,null,"Paraguay-PY"]
[null,null,null,null,null,null,null,null,null,null,null,null,null,null,null,null,null,null,null,null,null,null,null,null,null,null,null,null,null,null,null,null,null,null,null,null,null,null,null,null,null,null,null,null,null,null,null,null,null,null,null,null,null,null,null,null,"Peru-PE"]
[null,null,null,null,null,null,null,null,null,null,null,null,null,null,null,null,null,null,null,null,null,null,null,null,null,null,null,null,null,null,null,null,null,null,null,null,null,null,null,null,null,null,null,null,null,null,null,null,null,null,null,null,null,null,null,null,"Philippines-PH"]
[null,null,null,null,null,null,null,null,null,null,null,null,null,null,null,null,null,null,null,null,null,null,null,null,null,null,null,null,null,null,null,null,null,null,null,null,null,null,null,null,null,null,null,null,null,null,null,null,null,null,null,null,null,null,null,null,"Pitcairn Islnds-PN"]
[null,null,null,null,null,null,null,null,null,null,null,null,null,null,null,null,null,null,null,null,null,null,null,null,null,null,null,null,null,null,null,null,null,null,null,null,null,null,null,null,null,null,null,null,null,null,null,null,null,null,null,null,null,null,null,null,"Poland-PL"]
[null,null,null,null,null,null,null,null,null,null,null,null,null,null,null,null,null,null,null,null,null,null,null,null,null,null,null,null,null,null,null,null,null,null,null,null,null,null,null,null,null,null,null,null,null,null,null,null,null,null,null,null,null,null,null,null,"Portugal-PT"]
[null,null,null,null,null,null,null,null,null,null,null,null,null,null,null,null,null,null,null,null,null,null,null,null,null,null,null,null,null,null,null,null,null,null,null,null,null,null,null,null,null,null,null,null,null,null,null,null,null,null,null,null,null,null,null,null,"Puerto Rico-PR"]
[null,null,null,null,null,null,null,null,null,null,null,null,null,null,null,null,null,null,null,null,null,null,null,null,null,null,null,null,null,null,null,null,null,null,null,null,null,null,null,null,null,null,null,null,null,null,null,null,null,null,null,null,null,null,null,null,"Qatar-QA"]
[null,null,null,null,null,null,null,null,null,null,null,null,null,null,null,null,null,null,null,null,null,null,null,null,null,null,null,null,null,null,null,null,null,null,null,null,null,null,null,null,null,null,null,null,null,null,null,null,null,null,null,null,null,null,null,null,"Rep.of Congo-CG"]
[null,null,null,null,null,null,null,null,null,null,null,null,null,null,null,null,null,null,null,null,null,null,null,null,null,null,null,null,null,null,null,null,null,null,null,null,null,null,null,null,null,null,null,null,null,null,null,null,null,null,null,null,null,null,null,null,"Reunion-RE"]
[null,null,null,null,null,null,null,null,null,null,null,null,null,null,null,null,null,null,null,null,null,null,null,null,null,null,null,null,null,null,null,null,null,null,null,null,null,null,null,null,null,null,null,null,null,null,null,null,null,null,null,null,null,null,null,null,"Romania-RO"]
[null,null,null,null,null,null,null,null,null,null,null,null,null,null,null,null,null,null,null,null,null,null,null,null,null,null,null,null,null,null,null,null,null,null,null,null,null,null,null,null,null,null,null,null,null,null,null,null,null,null,null,null,null,null,null,null,"Russian Fed.-RU"]
[null,null,null,null,null,null,null,null,null,null,null,null,null,null,null,null,null,null,null,null,null,null,null,null,null,null,null,null,null,null,null,null,null,null,null,null,null,null,null,null,null,null,null,null,null,null,null,null,null,null,null,null,null,null,null,null,"Rwanda-RW"]
[null,null,null,null,null,null,null,null,null,null,null,null,null,null,null,null,null,null,null,null,null,null,null,null,null,null,null,null,null,null,null,null,null,null,null,null,null,null,null,null,null,null,null,null,null,null,null,null,null,null,null,null,null,null,null,null,"S. Sandwich Ins-GS"]
[null,null,null,null,null,null,null,null,null,null,null,null,null,null,null,null,null,null,null,null,null,null,null,null,null,null,null,null,null,null,null,null,null,null,null,null,null,null,null,null,null,null,null,null,null,null,null,null,null,null,null,null,null,null,null,null,"S.Tome,Principe-ST"]
[null,null,null,null,null,null,null,null,null,null,null,null,null,null,null,null,null,null,null,null,null,null,null,null,null,null,null,null,null,null,null,null,null,null,null,null,null,null,null,null,null,null,null,null,null,null,null,null,null,null,null,null,null,null,null,null,"Saint Helena-SH"]
[null,null,null,null,null,null,null,null,null,null,null,null,null,null,null,null,null,null,null,null,null,null,null,null,null,null,null,null,null,null,null,null,null,null,null,null,null,null,null,null,null,null,null,null,null,null,null,null,null,null,null,null,null,null,null,null,"Samoa, America-AS"]
[null,null,null,null,null,null,null,null,null,null,null,null,null,null,null,null,null,null,null,null,null,null,null,null,null,null,null,null,null,null,null,null,null,null,null,null,null,null,null,null,null,null,null,null,null,null,null,null,null,null,null,null,null,null,null,null,"Samoa-WS"]
[null,null,null,null,null,null,null,null,null,null,null,null,null,null,null,null,null,null,null,null,null,null,null,null,null,null,null,null,null,null,null,null,null,null,null,null,null,null,null,null,null,null,null,null,null,null,null,null,null,null,null,null,null,null,null,null,"San Marino-SM"]
[null,null,null,null,null,null,null,null,null,null,null,null,null,null,null,null,null,null,null,null,null,null,null,null,null,null,null,null,null,null,null,null,null,null,null,null,null,null,null,null,null,null,null,null,null,null,null,null,null,null,null,null,null,null,null,null,"Saudi Arabia-SA"]
[null,null,null,null,null,null,null,null,null,null,null,null,null,null,null,null,null,null,null,null,null,null,null,null,null,null,null,null,null,null,null,null,null,null,null,null,null,null,null,null,null,null,null,null,null,null,null,null,null,null,null,null,null,null,null,null,"Senegal-SN"]
[null,null,null,null,null,null,null,null,null,null,null,null,null,null,null,null,null,null,null,null,null,null,null,null,null,null,null,null,null,null,null,null,null,null,null,null,null,null,null,null,null,null,null,null,null,null,null,null,null,null,null,null,null,null,null,null,"Serbia-RS"]
[null,null,null,null,null,null,null,null,null,null,null,null,null,null,null,null,null,null,null,null,null,null,null,null,null,null,null,null,null,null,null,null,null,null,null,null,null,null,null,null,null,null,null,null,null,null,null,null,null,null,null,null,null,null,null,null,"Seychelles-SC"]
[null,null,null,null,null,null,null,null,null,null,null,null,null,null,null,null,null,null,null,null,null,null,null,null,null,null,null,null,null,null,null,null,null,null,null,null,null,null,null,null,null,null,null,null,null,null,null,null,null,null,null,null,null,null,null,null,"Sierra Leone-SL"]
[null,null,null,null,null,null,null,null,null,null,null,null,null,null,null,null,null,null,null,null,null,null,null,null,null,null,null,null,null,null,null,null,null,null,null,null,null,null,null,null,null,null,null,null,null,null,null,null,null,null,null,null,null,null,null,null,"Singapore-SG"]
[null,null,null,null,null,null,null,null,null,null,null,null,null,null,null,null,null,null,null,null,null,null,null,null,null,null,null,null,null,null,null,null,null,null,null,null,null,null,null,null,null,null,null,null,null,null,null,null,null,null,null,null,null,null,null,null,"Slovakia-SK"]
[null,null,null,null,null,null,null,null,null,null,null,null,null,null,null,null,null,null,null,null,null,null,null,null,null,null,null,null,null,null,null,null,null,null,null,null,null,null,null,null,null,null,null,null,null,null,null,null,null,null,null,null,null,null,null,null,"Slovenia-SI"]
[null,null,null,null,null,null,null,null,null,null,null,null,null,null,null,null,null,null,null,null,null,null,null,null,null,null,null,null,null,null,null,null,null,null,null,null,null,null,null,null,null,null,null,null,null,null,null,null,null,null,null,null,null,null,null,null,"Solomon Islands-SB"]
[null,null,null,null,null,null,null,null,null,null,null,null,null,null,null,null,null,null,null,null,null,null,null,null,null,null,null,null,null,null,null,null,null,null,null,null,null,null,null,null,null,null,null,null,null,null,null,null,null,null,null,null,null,null,null,null,"Somalia-SO"]
[null,null,null,null,null,null,null,null,null,null,null,null,null,null,null,null,null,null,null,null,null,null,null,null,null,null,null,null,null,null,null,null,null,null,null,null,null,null,null,null,null,null,null,null,null,null,null,null,null,null,null,null,null,null,null,null,"South Africa-ZA"]
[null,null,null,null,null,null,null,null,null,null,null,null,null,null,null,null,null,null,null,null,null,null,null,null,null,null,null,null,null,null,null,null,null,null,null,null,null,null,null,null,null,null,null,null,null,null,null,null,null,null,null,null,null,null,null,null,"South Korea-KR"]
[null,null,null,null,null,null,null,null,null,null,null,null,null,null,null,null,null,null,null,null,null,null,null,null,null,null,null,null,null,null,null,null,null,null,null,null,null,null,null,null,null,null,null,null,null,null,null,null,null,null,null,null,null,null,null,null,"Spain-ES"]
[null,null,null,null,null,null,null,null,null,null,null,null,null,null,null,null,null,null,null,null,null,null,null,null,null,null,null,null,null,null,null,null,null,null,null,null,null,null,null,null,null,null,null,null,null,null,null,null,null,null,null,null,null,null,null,null,"Sri Lanka-LK"]
[null,null,null,null,null,null,null,null,null,null,null,null,null,null,null,null,null,null,null,null,null,null,null,null,null,null,null,null,null,null,null,null,null,null,null,null,null,null,null,null,null,null,null,null,null,null,null,null,null,null,null,null,null,null,null,null,"St Kitts&Nevis-KN"]
[null,null,null,null,null,null,null,null,null,null,null,null,null,null,null,null,null,null,null,null,null,null,null,null,null,null,null,null,null,null,null,null,null,null,null,null,null,null,null,null,null,null,null,null,null,null,null,null,null,null,null,null,null,null,null,null,"St. Lucia-LC"]
[null,null,null,null,null,null,null,null,null,null,null,null,null,null,null,null,null,null,null,null,null,null,null,null,null,null,null,null,null,null,null,null,null,null,null,null,null,null,null,null,null,null,null,null,null,null,null,null,null,null,null,null,null,null,null,null,"St. Vincent-VC"]
[null,null,null,null,null,null,null,null,null,null,null,null,null,null,null,null,null,null,null,null,null,null,null,null,null,null,null,null,null,null,null,null,null,null,null,null,null,null,null,null,null,null,null,null,null,null,null,null,null,null,null,null,null,null,null,null,"St.Pier,Miquel.-PM"]
[null,null,null,null,null,null,null,null,null,null,null,null,null,null,null,null,null,null,null,null,null,null,null,null,null,null,null,null,null,null,null,null,null,null,null,null,null,null,null,null,null,null,null,null,null,null,null,null,null,null,null,null,null,null,null,null,"Sudan-SD"]
[null,null,null,null,null,null,null,null,null,null,null,null,null,null,null,null,null,null,null,null,null,null,null,null,null,null,null,null,null,null,null,null,null,null,null,null,null,null,null,null,null,null,null,null,null,null,null,null,null,null,null,null,null,null,null,null,"Suriname-SR"]
[null,null,null,null,null,null,null,null,null,null,null,null,null,null,null,null,null,null,null,null,null,null,null,null,null,null,null,null,null,null,null,null,null,null,null,null,null,null,null,null,null,null,null,null,null,null,null,null,null,null,null,null,null,null,null,null,"Svalbard-SJ"]
[null,null,null,null,null,null,null,null,null,null,null,null,null,null,null,null,null,null,null,null,null,null,null,null,null,null,null,null,null,null,null,null,null,null,null,null,null,null,null,null,null,null,null,null,null,null,null,null,null,null,null,null,null,null,null,null,"Swaziland-SZ"]
[null,null,null,null,null,null,null,null,null,null,null,null,null,null,null,null,null,null,null,null,null,null,null,null,null,null,null,null,null,null,null,null,null,null,null,null,null,null,null,null,null,null,null,null,null,null,null,null,null,null,null,null,null,null,null,null,"Sweden-SE"]
[null,null,null,null,null,null,null,null,null,null,null,null,null,null,null,null,null,null,null,null,null,null,null,null,null,null,null,null,null,null,null,null,null,null,null,null,null,null,null,null,null,null,null,null,null,null,null,null,null,null,null,null,null,null,null,null,"Switzerland-CH"]
[null,null,null,null,null,null,null,null,null,null,null,null,null,null,null,null,null,null,null,null,null,null,null,null,null,null,null,null,null,null,null,null,null,null,null,null,null,null,null,null,null,null,null,null,null,null,null,null,null,null,null,null,null,null,null,null,"Syria-SY"]
[null,null,null,null,null,null,null,null,null,null,null,null,null,null,null,null,null,null,null,null,null,null,null,null,null,null,null,null,null,null,null,null,null,null,null,null,null,null,null,null,null,null,null,null,null,null,null,null,null,null,null,null,null,null,null,null,"Taiwan-TW"]
[null,null,null,null,null,null,null,null,null,null,null,null,null,null,null,null,null,null,null,null,null,null,null,null,null,null,null,null,null,null,null,null,null,null,null,null,null,null,null,null,null,null,null,null,null,null,null,null,null,null,null,null,null,null,null,null,"Tajikistan-TJ"]
[null,null,null,null,null,null,null,null,null,null,null,null,null,null,null,null,null,null,null,null,null,null,null,null,null,null,null,null,null,null,null,null,null,null,null,null,null,null,null,null,null,null,null,null,null,null,null,null,null,null,null,null,null,null,null,null,"Tanzania-TZ"]
[null,null,null,null,null,null,null,null,null,null,null,null,null,null,null,null,null,null,null,null,null,null,null,null,null,null,null,null,null,null,null,null,null,null,null,null,null,null,null,null,null,null,null,null,null,null,null,null,null,null,null,null,null,null,null,null,"Thailand-TH"]
[null,null,null,null,null,null,null,null,null,null,null,null,null,null,null,null,null,null,null,null,null,null,null,null,null,null,null,null,null,null,null,null,null,null,null,null,null,null,null,null,null,null,null,null,null,null,null,null,null,null,null,null,null,null,null,null,"Togo-TG"]
[null,null,null,null,null,null,null,null,null,null,null,null,null,null,null,null,null,null,null,null,null,null,null,null,null,null,null,null,null,null,null,null,null,null,null,null,null,null,null,null,null,null,null,null,null,null,null,null,null,null,null,null,null,null,null,null,"Tokelau Islands-TK"]
[null,null,null,null,null,null,null,null,null,null,null,null,null,null,null,null,null,null,null,null,null,null,null,null,null,null,null,null,null,null,null,null,null,null,null,null,null,null,null,null,null,null,null,null,null,null,null,null,null,null,null,null,null,null,null,null,"Tonga-TO"]
[null,null,null,null,null,null,null,null,null,null,null,null,null,null,null,null,null,null,null,null,null,null,null,null,null,null,null,null,null,null,null,null,null,null,null,null,null,null,null,null,null,null,null,null,null,null,null,null,null,null,null,null,null,null,null,null,"Trinidad,Tobago-TT"]
[null,null,null,null,null,null,null,null,null,null,null,null,null,null,null,null,null,null,null,null,null,null,null,null,null,null,null,null,null,null,null,null,null,null,null,null,null,null,null,null,null,null,null,null,null,null,null,null,null,null,null,null,null,null,null,null,"Tunisia-TN"]
[null,null,null,null,null,null,null,null,null,null,null,null,null,null,null,null,null,null,null,null,null,null,null,null,null,null,null,null,null,null,null,null,null,null,null,null,null,null,null,null,null,null,null,null,null,null,null,null,null,null,null,null,null,null,null,null,"Turkey-TR"]
[null,null,null,null,null,null,null,null,null,null,null,null,null,null,null,null,null,null,null,null,null,null,null,null,null,null,null,null,null,null,null,null,null,null,null,null,null,null,null,null,null,null,null,null,null,null,null,null,null,null,null,null,null,null,null,null,"Turkmenistan-TM"]
[null,null,null,null,null,null,null,null,null,null,null,null,null,null,null,null,null,null,null,null,null,null,null,null,null,null,null,null,null,null,null,null,null,null,null,null,null,null,null,null,null,null,null,null,null,null,null,null,null,null,null,null,null,null,null,null,"Turksh Caicosin-TC"]
[null,null,null,null,null,null,null,null,null,null,null,null,null,null,null,null,null,null,null,null,null,null,null,null,null,null,null,null,null,null,null,null,null,null,null,null,null,null,null,null,null,null,null,null,null,null,null,null,null,null,null,null,null,null,null,null,"Tuvalu-TV"]
[null,null,null,null,null,null,null,null,null,null,null,null,null,null,null,null,null,null,null,null,null,null,null,null,null,null,null,null,null,null,null,null,null,null,null,null,null,null,null,null,null,null,null,null,null,null,null,null,null,null,null,null,null,null,null,null,"Uganda-UG"]
[null,null,null,null,null,null,null,null,null,null,null,null,null,null,null,null,null,null,null,null,null,null,null,null,null,null,null,null,null,null,null,null,null,null,null,null,null,null,null,null,null,null,null,null,null,null,null,null,null,null,null,null,null,null,null,null,"Ukraine-UA"]
[null,null,null,null,null,null,null,null,null,null,null,null,null,null,null,null,null,null,null,null,null,null,null,null,null,null,null,null,null,null,null,null,null,null,null,null,null,null,null,null,null,null,null,null,null,null,null,null,null,null,null,null,null,null,null,null,"United Kingdom-GB"]
[null,null,null,null,null,null,null,null,null,null,null,null,null,null,null,null,null,null,null,null,null,null,null,null,null,null,null,null,null,null,null,null,null,null,null,null,null,null,null,null,null,null,null,null,null,null,null,null,null,null,null,null,null,null,null,null,"Uruguay-UY"]
[null,null,null,null,null,null,null,null,null,null,null,null,null,null,null,null,null,null,null,null,null,null,null,null,null,null,null,null,null,null,null,null,null,null,null,null,null,null,null,null,null,null,null,null,null,null,null,null,null,null,null,null,null,null,null,null,"USA-US"]
[null,null,null,null,null,null,null,null,null,null,null,null,null,null,null,null,null,null,null,null,null,null,null,null,null,null,null,null,null,null,null,null,null,null,null,null,null,null,null,null,null,null,null,null,null,null,null,null,null,null,null,null,null,null,null,null,"Utd.Arab Emir.-AE"]
[null,null,null,null,null,null,null,null,null,null,null,null,null,null,null,null,null,null,null,null,null,null,null,null,null,null,null,null,null,null,null,null,null,null,null,null,null,null,null,null,null,null,null,null,null,null,null,null,null,null,null,null,null,null,null,null,"Uzbekistan-UZ"]
[null,null,null,null,null,null,null,null,null,null,null,null,null,null,null,null,null,null,null,null,null,null,null,null,null,null,null,null,null,null,null,null,null,null,null,null,null,null,null,null,null,null,null,null,null,null,null,null,null,null,null,null,null,null,null,null,"Vanuatu-VU"]
[null,null,null,null,null,null,null,null,null,null,null,null,null,null,null,null,null,null,null,null,null,null,null,null,null,null,null,null,null,null,null,null,null,null,null,null,null,null,null,null,null,null,null,null,null,null,null,null,null,null,null,null,null,null,null,null,"Vatican City-VA"]
[null,null,null,null,null,null,null,null,null,null,null,null,null,null,null,null,null,null,null,null,null,null,null,null,null,null,null,null,null,null,null,null,null,null,null,null,null,null,null,null,null,null,null,null,null,null,null,null,null,null,null,null,null,null,null,null,"Venezuela-VE"]
[null,null,null,null,null,null,null,null,null,null,null,null,null,null,null,null,null,null,null,null,null,null,null,null,null,null,null,null,null,null,null,null,null,null,null,null,null,null,null,null,null,null,null,null,null,null,null,null,null,null,null,null,null,null,null,null,"Vietnam-VN"]
[null,null,null,null,null,null,null,null,null,null,null,null,null,null,null,null,null,null,null,null,null,null,null,null,null,null,null,null,null,null,null,null,null,null,null,null,null,null,null,null,null,null,null,null,null,null,null,null,null,null,null,null,null,null,null,null,"Wallis,Futuna-WF"]
[null,null,null,null,null,null,null,null,null,null,null,null,null,null,null,null,null,null,null,null,null,null,null,null,null,null,null,null,null,null,null,null,null,null,null,null,null,null,null,null,null,null,null,null,null,null,null,null,null,null,null,null,null,null,null,null,"West Sahara-EH"]
[null,null,null,null,null,null,null,null,null,null,null,null,null,null,null,null,null,null,null,null,null,null,null,null,null,null,null,null,null,null,null,null,null,null,null,null,null,null,null,null,null,null,null,null,null,null,null,null,null,null,null,null,null,null,null,null,"Yemen-YE"]
[null,null,null,null,null,null,null,null,null,null,null,null,null,null,null,null,null,null,null,null,null,null,null,null,null,null,null,null,null,null,null,null,null,null,null,null,null,null,null,null,null,null,null,null,null,null,null,null,null,null,null,null,null,null,null,null,"Zambia-ZM"]
[null,null,null,null,null,null,null,null,null,null,null,null,null,null,null,null,null,null,null,null,null,null,null,null,null,null,null,null,null,null,null,null,null,null,null,null,null,null,null,null,null,null,null,null,null,null,null,null,null,null,null,null,null,null,null,null,"Zimbabwe-ZW"]